Workbook

Sheet Main
B10: 2021-06-18
B12: Sheet No. | C12: Template Name | D12: Summary
B13: 1 | C13: Future Intra | D13: For Intraday trading in F&O segment
B14: 2 | C14: Cash Intra | D14: For Intraday trading in cash market segment
B15: 3 | C15: Mid-cap Intra | D15: For Intraday trading in Mid-cap stocks
B16: 4 | C16: Bulk Deals | D16: Reveals Bulk Deals carried on NSE & BSE
B17: 5 | C17: Call Tracker
K27: `

Sheet Future Intra
M5: Back to Main Page
A6: FOR INTRA DAY TRADING | L6: =Main!B10 -> 2021-06-18
A9: Sr.no | B9: Sector | C9: Scrip | D9: Expiry Date | E9: CLOSE RATE | F9: Pivot Point | G9: Supports | J9: Resistances
B10: Sector | E10: Point | F10: Point | G10: S1 | H10: S2 | I10: S3 | J10: R1 | K10: R2 | L10: R3 | M10: HIGH | N10: LOW | O10: OI | P10: % Change in OI
A11: 1 | B11: Index | C11: BANKNIFTY | D11: 2021-06-24 | E11: 34682.20 | F11: 34712.88 | G11: 34455.72 | H11: 34229.23 | I11: 33972.07 | J11: 34939.37 | K11: 35196.53 | L11: 35423.02 | M11: 34970.05 | N11: 34486.4 | O11: 1877400 | P11: 6.59%
A12: 2 | B12: Index | C12: NIFTY | D12: 2021-06-24 | E12: 15692.15 | F12: 15698.58 | G12: 15619.57 | H12: 15546.98 | I12: 15467.97 | J12: 15771.17 | K12: 15850.18 | L12: 15922.77 | M12: 15777.6 | N12: 15626 | O12: 11607850 | P12: -4.63%
A13: 3 | B13: Index | C13: FINNIFTY | D13: 2021-06-24 | E13: 16438.25 | F13: 16444.48 | G13: 16353.77 | H13: 16269.28 | I13: 16178.57 | J13: 16528.97 | K13: 16619.68 | L13: 16704.17 | M13: 16535.2 | N13: 16360 | O13: 13040 | P13: -8.17%
A14: 4 | B14: Chemical | C14: AARTIIND | D14: 2021-06-24 | E14: 1801.05 | F14: 1801.43 | G14: 1774.87 | H14: 1748.68 | I14: 1722.12 | J14: 1827.62 | K14: 1854.18 | L14: 1880.37 | M14: 1828 | N14: 1775.25 | O14: 1180650 | P14: 0.00%
A15: 5 | B15: Cement | C15: ACC | D15: 2021-06-24 | E15: 2045.90 | F15: 2039.45 | G15: 2012.90 | H15: 1979.90 | I15: 1953.35 | J15: 2072.45 | K15: 2099.00 | L15: 2132.00 | M15: 2066 | N15: 2006.45 | O15: 2255500 | P15: 0.71%
A16: 6 | B16: Others | C16: ADANIENT | D16: 2021-06-24 | E16: 1370.55 | F16: 1371.45 | G16: 1302.90 | H16: 1235.25 | I16: 1166.70 | J16: 1439.10 | K16: 1507.65 | L16: 1575.30 | M16: 1440 | N16: 1303.8 | O16: 20674000 | P16: 2.66%
A17: 7 | B17: Others | C17: ADANIPORTS | D17: 2021-06-24 | E17: 641.40 | F17: 650.92 | G17: 601.83 | H17: 562.27 | I17: 513.18 | J17: 690.48 | K17: 739.57 | L17: 779.13 | M17: 700 | N17: 611.35 | O17: 85623750 | P17: -5.54%
A18: 8 | B18: Pharma | C18: ALKEM | D18: 2021-06-24 | E18: 3168.55 | F18: 3126.35 | G18: 3067.70 | H18: 2966.85 | I18: 2908.20 | J18: 3227.20 | K18: 3285.85 | L18: 3386.70 | M18: 3185 | N18: 3025.5 | O18: 543200 | P18: -3.96%
A19: 9 | B19: Automobile | C19: AMARAJABAT | D19: 2021-06-24 | E19: 763.60 | F19: 766.23 | G19: 754.47 | H19: 745.33 | I19: 733.57 | J19: 775.37 | K19: 787.13 | L19: 796.27 | M19: 778 | N19: 757.1 | O19: 9982000 | P19: -0.80%
A20: 10 | B20: Cement | C20: AMBUJACEM | D20: 2021-06-24 | E20: 344.70 | F20: 342.97 | G20: 337.98 | H20: 331.27 | I20: 326.28 | J20: 349.68 | K20: 354.67 | L20: 361.38 | M20: 347.95 | N20: 336.25 | O20: 18813000 | P20: 6.11%
A21: 11 | B21: Pharma | C21: APLLTD | D21: 2021-06-24 | E21: 991.15 | F21: 983.02 | G21: 971.68 | H21: 952.22 | I21: 940.88 | J21: 1002.48 | K21: 1013.82 | L21: 1033.28 | M21: 994.35 | N21: 963.55 | O21: 1516350 | P21: -4.37%
A22: 12 | B22: Others | C22: APOLLOHOSP | D22: 2021-06-24 | E22: 3247.90 | F22: 3257.42 | G22: 3221.83 | H22: 3195.77 | I22: 3160.18 | J22: 3283.48 | K22: 3319.07 | L22: 3345.13 | M22: 3293 | N22: 3231.35 | O22: 1710000 | P22: 1.88%
A23: 13 | B23: Automobile | C23: APOLLOTYRE | D23: 2021-06-24 | E23: 230.50 | F23: 231.58 | G23: 227.87 | H23: 225.23 | I23: 221.52 | J23: 234.22 | K23: 237.93 | L23: 240.57 | M23: 235.3 | N23: 228.95 | O23: 13880000 | P23: 2.68%
A24: 14 | B24: Automobile | C24: ASHOKLEY | D24: 2021-06-24 | E24: 121.60 | F24: 122.35 | G24: 119.20 | H24: 116.80 | I24: 113.65 | J24: 124.75 | K24: 127.90 | L24: 130.30 | M24: 125.5 | N24: 119.95 | O24: 42570000 | P24: 11.35%
A25: 15 | B25: FMCG | C25: ASIANPAINT | D25: 2021-06-24 | E25: 3058.65 | F25: 3045.48 | G25: 3018.12 | H25: 2977.58 | I25: 2950.22 | J25: 3086.02 | K25: 3113.38 | L25: 3153.92 | M25: 3072.85 | N25: 3004.95 | O25: 4242000 | P25: 3.01%
A26: 16 | B26: Banking | C26: AUBANK | D26: 2021-06-24 | E26: 1025.30 | F26: 1030.10 | G26: 1005.20 | H26: 985.10 | I26: 960.20 | J26: 1050.20 | K26: 1075.10 | L26: 1095.20 | M26: 1055 | N26: 1010 | O26: 2259000 | P26: 3.51%
A27: 17 | B27: Pharma | C27: AUROPHARMA | D27: 2021-06-24 | E27: 961.20 | F27: 965.92 | G27: 940.63 | H27: 920.07 | I27: 894.78 | J27: 986.48 | K27: 1011.77 | L27: 1032.33 | M27: 991.2 | N27: 945.35 | O27: 13247650 | P27: -3.51%
A28: 18 | B28: Banking | C28: AXISBANK | D28: 2021-06-24 | E28: 739.35 | F28: 740.75 | G28: 734.75 | H28: 730.15 | I28: 724.15 | J28: 745.35 | K28: 751.35 | L28: 755.95 | M28: 746.75 | N28: 736.15 | O28: 34642800 | P28: -0.04%
A29: 19 | B29: Automobile | C29: BAJAJ-AUTO | D29: 2021-06-24 | E29: 4057.00 | F29: 4073.53 | G29: 4027.22 | H29: 3997.43 | I29: 3951.12 | J29: 4103.32 | K29: 4149.63 | L29: 4179.42 | M29: 4119.85 | N29: 4043.75 | O29: 1520250 | P29: 2.68%
A30: 20 | B30: Finance | C30: BAJAJFINSV | D30: 2021-06-24 | E30: 11820.00 | F30: 11849.53 | G30: 11744.67 | H30: 11669.33 | I30: 11564.47 | J30: 11924.87 | K30: 12029.73 | L30: 12105.07 | M30: 11954.4 | N30: 11774.2 | O30: 691750 | P30: -1.61%
A31: 21 | B31: Finance | C31: BAJFINANCE | D31: 2021-06-24 | E31: 6066.25 | F31: 6050.70 | G31: 5965.55 | H31: 5864.85 | I31: 5779.70 | J31: 6151.40 | K31: 6236.55 | L31: 6337.25 | M31: 6135.85 | N31: 5950 | O31: 3729250 | P31: 2.43%
A32: 22 | B32: Automobile | C32: BALKRISIND | D32: 2021-06-24 | E32: 2297.05 | F32: 2276.63 | G32: 2243.27 | H32: 2189.48 | I32: 2156.12 | J32: 2330.42 | K32: 2363.78 | L32: 2417.57 | M32: 2310 | N32: 2222.85 | O32: 1206800 | P32: 6.83%
A33: 23 | B33: Banking | C33: BANDHANBNK | D33: 2021-06-24 | E33: 318.90 | F33: 318.37 | G33: 313.88 | H33: 308.87 | I33: 304.38 | J33: 323.38 | K33: 327.87 | L33: 332.88 | M33: 322.85 | N33: 313.35 | O33: 17501400 | P33: 0.53%
A34: 24 | B34: Banking | C34: BANKBARODA | D34: 2021-06-24 | E34: 82.00 | F34: 82.67 | G34: 80.58 | H34: 79.17 | I34: 77.08 | J34: 84.08 | K34: 86.17 | L34: 87.58 | M34: 84.75 | N34: 81.25 | O34: 171065700 | P34: -0.59%
A35: 25 | B35: FMCG | C35: BATAINDIA | D35: 2021-06-24 | E35: 1675.35 | F35: 1662.85 | G35: 1642.50 | H35: 1609.65 | I35: 1589.30 | J35: 1695.70 | K35: 1716.05 | L35: 1748.90 | M35: 1683.2 | N35: 1630 | O35: 1262800 | P35: 8.00%
A36: 26 | B36: Capital_Goods | C36: BEL | D36: 2021-06-24 | E36: 146.55 | F36: 147.17 | G36: 144.18 | H36: 141.82 | I36: 138.83 | J36: 149.53 | K36: 152.52 | L36: 154.88 | M36: 150.15 | N36: 144.8 | O36: 32592600 | P36: 2.22%
A37: 27 | B37: FMCG | C37: BERGEPAINT | D37: 2021-06-24 | E37: 821.25 | F37: 817.08 | G37: 803.17 | H37: 785.08 | I37: 771.17 | J37: 835.17 | K37: 849.08 | L37: 867.17 | M37: 831 | N37: 799 | O37: 3538700 | P37: -0.31%
A38: 28 | B38: Automobile | C38: BHARATFORG | D38: 2021-06-24 | E38: 725.65 | F38: 729.63 | G38: 718.77 | H38: 711.88 | I38: 701.02 | J38: 736.52 | K38: 747.38 | L38: 754.27 | M38: 740.5 | N38: 722.75 | O38: 8487000 | P38: 1.76%
A39: 29 | B39: Telecom | C39: BHARTIARTL | D39: 2021-06-24 | E39: 529.95 | F39: 532.12 | G39: 521.23 | H39: 512.52 | I39: 501.63 | J39: 540.83 | K39: 551.72 | L39: 560.43 | M39: 543 | N39: 523.4 | O39: 111158103 | P39: 2.14%
A40: 30 | B40: Capital_Goods | C40: BHEL | D40: 2021-06-24 | E40: 65.70 | F40: 66.18 | G40: 64.47 | H40: 63.23 | I40: 61.52 | J40: 67.42 | K40: 69.13 | L40: 70.37 | M40: 67.9 | N40: 64.95 | O40: 105084000 | P40: -5.80%
A41: 31 | B41: Pharma | C41: BIOCON | D41: 2021-06-24 | E41: 398.80 | F41: 400.65 | G41: 394.05 | H41: 389.30 | I41: 382.70 | J41: 405.40 | K41: 412.00 | L41: 416.75 | M41: 407.25 | N41: 395.9 | O41: 15506600 | P41: -0.52%
A42: 32 | B42: Automobile | C42: BOSCHLTD | D42: 2021-06-24 | E42: 15408.30 | F42: 15484.07 | G42: 15224.28 | H42: 15040.27 | I42: 14780.48 | J42: 15668.08 | K42: 15927.87 | L42: 16111.88 | M42: 15743.85 | N42: 15300.05 | O42: 103400 | P42: 11.30%
A43: 33 | B43: Oil_Gas | C43: BPCL | D43: 2021-06-24 | E43: 477.95 | F43: 479.63 | G43: 475.27 | H43: 472.58 | I43: 468.22 | J43: 482.32 | K43: 486.68 | L43: 489.37 | M43: 484 | N43: 476.95 | O43: 35172000 | P43: 0.46%
A44: 34 | B44: FMCG | C44: BRITANNIA | D44: 2021-06-24 | E44: 3654.75 | F44: 3642.00 | G44: 3619.50 | H44: 3584.25 | I44: 3561.75 | J44: 3677.25 | K44: 3699.75 | L44: 3735.00 | M44: 3664.5 | N44: 3606.75 | O44: 1811800 | P44: -0.22%
A45: 35 | B45: Pharma | C45: CADILAHC | D45: 2021-06-24 | E45: 621.70 | F45: 624.77 | G45: 614.98 | H45: 608.27 | I45: 598.48 | J45: 631.48 | K45: 641.27 | L45: 647.98 | M45: 634.55 | N45: 618.05 | O45: 25687200 | P45: 0.97%
A46: 36 | B46: Banking | C46: CANBK | D46: 2021-06-24 | E46: 151.65 | F46: 151.70 | G46: 149.40 | H46: 147.15 | I46: 144.85 | J46: 153.95 | K46: 156.25 | L46: 158.50 | M46: 154 | N46: 149.45 | O46: 52320600 | P46: -2.91%
A47: 37 | B47: Finance | C47: CHOLAFIN | D47: 2021-06-24 | E47: 550.85 | F47: 554.83 | G47: 542.67 | H47: 534.48 | I47: 522.32 | J47: 563.02 | K47: 575.18 | L47: 583.37 | M47: 567 | N47: 546.65 | O47: 8348750 | P47: 1.67%
A48: 38 | B48: Pharma | C48: CIPLA | D48: 2021-06-24 | E48: 950.90 | F48: 951.92 | G48: 941.53 | H48: 932.17 | I48: 921.78 | J48: 961.28 | K48: 971.67 | L48: 981.03 | M48: 962.3 | N48: 942.55 | O48: 9662900 | P48: -0.34%
A49: 39 | B49: Others | C49: COALINDIA | D49: 2021-06-24 | E49: 152.45 | F49: 153.08 | G49: 150.77 | H49: 149.08 | I49: 146.77 | J49: 154.77 | K49: 157.08 | L49: 158.77 | M49: 155.4 | N49: 151.4 | O49: 62395200 | P49: 0.77%
A50: 40 | B50: Technology | C50: COFORGE | D50: 2021-06-24 | E50: 3979.90 | F50: 3983.68 | G50: 3951.27 | H50: 3922.63 | I50: 3890.22 | J50: 4012.32 | K50: 4044.73 | L50: 4073.37 | M50: 4016.1 | N50: 3955.05 | O50: 737275 | P50: -2.59%
A51: 41 | B51: FMCG | C51: COLPAL | D51: 2021-06-24 | E51: 1716.40 | F51: 1718.43 | G51: 1705.87 | H51: 1695.33 | I51: 1682.77 | J51: 1728.97 | K51: 1741.53 | L51: 1752.07 | M51: 1731 | N51: 1707.9 | O51: 2511950 | P51: 0.59%
A52: 42 | B52: Others | C52: CONCOR | D52: 2021-06-24 | E52: 679.10 | F52: 683.88 | G52: 668.72 | H52: 658.33 | I52: 643.17 | J52: 694.27 | K52: 709.43 | L52: 719.82 | M52: 699.05 | N52: 673.5 | O52: 7780614 | P52: 2.43%
A53: 43 | B53: Banking | C53: CUB | D53: 2021-06-24 | E53: 165.80 | F53: 165.45 | G53: 163.90 | H53: 162.00 | I53: 160.45 | J53: 167.35 | K53: 168.90 | L53: 170.80 | M53: 167 | N53: 163.55 | O53: 10586500 | P53: -2.43%
A54: 44 | B54: Capital_Goods | C54: CUMMINSIND | D54: 2021-06-24 | E54: 839.15 | F54: 839.80 | G54: 830.85 | H54: 822.55 | I54: 813.60 | J54: 848.10 | K54: 857.05 | L54: 865.35 | M54: 848.75 | N54: 831.5 | O54: 2992800 | P54: -2.41%
A55: 45 | B55: FMCG | C55: DABUR | D55: 2021-06-24 | E55: 574.40 | F55: 575.40 | G55: 570.00 | H55: 565.60 | I55: 560.20 | J55: 579.80 | K55: 585.20 | L55: 589.60 | M55: 580.8 | N55: 571 | O55: 8441250 | P55: -0.15%
A56: 46 | B56: Chemical | C56: DEEPAKNTR | D56: 2021-06-24 | E56: 1773.90 | F56: 1770.77 | G56: 1750.08 | H56: 1726.27 | I56: 1705.58 | J56: 1794.58 | K56: 1815.27 | L56: 1839.08 | M56: 1791.45 | N56: 1746.95 | O56: 3061500 | P56: -1.73%
A57: 47 | B57: Pharma | C57: DIVISLAB | D57: 2021-06-24 | E57: 4309.00 | F57: 4305.83 | G57: 4279.67 | H57: 4250.33 | I57: 4224.17 | J57: 4335.17 | K57: 4361.33 | L57: 4390.67 | M57: 4332 | N57: 4276.5 | O57: 2191800 | P57: 0.00%
A58: 48 | B58: Realty | C58: DLF | D58: 2021-06-24 | E58: 297.50 | F58: 299.83 | G58: 292.67 | H58: 287.83 | I58: 280.67 | J58: 304.67 | K58: 311.83 | L58: 316.67 | M58: 307 | N58: 295 | O58: 36544200 | P58: -0.17%
A59: 49 | B59: Pharma | C59: DRREDDY | D59: 2021-06-24 | E59: 5303.10 | F59: 5327.42 | G59: 5236.23 | H59: 5169.37 | I59: 5078.18 | J59: 5394.28 | K59: 5485.47 | L59: 5552.33 | M59: 5418.6 | N59: 5260.55 | O59: 2596500 | P59: 1.09%
A60: 50 | B60: Automobile | C60: EICHERMOT | D60: 2021-06-24 | E60: 2681.60 | F60: 2709.08 | G60: 2646.62 | H60: 2611.63 | I60: 2549.17 | J60: 2744.07 | K60: 2806.53 | L60: 2841.52 | M60: 2771.55 | N60: 2674.1 | O60: 1997100 | P60: 2.20%
A61: 51 | B61: Automobile | C61: ESCORTS | D61: 2021-06-24 | E61: 1172.20 | F61: 1170.07 | G61: 1155.38 | H61: 1138.57 | I61: 1123.88 | J61: 1186.88 | K61: 1201.57 | L61: 1218.38 | M61: 1184.75 | N61: 1153.25 | O61: 5861350 | P61: -7.35%
A62: 52 | B62: Automobile | C62: EXIDEIND | D62: 2021-06-24 | E62: 187.60 | F62: 188.50 | G62: 185.90 | H62: 184.20 | I62: 181.60 | J62: 190.20 | K62: 192.80 | L62: 194.50 | M62: 191.1 | N62: 186.8 | O62: 14626800 | P62: 1.86%
A63: 53 | B63: Banking | C63: FEDERALBNK | D63: 2021-06-24 | E63: 85.50 | F63: 85.53 | G63: 84.37 | H63: 83.23 | I63: 82.07 | J63: 86.67 | K63: 87.83 | L63: 88.97 | M63: 86.7 | N63: 84.4 | O63: 88500000 | P63: 4.54%
A64: 54 | B64: Oil_Gas | C64: GAIL | D64: 2021-06-24 | E64: 160.95 | F64: 161.23 | G64: 158.57 | H64: 156.18 | I64: 153.52 | J64: 163.62 | K64: 166.28 | L64: 168.67 | M64: 163.9 | N64: 158.85 | O64: 33293800 | P64: -0.55%
A65: 55 | B65: Pharma | C65: GLENMARK | D65: 2021-06-24 | E65: 639.40 | F65: 641.67 | G65: 629.68 | H65: 619.97 | I65: 607.98 | J65: 651.38 | K65: 663.37 | L65: 673.08 | M65: 653.65 | N65: 631.95 | O65: 8403050 | P65: -5.03%
A66: 56 | B66: Infrastructure | C66: GMRINFRA | D66: 2021-06-24 | E66: 28.85 | F66: 29.17 | G66: 28.23 | H66: 27.62 | I66: 26.68 | J66: 29.78 | K66: 30.72 | L66: 31.33 | M66: 30.1 | N66: 28.55 | O66: 103275000 | P66: -2.26%
A67: 57 | B67: FMCG | C67: GODREJCP | D67: 2021-06-24 | E67: 907.80 | F67: 912.02 | G67: 899.03 | H67: 890.27 | I67: 877.28 | J67: 920.78 | K67: 933.77 | L67: 942.53 | M67: 925 | N67: 903.25 | O67: 3151000 | P67: -3.28%
A68: 58 | B68: Realty | C68: GODREJPROP | D68: 2021-06-24 | E68: 1391.70 | F68: 1399.90 | G68: 1371.80 | H68: 1351.90 | I68: 1323.80 | J68: 1419.80 | K68: 1447.90 | L68: 1467.80 | M68: 1428 | N68: 1380 | O68: 1821950 | P68: -1.75%
A69: 59 | B69: Pharma | C69: GRANULES | D69: 2021-06-24 | E69: 317.85 | F69: 318.58 | G69: 315.17 | H69: 312.48 | I69: 309.07 | J69: 321.27 | K69: 324.68 | L69: 327.37 | M69: 322 | N69: 315.9 | O69: 12444950 | P69: 1.63%
A70: 60 | B70: Cement | C70: GRASIM | D70: 2021-06-24 | E70: 1460.55 | F70: 1461.67 | G70: 1431.88 | H70: 1403.22 | I70: 1373.43 | J70: 1490.33 | K70: 1520.12 | L70: 1548.78 | M70: 1491.45 | N70: 1433 | O70: 12476825 | P70: 3.40%
A71: 61 | B71: Oil_Gas | C71: GUJGASLTD | D71: 2021-06-24 | E71: 662.00 | F71: 656.13 | G71: 634.82 | H71: 607.63 | I71: 586.32 | J71: 683.32 | K71: 704.63 | L71: 731.82 | M71: 677.45 | N71: 628.95 | O71: 3168750 | P71: 14.55%
A72: 62 | B72: Capital_Goods | C72: HAVELLS | D72: 2021-06-24 | E72: 1000.35 | F72: 1000.88 | G72: 991.47 | H72: 982.58 | I72: 973.17 | J72: 1009.77 | K72: 1019.18 | L72: 1028.07 | M72: 1010.3 | N72: 992 | O72: 6072500 | P72: 1.31%
A73: 63 | B73: Technology | C73: HCLTECH | D73: 2021-06-24 | E73: 988.25 | F73: 986.38 | G73: 982.42 | H73: 976.58 | I73: 972.62 | J73: 992.22 | K73: 996.18 | L73: 1002.02 | M73: 990.35 | N73: 980.55 | O73: 20306300 | P73: 0.42%
A74: 64 | B74: Finance | C74: HDFC | D74: 2021-06-24 | E74: 2493.50 | F74: 2498.22 | G74: 2484.33 | H74: 2475.17 | I74: 2461.28 | J74: 2507.38 | K74: 2521.27 | L74: 2530.43 | M74: 2512.1 | N74: 2489.05 | O74: 17033400 | P74: 2.87%
A75: 65 | B75: Finance | C75: HDFCAMC | D75: 2021-06-24 | E75: 3018.90 | F75: 3012.65 | G75: 2987.30 | H75: 2955.70 | I75: 2930.35 | J75: 3044.25 | K75: 3069.60 | L75: 3101.20 | M75: 3038 | N75: 2981.05 | O75: 521000 | P75: -1.03%
A76: 66 | B76: Banking | C76: HDFCBANK | D76: 2021-06-24 | E76: 1468.00 | F76: 1469.67 | G76: 1460.83 | H76: 1453.67 | I76: 1444.83 | J76: 1476.83 | K76: 1485.67 | L76: 1492.83 | M76: 1478.5 | N76: 1462.5 | O76: 25696000 | P76: 0.18%
A77: 67 | B77: Finance | C77: HDFCLIFE | D77: 2021-06-24 | E77: 700.05 | F77: 695.67 | G77: 687.38 | H77: 674.72 | I77: 666.43 | J77: 708.33 | K77: 716.62 | L77: 729.28 | M77: 703.95 | N77: 683 | O77: 11841500 | P77: -5.25%
A78: 68 | B78: Automobile | C78: HEROMOTOCO | D78: 2021-06-24 | E78: 2918.80 | F78: 2928.02 | G78: 2893.38 | H78: 2867.97 | I78: 2833.33 | J78: 2953.43 | K78: 2988.07 | L78: 3013.48 | M78: 2962.65 | N78: 2902.6 | O78: 4224900 | P78: 3.52%
A79: 69 | B79: Metals | C79: HINDALCO | D79: 2021-06-24 | E79: 369.35 | F79: 371.70 | G79: 362.05 | H79: 354.75 | I79: 345.10 | J79: 379.00 | K79: 388.65 | L79: 395.95 | M79: 381.35 | N79: 364.4 | O79: 27483450 | P79: 0.46%
A80: 70 | B80: Oil_Gas | C80: HINDPETRO | D80: 2021-06-24 | E80: 309.20 | F80: 308.17 | G80: 304.08 | H80: 298.97 | I80: 294.88 | J80: 313.28 | K80: 317.37 | L80: 322.48 | M80: 312.25 | N80: 303.05 | O80: 26011800 | P80: 1.33%
A81: 71 | B81: FMCG | C81: HINDUNILVR | D81: 2021-06-24 | E81: 2417.95 | F81: 2411.88 | G81: 2398.77 | H81: 2379.58 | I81: 2366.47 | J81: 2431.07 | K81: 2444.18 | L81: 2463.37 | M81: 2425 | N81: 2392.7 | O81: 8303400 | P81: -0.12%
A82: 72 | B82: Finance | C82: IBULHSGFIN | D82: 2021-06-24 | E82: 284.35 | F82: 289.75 | G82: 277.00 | H82: 269.65 | I82: 256.90 | J82: 297.10 | K82: 309.85 | L82: 317.20 | M82: 302.5 | N82: 282.4 | O82: 28799000 | P82: 3.87%
A83: 73 | B83: Banking | C83: ICICIBANK | D83: 2021-06-24 | E83: 634.60 | F83: 634.05 | G83: 629.10 | H83: 623.60 | I83: 618.65 | J83: 639.55 | K83: 644.50 | L83: 650.00 | M83: 639 | N83: 628.55 | O83: 71732375 | P83: 2.15%
A84: 74 | B84: Finance | C84: ICICIGI | D84: 2021-06-24 | E84: 1507.85 | F84: 1509.58 | G84: 1488.02 | H84: 1468.18 | I84: 1446.62 | J84: 1529.42 | K84: 1550.98 | L84: 1570.82 | M84: 1531.15 | N84: 1489.75 | O84: 1269900 | P84: 2.29%
A85: 75 | B85: Finance | C85: ICICIPRULI | D85: 2021-06-24 | E85: 590.10 | F85: 584.87 | G85: 577.03 | H85: 563.97 | I85: 556.13 | J85: 597.93 | K85: 605.77 | L85: 618.83 | M85: 592.7 | N85: 571.8 | O85: 4279500 | P85: -5.31%
A86: 76 | B86: Telecom | C86: IDEA | D86: 2021-06-24 | E86: 9.45 | F86: 9.55 | G86: 9.30 | H86: 9.15 | I86: 8.90 | J86: 9.70 | K86: 9.95 | L86: 10.10 | M86: 9.8 | N86: 9.4 | O86: 744030000 | P86: 0.90%
A87: 77 | B87: Banking | C87: IDFCFIRSTB | D87: 2021-06-24 | E87: 58.00 | F87: 58.40 | G87: 57.25 | H87: 56.50 | I87: 55.35 | J87: 59.15 | K87: 60.30 | L87: 61.05 | M87: 59.55 | N87: 57.65 | O87: 142595000 | P87: 2.74%
A88: 78 | B88: Oil_Gas | C88: IGL | D88: 2021-06-24 | E88: 536.90 | F88: 535.73 | G88: 529.67 | H88: 522.43 | I88: 516.37 | J88: 542.97 | K88: 549.03 | L88: 556.27 | M88: 541.8 | N88: 528.5 | O88: 9164375 | P88: -2.52%
A89: 79 | B89: Others | C89: INDIGO | D89: 2021-06-24 | E89: 1711.10 | F89: 1718.65 | G89: 1692.45 | H89: 1673.80 | I89: 1647.60 | J89: 1737.30 | K89: 1763.50 | L89: 1782.15 | M89: 1744.85 | N89: 1700 | O89: 3246500 | P89: -2.07%
A90: 80 | B90: Banking | C90: INDUSINDBK | D90: 2021-06-24 | E90: 985.40 | F90: 992.80 | G90: 960.60 | H90: 935.80 | I90: 903.60 | J90: 1017.60 | K90: 1049.80 | L90: 1074.60 | M90: 1025 | N90: 968 | O90: 18785700 | P90: 0.65%
A91: 81 | B91: Telecom | C91: INDUSTOWER | D91: 2021-06-24 | E91: 247.60 | F91: 250.10 | G91: 243.75 | H91: 239.90 | I91: 233.55 | J91: 253.95 | K91: 260.30 | L91: 264.15 | M91: 256.45 | N91: 246.25 | O91: 9825200 | P91: 1.95%
A92: 82 | B92: Technology | C92: INFY | D92: 2021-06-24 | E92: 1496.15 | F92: 1491.62 | G92: 1480.88 | H92: 1465.62 | I92: 1454.88 | J92: 1506.88 | K92: 1517.62 | L92: 1532.88 | M92: 1502.35 | N92: 1476.35 | O92: 33034800 | P92: 1.24%
A93: 83 | B93: Oil_Gas | C93: IOC | D93: 2021-06-24 | E93: 114.85 | F93: 115.22 | G93: 113.83 | H93: 112.82 | I93: 111.43 | J93: 116.23 | K93: 117.62 | L93: 118.63 | M93: 116.6 | N93: 114.2 | O93: 53839500 | P93: 0.68%
A94: 84 | B94: Others | C94: IRCTC | D94: 2021-06-24 | E94: 2052.80 | F94: 2061.30 | G94: 2028.65 | H94: 2004.50 | I94: 1971.85 | J94: 2085.45 | K94: 2118.10 | L94: 2142.25 | M94: 2093.95 | N94: 2037.15 | O94: 1966250 | P94: -0.82%
A95: 85 | B95: FMCG | C95: ITC | D95: 2021-06-24 | E95: 206.25 | F95: 206.73 | G95: 205.02 | H95: 203.78 | I95: 202.07 | J95: 207.97 | K95: 209.68 | L95: 210.92 | M95: 208.45 | N95: 205.5 | O95: 175577600 | P95: 3.10%
A96: 86 | B96: Metals | C96: JINDALSTEL | D96: 2021-06-24 | E96: 396.60 | F96: 400.68 | G96: 389.62 | H96: 382.63 | I96: 371.57 | J96: 407.67 | K96: 418.73 | L96: 425.72 | M96: 411.75 | N96: 393.7 | O96: 33020000 | P96: -1.11%
A97: 87 | B97: Metals | C97: JSWSTEEL | D97: 2021-06-24 | E97: 697.30 | F97: 701.28 | G97: 690.07 | H97: 682.83 | I97: 671.62 | J97: 708.52 | K97: 719.73 | L97: 726.97 | M97: 712.5 | N97: 694.05 | O97: 36761850 | P97: 0.68%
A98: 88 | B98: Others | C98: JUBLFOOD | D98: 2021-06-24 | E98: 3256.40 | F98: 3249.73 | G98: 3209.82 | H98: 3163.23 | I98: 3123.32 | J98: 3296.32 | K98: 3336.23 | L98: 3382.82 | M98: 3289.65 | N98: 3203.15 | O98: 1403250 | P98: -7.57%
A99: 89 | B99: Banking | C99: KOTAKBANK | D99: 2021-06-24 | E99: 1767.25 | F99: 1761.73 | G99: 1748.82 | H99: 1730.38 | I99: 1717.47 | J99: 1780.17 | K99: 1793.08 | L99: 1811.52 | M99: 1774.65 | N99: 1743.3 | O99: 13703200 | P99: -2.36%
A100: 90 | B100: Finance | C100: L&TFH | D100: 2021-06-24 | E100: 93.90 | F100: 94.48 | G100: 92.52 | H100: 91.13 | I100: 89.17 | J100: 95.87 | K100: 97.83 | L100: 99.22 | M100: 96.45 | N100: 93.1 | O100: 73364204 | P100: 0.76%
A101: 91 | B101: Others | C101: LALPATHLAB | D101: 2021-06-24 | E101: 3147.60 | F101: 3142.53 | G101: 3112.07 | H101: 3076.53 | I101: 3046.07 | J101: 3178.07 | K101: 3208.53 | L101: 3244.07 | M101: 3173 | N101: 3107 | O101: 395750 | P101: -2.16%
A102: 92 | B102: Finance | C102: LICHSGFIN | D102: 2021-06-24 | E102: 483.05 | F102: 487.25 | G102: 475.20 | H102: 467.35 | I102: 455.30 | J102: 495.10 | K102: 507.15 | L102: 515.00 | M102: 499.3 | N102: 479.4 | O102: 14428000 | P102: 12.35%
A103: 93 | B103: Capital_Goods | C103: LT | D103: 2021-06-24 | E103: 1487.60 | F103: 1490.63 | G103: 1480.22 | H103: 1472.83 | I103: 1462.42 | J103: 1498.02 | K103: 1508.43 | L103: 1515.82 | M103: 1501.05 | N103: 1483.25 | O103: 14170300 | P103: -1.90%
A104: 94 | B104: Technology | C104: LTI | D104: 2021-06-24 | E104: 4177.00 | F104: 4185.00 | G104: 4142.00 | H104: 4107.00 | I104: 4064.00 | J104: 4220.00 | K104: 4263.00 | L104: 4298.00 | M104: 4228 | N104: 4150 | O104: 600150 | P104: -0.79%
A105: 95 | B105: Technology | C105: LTTS | D105: 2021-06-24 | E105: 2811.90 | F105: 2807.02 | G105: 2754.03 | H105: 2696.17 | I105: 2643.18 | J105: 2864.88 | K105: 2917.87 | L105: 2975.73 | M105: 2860 | N105: 2749.15 | O105: 503600 | P105: 2.32%
A106: 96 | B106: Pharma | C106: LUPIN | D106: 2021-06-24 | E106: 1162.00 | F106: 1165.95 | G106: 1148.05 | H106: 1134.10 | I106: 1116.20 | J106: 1179.90 | K106: 1197.80 | L106: 1211.75 | M106: 1183.85 | N106: 1152 | O106: 8061400 | P106: 1.64%
A107: 97 | B107: Automobile | C107: M&M | D107: 2021-06-24 | E107: 806.20 | F107: 804.00 | G107: 796.20 | H107: 786.20 | I107: 778.40 | J107: 814.00 | K107: 821.80 | L107: 831.80 | M107: 811.8 | N107: 794 | O107: 8932000 | P107: -1.31%
A108: 98 | B108: Finance | C108: M&MFIN | D108: 2021-06-24 | E108: 163.20 | F108: 164.65 | G108: 160.45 | H108: 157.70 | I108: 153.50 | J108: 167.40 | K108: 171.60 | L108: 174.35 | M108: 168.85 | N108: 161.9 | O108: 45388000 | P108: 8.45%
A109: 99 | B109: Finance | C109: MANAPPURAM | D109: 2021-06-24 | E109: 163.35 | F109: 164.38 | G109: 161.32 | H109: 159.28 | I109: 156.22 | J109: 166.42 | K109: 169.48 | L109: 171.52 | M109: 167.45 | N109: 162.35 | O109: 28326000 | P109: 0.83%
A110: 100 | B110: FMCG | C110: MARICO | D110: 2021-06-24 | E110: 517.95 | F110: 515.33 | G110: 509.07 | H110: 500.18 | I110: 493.92 | J110: 524.22 | K110: 530.48 | L110: 539.37 | M110: 521.6 | N110: 506.45 | O110: 5828000 | P110: 10.17%
A111: 101 | B111: Automobile | C111: MARUTI | D111: 2021-06-24 | E111: 6985.75 | F111: 7016.87 | G111: 6919.88 | H111: 6854.02 | I111: 6757.03 | J111: 7082.73 | K111: 7179.72 | L111: 7245.58 | M111: 7113.85 | N111: 6951 | O111: 2013600 | P111: 2.61%
A112: 102 | B112: FMCG | C112: MCDOWELL-N | D112: 2021-06-24 | E112: 662.90 | F112: 661.55 | G112: 647.30 | H112: 631.70 | I112: 617.45 | J112: 677.15 | K112: 691.40 | L112: 707.00 | M112: 675.8 | N112: 645.95 | O112: 10456250 | P112: -1.97%
A113: 103 | B113: Finance | C113: MFSL | D113: 2021-06-24 | E113: 1008.75 | F113: 1013.48 | G113: 984.27 | H113: 959.78 | I113: 930.57 | J113: 1037.97 | K113: 1067.18 | L113: 1091.67 | M113: 1042.7 | N113: 989 | O113: 2640300 | P113: 15.76%
A114: 104 | B114: Oil_Gas | C114: MGL | D114: 2021-06-24 | E114: 1245.10 | F114: 1249.25 | G114: 1212.65 | H114: 1180.20 | I114: 1143.60 | J114: 1281.70 | K114: 1318.30 | L114: 1350.75 | M114: 1285.85 | N114: 1216.8 | O114: 1917600 | P114: -6.08%
A115: 105 | B115: Technology | C115: MINDTREE | D115: 2021-06-24 | E115: 2485.30 | F115: 2485.08 | G115: 2453.42 | H115: 2421.53 | I115: 2389.87 | J115: 2516.97 | K115: 2548.63 | L115: 2580.52 | M115: 2516.75 | N115: 2453.2 | O115: 1780000 | P115: 1.14%
A116: 106 | B116: Automobile | C116: MOTHERSUMI | D116: 2021-06-24 | E116: 239.90 | F116: 240.75 | G116: 236.25 | H116: 232.60 | I116: 228.10 | J116: 244.40 | K116: 248.90 | L116: 252.55 | M116: 245.25 | N116: 237.1 | O116: 32592000 | P116: 0.69%
A117: 107 | B117: Technology | C117: MPHASIS | D117: 2021-06-24 | E117: 2045.30 | F117: 2064.07 | G117: 1999.28 | H117: 1953.27 | I117: 1888.48 | J117: 2110.08 | K117: 2174.87 | L117: 2220.88 | M117: 2128.85 | N117: 2018.05 | O117: 518375 | P117: -3.97%
A118: 108 | B118: Automobile | C118: MRF | D118: 2021-06-24 | E118: 82601.55 | F118: 82613.70 | G118: 81893.70 | H118: 81185.85 | I118: 80465.85 | J118: 83321.55 | K118: 84041.55 | L118: 84749.40 | M118: 83333.7 | N118: 81905.85 | O118: 45900 | P118: -7.70%
A119: 109 | B119: Finance | C119: MUTHOOTFIN | D119: 2021-06-24 | E119: 1484.95 | F119: 1493.30 | G119: 1470.65 | H119: 1456.35 | I119: 1433.70 | J119: 1507.60 | K119: 1530.25 | L119: 1544.55 | M119: 1515.95 | N119: 1479 | O119: 3258750 | P119: 0.12%
A120: 110 | B120: Others | C120: NAM-INDIA | D120: 2021-06-24 | E120: 360.25 | F120: 361.60 | G120: 357.10 | H120: 353.95 | I120: 349.45 | J120: 364.75 | K120: 369.25 | L120: 372.40 | M120: 366.1 | N120: 358.45 | O120: 2742400 | P120: -0.52%
A121: 111 | B121: Metals | C121: NATIONALUM | D121: 2021-06-24 | E121: 68.65 | F121: 68.67 | G121: 66.58 | H121: 64.52 | I121: 62.43 | J121: 70.73 | K121: 72.82 | L121: 74.88 | M121: 70.75 | N121: 66.6 | O121: 82739000 | P121: -2.68%
A122: 112 | B122: Others | C122: NAUKRI | D122: 2021-06-24 | E122: 4937.25 | F122: 4902.45 | G122: 4853.90 | H122: 4770.55 | I122: 4722.00 | J122: 4985.80 | K122: 5034.35 | L122: 5117.70 | M122: 4951 | N122: 4819.1 | O122: 1325875 | P122: -2.45%
A123: 113 | B123: Chemical | C123: NAVINFLUOR | D123: 2021-06-24 | E123: 3376.90 | F123: 3369.13 | G123: 3319.27 | H123: 3261.63 | I123: 3211.77 | J123: 3426.77 | K123: 3476.63 | L123: 3534.27 | M123: 3419 | N123: 3311.5 | O123: 329850 | P123: -9.39%
A124: 114 | B124: FMCG | C124: NESTLEIND | D124: 2021-06-24 | E124: 18061.35 | F124: 18067.12 | G124: 17944.23 | H124: 17827.12 | I124: 17704.23 | J124: 18184.23 | K124: 18307.12 | L124: 18424.23 | M124: 18190 | N124: 17950 | O124: 230600 | P124: 3.80%
A125: 115 | B125: Metals | C125: NMDC | D125: 2021-06-24 | E125: 180.50 | F125: 179.33 | G125: 177.72 | H125: 174.93 | I125: 173.32 | J125: 182.12 | K125: 183.73 | L125: 186.52 | M125: 180.95 | N125: 176.55 | O125: 82939300 | P125: -0.63%
A126: 116 | B126: Power | C126: NTPC | D126: 2021-06-24 | E126: 117.50 | F126: 118.52 | G126: 116.23 | H126: 114.97 | I126: 112.68 | J126: 119.78 | K126: 122.07 | L126: 123.33 | M126: 120.8 | N126: 117.25 | O126: 76106400 | P126: 3.32%
A127: 117 | B127: Oil_Gas | C127: ONGC | D127: 2021-06-24 | E127: 125.10 | F127: 125.13 | G127: 123.47 | H127: 121.83 | I127: 120.17 | J127: 126.77 | K127: 128.43 | L127: 130.07 | M127: 126.8 | N127: 123.5 | O127: 72264500 | P127: 1.01%
A128: 118 | B128: Textile | C128: PAGEIND | D128: 2021-06-24 | E128: 29895.85 | F128: 29912.67 | G128: 29684.18 | H128: 29472.52 | I128: 29244.03 | J128: 30124.33 | K128: 30352.82 | L128: 30564.48 | M128: 30141.15 | N128: 29701 | O128: 83340 | P128: -1.52%
A129: 119 | B129: Pharma | C129: PEL | D129: 2021-06-24 | E129: 2170.95 | F129: 2182.28 | G129: 2133.67 | H129: 2096.38 | I129: 2047.77 | J129: 2219.57 | K129: 2268.18 | L129: 2305.47 | M129: 2230.9 | N129: 2145 | O129: 3375900 | P129: -1.04%
A130: 120 | B130: Oil_Gas | C130: PETRONET | D130: 2021-06-24 | E130: 229.05 | F130: 229.63 | G130: 227.57 | H130: 226.08 | I130: 224.02 | J130: 231.12 | K130: 233.18 | L130: 234.67 | M130: 231.7 | N130: 228.15 | O130: 31623000 | P130: 4.17%
A131: 121 | B131: Finance | C131: PFC | D131: 2021-06-24 | E131: 127.20 | F131: 127.45 | G131: 126.10 | H131: 125.00 | I131: 123.65 | J131: 128.55 | K131: 129.90 | L131: 131.00 | M131: 128.8 | N131: 126.35 | O131: 42773800 | P131: 3.95%
A132: 122 | B132: Pharma | C132: PFIZER | D132: 2021-06-24 | E132: 5413.60 | F132: 5437.80 | G132: 5345.65 | H132: 5277.70 | I132: 5185.55 | J132: 5505.75 | K132: 5597.90 | L132: 5665.85 | M132: 5529.95 | N132: 5369.85 | O132: 392375 | P132: -0.76%
A133: 123 | B133: FMCG | C133: PIDILITIND | D133: 2021-06-24 | E133: 2131.40 | F133: 2139.35 | G133: 2116.05 | H133: 2100.70 | I133: 2077.40 | J133: 2154.70 | K133: 2178.00 | L133: 2193.35 | M133: 2162.65 | N133: 2124 | O133: 2552500 | P133: -2.87%
A134: 124 | B134: Chemical | C134: PIIND | D134: 2021-06-24 | E134: 2863.40 | F134: 2874.27 | G134: 2839.13 | H134: 2814.87 | I134: 2779.73 | J134: 2898.53 | K134: 2933.67 | L134: 2957.93 | M134: 2909.4 | N134: 2850 | O134: 641250 | P134: -1.08%
A135: 125 | B135: Banking | C135: PNB | D135: 2021-06-24 | E135: 41.15 | F135: 41.23 | G135: 40.47 | H135: 39.78 | I135: 39.02 | J135: 41.92 | K135: 42.68 | L135: 43.37 | M135: 42 | N135: 40.55 | O135: 317568000 | P135: -3.79%
A136: 126 | B136: Power | C136: POWERGRID | D136: 2021-06-24 | E136: 240.40 | F136: 240.40 | G136: 237.45 | H136: 234.50 | I136: 231.55 | J136: 243.35 | K136: 246.30 | L136: 249.25 | M136: 243.35 | N136: 237.45 | O136: 24032000 | P136: 7.63%
A137: 127 | B137: Media | C137: PVR | D137: 2021-06-24 | E137: 1425.55 | F137: 1431.80 | G137: 1414.75 | H137: 1403.95 | I137: 1386.90 | J137: 1442.60 | K137: 1459.65 | L137: 1470.45 | M137: 1448.85 | N137: 1421 | O137: 1633291 | P137: -2.15%
A138: 128 | B138: Cement | C138: RAMCOCEM | D138: 2021-06-24 | E138: 1033.70 | F138: 1018.80 | G138: 991.15 | H138: 948.60 | I138: 920.95 | J138: 1061.35 | K138: 1089.00 | L138: 1131.55 | M138: 1046.45 | N138: 976.25 | O138: 1974550 | P138: -0.04%
A139: 129 | B139: Banking | C139: RBLBANK | D139: 2021-06-24 | E139: 209.80 | F139: 211.67 | G139: 206.98 | H139: 204.17 | I139: 199.48 | J139: 214.48 | K139: 219.17 | L139: 221.98 | M139: 216.35 | N139: 208.85 | O139: 24792100 | P139: 5.01%
A140: 130 | B140: Power | C140: RECLTD | D140: 2021-06-24 | E140: 150.55 | F140: 151.80 | G140: 148.10 | H140: 145.65 | I140: 141.95 | J140: 154.25 | K140: 157.95 | L140: 160.40 | M140: 155.5 | N140: 149.35 | O140: 24000000 | P140: 7.44%
A141: 131 | B141: Oil_Gas | C141: RELIANCE | D141: 2021-06-24 | E141: 2221.05 | F141: 2214.12 | G141: 2189.43 | H141: 2157.82 | I141: 2133.13 | J141: 2245.73 | K141: 2270.42 | L141: 2302.03 | M141: 2238.8 | N141: 2182.5 | O141: 36515000 | P141: 2.27%
A142: 132 | B142: Metals | C142: SAIL | D142: 2021-06-24 | E142: 128.45 | F142: 129.88 | G142: 125.97 | H142: 123.48 | I142: 119.57 | J142: 132.37 | K142: 136.28 | L142: 138.77 | M142: 133.8 | N142: 127.4 | O142: 170506000 | P142: 0.93%
A143: 133 | B143: Finance | C143: SBILIFE | D143: 2021-06-24 | E143: 986.30 | F143: 986.95 | G143: 979.85 | H143: 973.40 | I143: 966.30 | J143: 993.40 | K143: 1000.50 | L143: 1006.95 | M143: 994.05 | N143: 980.5 | O143: 6030750 | P143: 0.89%
A144: 134 | B144: Banking | C144: SBIN | D144: 2021-06-24 | E144: 420.55 | F144: 421.42 | G144: 416.13 | H144: 411.72 | I144: 406.43 | J144: 425.83 | K144: 431.12 | L144: 435.53 | M144: 426.7 | N144: 417 | O144: 85227000 | P144: 0.60%
A145: 135 | B145: Cement | C145: SHREECEM | D145: 2021-06-24 | E145: 28349.35 | F145: 28386.35 | G145: 27958.00 | H145: 27566.65 | I145: 27138.30 | J145: 28777.70 | K145: 29206.05 | L145: 29597.40 | M145: 28814.7 | N145: 27995 | O145: 133000 | P145: -2.80%
A146: 136 | B146: Capital_Goods | C146: SIEMENS | D146: 2021-06-24 | E146: 2016.55 | F146: 2022.70 | G146: 1999.85 | H146: 1983.15 | I146: 1960.30 | J146: 2039.40 | K146: 2062.25 | L146: 2078.95 | M146: 2045.55 | N146: 2006 | O146: 1065075 | P146: 2.38%
A147: 137 | B147: Textile | C147: SRF | D147: 2021-06-24 | E147: 7128.60 | F147: 7147.47 | G147: 7044.93 | H147: 6961.27 | I147: 6858.73 | J147: 7231.13 | K147: 7333.67 | L147: 7417.33 | M147: 7250 | N147: 7063.8 | O147: 306375 | P147: -0.69%
A148: 138 | B148: Finance | C148: SRTRANSFIN | D148: 2021-06-24 | E148: 1412.20 | F148: 1416.90 | G148: 1391.80 | H148: 1371.40 | I148: 1346.30 | J148: 1437.30 | K148: 1462.40 | L148: 1482.80 | M148: 1442 | N148: 1396.5 | O148: 4904000 | P148: -1.49%
A149: 139 | B149: Pharma | C149: SUNPHARMA | D149: 2021-06-24 | E149: 666.15 | F149: 667.65 | G149: 660.90 | H149: 655.65 | I149: 648.90 | J149: 672.90 | K149: 679.65 | L149: 684.90 | M149: 674.4 | N149: 662.4 | O149: 39482800 | P149: 0.36%
A150: 140 | B150: Media | C150: SUNTV | D150: 2021-06-24 | E150: 533.65 | F150: 533.05 | G150: 523.75 | H150: 513.85 | I150: 504.55 | J150: 542.95 | K150: 552.25 | L150: 562.15 | M150: 542.35 | N150: 523.15 | O150: 14176500 | P150: 18.11%
A151: 141 | B151: Chemical | C151: TATACHEM | D151: 2021-06-24 | E151: 725.75 | F151: 726.58 | G151: 710.67 | H151: 695.58 | I151: 679.67 | J151: 741.67 | K151: 757.58 | L151: 772.67 | M151: 742.5 | N151: 711.5 | O151: 7818000 | P151: -2.13%
A152: 142 | B152: FMCG | C152: TATACONSUM | D152: 2021-06-24 | E152: 744.80 | F152: 739.57 | G152: 732.48 | H152: 720.17 | I152: 713.08 | J152: 751.88 | K152: 758.97 | L152: 771.28 | M152: 746.65 | N152: 727.25 | O152: 7493850 | P152: 6.79%
A153: 143 | B153: Automobile | C153: TATAMOTORS | D153: 2021-06-24 | E153: 345.85 | F153: 347.13 | G153: 341.02 | H153: 336.18 | I153: 330.07 | J153: 351.97 | K153: 358.08 | L153: 362.92 | M153: 353.25 | N153: 342.3 | O153: 90071400 | P153: -0.54%
A154: 144 | B154: Power | C154: TATAPOWER | D154: 2021-06-24 | E154: 123.95 | F154: 124.35 | G154: 121.85 | H154: 119.75 | I154: 117.25 | J154: 126.45 | K154: 128.95 | L154: 131.05 | M154: 126.85 | N154: 122.25 | O154: 137585250 | P154: -5.55%
A155: 145 | B155: Metals | C155: TATASTEEL | D155: 2021-06-24 | E155: 1103.40 | F155: 1110.88 | G155: 1087.77 | H155: 1072.13 | I155: 1049.02 | J155: 1126.52 | K155: 1149.63 | L155: 1165.27 | M155: 1134 | N155: 1095.25 | O155: 50682950 | P155: 2.02%
A156: 146 | B156: Technology | C156: TCS | D156: 2021-06-24 | E156: 3324.30 | F156: 3309.82 | G156: 3281.03 | H156: 3237.77 | I156: 3208.98 | J156: 3353.08 | K156: 3381.87 | L156: 3425.13 | M156: 3338.6 | N156: 3266.55 | O156: 7606800 | P156: -0.40%
A157: 147 | B157: Technology | C157: TECHM | D157: 2021-06-24 | E157: 1080.85 | F157: 1075.30 | G157: 1066.50 | H157: 1052.15 | I157: 1043.35 | J157: 1089.65 | K157: 1098.45 | L157: 1112.80 | M157: 1084.1 | N157: 1060.95 | O157: 12490800 | P157: 0.40%
A158: 148 | B158: FMCG | C158: TITAN | D158: 2021-06-24 | E158: 1714.05 | F158: 1714.27 | G158: 1704.03 | H158: 1694.02 | I158: 1683.78 | J158: 1724.28 | K158: 1734.52 | L158: 1744.53 | M158: 1724.5 | N158: 1704.25 | O158: 4115250 | P158: -0.11%
A159: 149 | B159: Pharma | C159: TORNTPHARM | D159: 2021-06-24 | E159: 2951.15 | F159: 2919.98 | G159: 2882.12 | H159: 2813.08 | I159: 2775.22 | J159: 2989.02 | K159: 3026.88 | L159: 3095.92 | M159: 2957.85 | N159: 2850.95 | O159: 712250 | P159: -8.39%
A160: 150 | B160: Power | C160: TORNTPOWER | D160: 2021-06-24 | E160: 452.15 | F160: 455.00 | G160: 445.15 | H160: 438.15 | I160: 428.30 | J160: 462.00 | K160: 471.85 | L160: 478.85 | M160: 464.85 | N160: 448 | O160: 4443000 | P160: -4.61%
A161: 151 | B161: Others | C161: TRENT | D161: 2021-06-24 | E161: 857.55 | F161: 861.28 | G161: 825.97 | H161: 794.38 | I161: 759.07 | J161: 892.87 | K161: 928.18 | L161: 959.77 | M161: 896.6 | N161: 829.7 | O161: 1096200 | P161: 15.07%
A162: 152 | B162: Automobile | C162: TVSMOTOR | D162: 2021-06-24 | E162: 611.15 | F162: 613.55 | G162: 603.15 | H162: 595.15 | I162: 584.75 | J162: 621.55 | K162: 631.95 | L162: 639.95 | M162: 623.95 | N162: 605.55 | O162: 6717200 | P162: -1.62%
A163: 153 | B163: FMCG | C163: UBL | D163: 2021-06-24 | E163: 1405.90 | F163: 1398.22 | G163: 1373.78 | H163: 1341.67 | I163: 1317.23 | J163: 1430.33 | K163: 1454.77 | L163: 1486.88 | M163: 1422.65 | N163: 1366.1 | O163: 1881600 | P163: 17.28%
A164: 154 | B164: Cement | C164: ULTRACEMCO | D164: 2021-06-24 | E164: 6700.90 | F164: 6672.67 | G164: 6591.38 | H164: 6481.87 | I164: 6400.58 | J164: 6782.18 | K164: 6863.47 | L164: 6972.98 | M164: 6753.95 | N164: 6563.15 | O164: 2139500 | P164: -3.52%
A165: 155 | B165: Chemical | C165: UPL | D165: 2021-06-24 | E165: 834.80 | F165: 837.32 | G165: 825.88 | H165: 816.97 | I165: 805.53 | J165: 846.23 | K165: 857.67 | L165: 866.58 | M165: 848.75 | N165: 828.4 | O165: 18860400 | P165: 0.86%
A166: 156 | B166: Metals | C166: VEDL | D166: 2021-06-24 | E166: 261.40 | F166: 262.95 | G166: 257.00 | H166: 252.60 | I166: 246.65 | J166: 267.35 | K166: 273.30 | L166: 277.70 | M166: 268.9 | N166: 258.55 | O166: 123913200 | P166: 0.56%
A167: 157 | B167: Capital_Goods | C167: VOLTAS | D167: 2021-06-24 | E167: 1029.75 | F167: 1029.48 | G167: 1014.77 | H167: 999.78 | I167: 985.07 | J167: 1044.47 | K167: 1059.18 | L167: 1074.17 | M167: 1044.2 | N167: 1014.5 | O167: 3736000 | P167: 6.18%
A168: 158 | B168: Technology | C168: WIPRO | D168: 2021-06-24 | E168: 559.25 | F168: 557.30 | G168: 552.95 | H168: 546.65 | I168: 542.30 | J168: 563.60 | K168: 567.95 | L168: 574.25 | M168: 561.65 | N168: 551 | O168: 31625600 | P168: 3.09%
A169: 159 | B169: Media | C169: ZEEL | D169: 2021-06-24 | E169: 223.85 | F169: 226.10 | G169: 220.20 | H169: 216.55 | I169: 210.65 | J169: 229.75 | K169: 235.65 | L169: 239.30 | M169: 232 | N169: 222.45 | O169: 80106000 | P169: -1.74%
A175: Pivot Point: This is trigger point for intra day buy/sell based on the price range of the previous day
A176: As per the tool,the trader should take BUY position just above Pivot and keep the stop loss of pivot point and the first target would be Resistance 1(R1)
A177: If R1 is crossed then R2 becomes the next target with stop loss of at R1
A178: Similarly if price goes below pivot point then the trader should sell and keep a stop loss of pivot point and the first target would be S1
A179: If S1 is crossed then S2 becomes the next target with stop loss of at S1
A181: Disclaimer:
A182: This document has been prepared by the Retail Research Desk of Asit C Mehta
A183: Investment Intermediates Ltd. and is meant for use of the recipient only
A184: and is not for circulation. This document is not to be reported or
A185: copied or made available to others. It should not be considered to be
A186: taken as an offer to sell or a solicitation to buy any security. The
A187: information contained herein is from sources believed reliable. We do
A188: not represent that it is accurate or complete and it should not be
A189: relied upon as such. We may from time to time have positions in and buy
A190: and sell securities referred to herein

Sheet Cash Intra
M5: Back to Main Page
A6: FOR INTRA DAY TRADING | K6: =Main!B10 -> 2021-06-18
A8: Sr.no | C8: CLOSE RATE | D8: Pivot Point | E8: Supports | H8: Resistances
C9: Point | E9: S1 | F9: S2 | G9: S3 | H9: R1 | I9: R2 | J9: R3 | K9: HIGH | L9: LOW | M9: Total Trade Quanity in Lakhs
A10: 1 | B10: Nifty 50 | C10: 15691.4 | D10: 15692.50 | E10: 15615.65 | F10: 15539.90 | G10: 15463.05 | H10: 15768.25 | I10: 15845.10 | J10: 15920.85 | K10: 15769.35 | L10: 15616.75
A11: 2 | B11: Nifty Bank | C11: 34605.4 | D11: 34648.63 | E11: 34414.87 | F11: 34224.33 | G11: 33990.57 | H11: 34839.17 | I11: 35072.93 | J11: 35263.47 | K11: 34882.4 | L11: 34458.1
A12: 3 | B12: Nifty CPSE | C12: 2064.3 | D12: 2069.18 | E12: 2045.62 | F12: 2026.93 | G12: 2003.37 | H12: 2087.87 | I12: 2111.43 | J12: 2130.12 | K12: 2092.75 | L12: 2050.5
A13: 4 | B13: Nifty Infra | C13: 4391.05 | D13: 4398.43 | E13: 4361.67 | F13: 4332.28 | G13: 4295.52 | H13: 4427.82 | I13: 4464.58 | J13: 4493.97 | K13: 4435.2 | L13: 4369.05
A14: 5 | B14: Nifty IT | C14: 28611.35 | D14: 28556.33 | E14: 28398.07 | F14: 28184.78 | G14: 28026.52 | H14: 28769.62 | I14: 28927.88 | J14: 29141.17 | K14: 28714.6 | L14: 28343.05
A15: 6 | B15: Nifty PSE | C15: 3653.65 | D15: 3663.77 | E15: 3625.58 | F15: 3597.52 | G15: 3559.33 | H15: 3691.83 | I15: 3730.02 | J15: 3758.08 | K15: 3701.95 | L15: 3635.7
A16: 7 | B16: Nifty Midcap 50 | C16: 7432.4 | D16: 7467.10 | E16: 7366.00 | F16: 7299.60 | G16: 7198.50 | H16: 7533.50 | I16: 7634.60 | J16: 7701.00 | K16: 7568.2 | L16: 7400.7
A17: 8 | B17: ACC | C17: 2042.2 | D17: 2036.72 | E17: 2010.48 | F17: 1978.77 | G17: 1952.53 | H17: 2068.43 | I17: 2094.67 | J17: 2126.38 | K17: 2062.95 | L17: 2005 | M17: 4.12228
A18: 9 | B18: AUBANK | C18: 1026.3 | D18: 1030.00 | E18: 1003.65 | F18: 981.00 | G18: 954.65 | H18: 1052.65 | I18: 1079.00 | J18: 1101.65 | K18: 1056.35 | L18: 1007.35 | M18: 12.25606
A19: 10 | B19: AARTIIND | C19: 1811.8 | D19: 1813.45 | E19: 1787.00 | F19: 1762.20 | G19: 1735.75 | H19: 1838.25 | I19: 1864.70 | J19: 1889.50 | K19: 1839.9 | L19: 1788.65 | M19: 4.79666
A20: 11 | B20: ABBOTINDIA | C20: 16526.45 | D20: 16485.98 | E20: 16371.97 | F20: 16217.48 | G20: 16103.47 | H20: 16640.47 | I20: 16754.48 | J20: 16908.97 | K20: 16600 | L20: 16331.5 | M20: 0.09974
A21: 12 | B21: ADANIENT | C21: 1367.7 | D21: 1369.07 | E21: 1302.13 | F21: 1236.57 | G21: 1169.63 | H21: 1434.63 | I21: 1501.57 | J21: 1567.13 | K21: 1436 | L21: 1303.5 | M21: 279.2607
A22: 13 | B22: ADANIGREEN | C22: 1123.65 | D22: 1132.43 | E22: 1114.87 | F22: 1106.08 | G22: 1088.52 | H22: 1141.22 | I22: 1158.78 | J22: 1167.57 | K22: 1150 | L22: 1123.65 | M22: 17.09482
A23: 14 | B23: ADANIPORTS | C23: 646.9 | D23: 663.30 | E23: 621.95 | F23: 597.00 | G23: 555.65 | H23: 688.25 | I23: 729.60 | J23: 754.55 | K23: 704.65 | L23: 638.35 | M23: 708.12142
A24: 15 | B24: ATGL | C24: 1324.65 | D24: 1324.65 | E24: 1324.65 | F24: 1324.65 | G24: 1324.65 | H24: 1324.65 | I24: 1324.65 | J24: 1324.65 | K24: 1324.65 | L24: 1324.65 | M24: 0.2877
A25: 16 | B25: ADANITRANS | C25: 1305.4 | D25: 1305.40 | E25: 1305.40 | F25: 1305.40 | G25: 1305.40 | H25: 1305.40 | I25: 1305.40 | J25: 1305.40 | K25: 1305.4 | L25: 1305.4 | M25: 0.34906
A26: 17 | B26: ABCAPITAL | C26: 122.05 | D26: 122.90 | E26: 120.40 | F26: 118.75 | G26: 116.25 | H26: 124.55 | I26: 127.05 | J26: 128.70 | K26: 125.4 | L26: 121.25 | M26: 21.39479
A27: 18 | B27: ABFRL | C27: 201.5 | D27: 202.75 | E27: 198.75 | F27: 196.00 | G27: 192.00 | H27: 205.50 | I27: 209.50 | J27: 212.25 | K27: 206.75 | L27: 200 | M27: 16.6012
A28: 19 | B28: AJANTPHARM | C28: 1963.9 | D28: 1974.48 | E28: 1933.97 | F28: 1904.03 | G28: 1863.52 | H28: 2004.42 | I28: 2044.93 | J28: 2074.87 | K28: 2015 | L28: 1944.55 | M28: 0.8316
A29: 20 | B29: APLLTD | C29: 990.1 | D29: 983.25 | E29: 971.50 | F29: 952.90 | G29: 941.15 | H29: 1001.85 | I29: 1013.60 | J29: 1032.20 | K29: 995 | L29: 964.65 | M29: 4.09733
A30: 21 | B30: ALKEM | C30: 3167.3 | D30: 3161.93 | E30: 3139.07 | F30: 3110.83 | G30: 3087.97 | H30: 3190.17 | I30: 3213.03 | J30: 3241.27 | K30: 3184.8 | L30: 3133.7 | M30: 1.2387
A31: 22 | B31: AMARAJABAT | C31: 763.4 | D31: 766.68 | E31: 754.72 | F31: 746.03 | G31: 734.07 | H31: 775.37 | I31: 787.33 | J31: 796.02 | K31: 778.65 | L31: 758 | M31: 14.77262
A32: 23 | B32: AMBUJACEM | C32: 346.25 | D32: 343.72 | E32: 338.53 | F32: 330.82 | G32: 325.63 | H32: 351.43 | I32: 356.62 | J32: 364.33 | K32: 348.9 | L32: 336 | M32: 72.3911
A33: 24 | B33: APOLLOHOSP | C33: 3240.6 | D33: 3249.58 | E33: 3216.22 | F33: 3191.83 | G33: 3158.47 | H33: 3273.97 | I33: 3307.33 | J33: 3331.72 | K33: 3282.95 | L33: 3225.2 | M33: 3.56502
A34: 25 | B34: APOLLOTYRE | C34: 229.9 | D34: 231.03 | E34: 227.47 | F34: 225.03 | G34: 221.47 | H34: 233.47 | I34: 237.03 | J34: 239.47 | K34: 234.6 | L34: 228.6 | M34: 38.84976
A35: 26 | B35: ASHOKLEY | C35: 121.2 | D35: 121.98 | E35: 118.82 | F35: 116.43 | G35: 113.27 | H35: 124.37 | I35: 127.53 | J35: 129.92 | K35: 125.15 | L35: 119.6 | M35: 241.44227
A36: 27 | B36: ASIANPAINT | C36: 3060.3 | D36: 3044.92 | E36: 3015.88 | F36: 2971.47 | G36: 2942.43 | H36: 3089.33 | I36: 3118.37 | J36: 3162.78 | K36: 3073.95 | L36: 3000.5 | M36: 15.33864
A37: 28 | B37: AUROPHARMA | C37: 961.7 | D37: 965.92 | E37: 942.68 | F37: 923.67 | G37: 900.43 | H37: 984.93 | I37: 1008.17 | J37: 1027.18 | K37: 989.15 | L37: 946.9 | M37: 27.63925
A38: 29 | B38: DMART | C38: 3285.55 | D38: 3284.05 | E38: 3261.50 | F38: 3237.45 | G38: 3214.90 | H38: 3308.10 | I38: 3330.65 | J38: 3354.70 | K38: 3306.6 | L38: 3260 | M38: 2.90181
A39: 30 | B39: AXISBANK | C39: 738.6 | D39: 740.00 | E39: 734.60 | F39: 730.60 | G39: 725.20 | H39: 744.00 | I39: 749.40 | J39: 753.40 | K39: 745.4 | L39: 736 | M39: 66.74329
A40: 31 | B40: BAJAJ-AUTO | C40: 4053.9 | D40: 4071.98 | E40: 4023.97 | F40: 3994.03 | G40: 3946.02 | H40: 4101.92 | I40: 4149.93 | J40: 4179.87 | K40: 4120 | L40: 4042.05 | M40: 3.57704
A41: 32 | B41: BAJFINANCE | C41: 6050.25 | D41: 6028.42 | E41: 5941.83 | F41: 5833.42 | G41: 5746.83 | H41: 6136.83 | I41: 6223.42 | J41: 6331.83 | K41: 6115 | L41: 5920 | M41: 18.71857
A42: 33 | B42: BAJAJFINSV | C42: 11818.55 | D42: 11831.90 | E42: 11726.60 | F42: 11634.65 | G42: 11529.35 | H42: 11923.85 | I42: 12029.15 | J42: 12121.10 | K42: 11937.2 | L42: 11739.95 | M42: 2.2017
A43: 34 | B43: BAJAJHLDNG | C43: 3523.45 | D43: 3526.63 | E43: 3497.82 | F43: 3472.18 | G43: 3443.37 | H43: 3552.27 | I43: 3581.08 | J43: 3606.72 | K43: 3555.45 | L43: 3501 | M43: 0.19861
A44: 35 | B44: BALKRISIND | C44: 2304.1 | D44: 2282.48 | E44: 2242.02 | F44: 2179.93 | G44: 2139.47 | H44: 2344.57 | I44: 2385.03 | J44: 2447.12 | K44: 2322.95 | L44: 2220.4 | M44: 6.09177
A45: 36 | B45: BANDHANBNK | C45: 318.9 | D45: 317.80 | E45: 313.85 | F45: 308.80 | G45: 304.85 | H45: 322.85 | I45: 326.80 | J45: 331.85 | K45: 321.75 | L45: 312.75 | M45: 61.04981
A46: 37 | B46: BANKBARODA | C46: 81.9 | D46: 82.60 | E46: 80.60 | F46: 79.30 | G46: 77.30 | H46: 83.90 | I46: 85.90 | J46: 87.20 | K46: 84.6 | L46: 81.3 | M46: 509.72723
A47: 38 | B47: BANKINDIA | C47: 77.1 | D47: 77.60 | E47: 76.30 | F47: 75.50 | G47: 74.20 | H47: 78.40 | I47: 79.70 | J47: 80.50 | K47: 78.9 | L47: 76.8 | M47: 35.70633
A48: 39 | B48: BATAINDIA | C48: 1671.3 | D48: 1659.77 | E48: 1639.53 | F48: 1607.77 | G48: 1587.53 | H48: 1691.53 | I48: 1711.77 | J48: 1743.53 | K48: 1680 | L48: 1628 | M48: 6.64478
A49: 40 | B49: BERGEPAINT | C49: 820.3 | D49: 819.10 | E49: 808.25 | F49: 796.20 | G49: 785.35 | H49: 831.15 | I49: 842.00 | J49: 854.05 | K49: 829.95 | L49: 807.05 | M49: 6.43624
A50: 41 | B50: BEL | C50: 146.15 | D50: 146.85 | E50: 143.95 | F50: 141.75 | G50: 138.85 | H50: 149.05 | I50: 151.95 | J50: 154.15 | K50: 149.75 | L50: 144.65 | M50: 74.7318
A51: 42 | B51: BHARATFORG | C51: 725.05 | D51: 729.35 | E51: 718.90 | F51: 712.75 | G51: 702.30 | H51: 735.50 | I51: 745.95 | J51: 752.10 | K51: 739.8 | L51: 723.2 | M51: 21.10137
A52: 43 | B52: BHEL | C52: 65.5 | D52: 66.22 | E52: 64.43 | F52: 63.37 | G52: 61.58 | H52: 67.28 | I52: 69.07 | J52: 70.13 | K52: 68 | L52: 65.15 | M52: 575.32702
A53: 44 | B53: BPCL | C53: 476.9 | D53: 478.70 | E53: 474.50 | F53: 472.10 | G53: 467.90 | H53: 481.10 | I53: 485.30 | J53: 487.70 | K53: 482.9 | L53: 476.3 | M53: 33.25538
A54: 45 | B54: BHARTIARTL | C54: 528.65 | D54: 532.32 | E54: 523.38 | F54: 518.12 | G54: 509.18 | H54: 537.58 | I54: 546.52 | J54: 551.78 | K54: 541.25 | L54: 527.05 | M54: 100.26485
A55: 46 | B55: BIOCON | C55: 398.65 | D55: 400.48 | E55: 394.22 | F55: 389.78 | G55: 383.52 | H55: 404.92 | I55: 411.18 | J55: 415.62 | K55: 406.75 | L55: 396.05 | M55: 13.90138
A56: 47 | B56: BBTC | C56: 1340.85 | D56: 1346.03 | E56: 1315.77 | F56: 1290.68 | G56: 1260.42 | H56: 1371.12 | I56: 1401.38 | J56: 1426.47 | K56: 1376.3 | L56: 1320.95 | M56: 2.2958
A57: 48 | B57: BOSCHLTD | C57: 15399.85 | D57: 15514.00 | E57: 15260.85 | F57: 15121.85 | G57: 14868.70 | H57: 15653.00 | I57: 15906.15 | J57: 16045.15 | K57: 15767.15 | L57: 15375 | M57: 0.41012
A58: 49 | B58: BRITANNIA | C58: 3658.15 | D58: 3643.55 | E58: 3624.10 | F58: 3590.05 | G58: 3570.60 | H58: 3677.60 | I58: 3697.05 | J58: 3731.10 | K58: 3663 | L58: 3609.5 | M58: 3.00185
A59: 50 | B59: CESC | C59: 780.4 | D59: 791.40 | E59: 762.80 | F59: 745.20 | G59: 716.60 | H59: 809.00 | I59: 837.60 | J59: 855.20 | K59: 820 | L59: 773.8 | M59: 47.55377
A60: 51 | B60: CADILAHC | C60: 620.25 | D60: 623.65 | E60: 613.70 | F60: 607.15 | G60: 597.20 | H60: 630.20 | I60: 640.15 | J60: 646.70 | K60: 633.6 | L60: 617.1 | M60: 65.31958
A61: 52 | B61: CANBK | C61: 151.35 | D61: 151.75 | E61: 149.10 | F61: 146.85 | G61: 144.20 | H61: 154.00 | I61: 156.65 | J61: 158.90 | K61: 154.4 | L61: 149.5 | M61: 126.9905
A62: 53 | B62: CASTROLIND | C62: 147.8 | D62: 148.55 | E62: 145.40 | F62: 143.00 | G62: 139.85 | H62: 150.95 | I62: 154.10 | J62: 156.50 | K62: 151.7 | L62: 146.15 | M62: 14.80415
A63: 54 | B63: CHOLAFIN | C63: 549.8 | D63: 553.43 | E63: 541.42 | F63: 533.03 | G63: 521.02 | H63: 561.82 | I63: 573.83 | J63: 582.22 | K63: 565.45 | L63: 545.05 | M63: 17.99072
A64: 55 | B64: CIPLA | C64: 950.95 | D64: 951.40 | E64: 943.05 | F64: 935.15 | G64: 926.80 | H64: 959.30 | I64: 967.65 | J64: 975.55 | K64: 959.75 | L64: 943.5 | M64: 24.29291
A65: 56 | B65: CUB | C65: 165.75 | D65: 165.43 | E65: 163.87 | F65: 161.98 | G65: 160.42 | H65: 167.32 | I65: 168.88 | J65: 170.77 | K65: 167 | L65: 163.55 | M65: 20.62415
A66: 57 | B66: COALINDIA | C66: 152.15 | D66: 152.98 | E66: 150.57 | F66: 148.98 | G66: 146.57 | H66: 154.57 | I66: 156.98 | J66: 158.57 | K66: 155.4 | L66: 151.4 | M66: 157.84276
A67: 58 | B67: COFORGE | C67: 3978.6 | D67: 3978.43 | E67: 3941.32 | F67: 3904.03 | G67: 3866.92 | H67: 4015.72 | I67: 4052.83 | J67: 4090.12 | K67: 4015.55 | L67: 3941.15 | M67: 2.29866
A68: 59 | B68: COLPAL | C68: 1714.95 | D68: 1718.03 | E68: 1704.07 | F68: 1693.18 | G68: 1679.22 | H68: 1728.92 | I68: 1742.88 | J68: 1753.77 | K68: 1732 | L68: 1707.15 | M68: 5.88937
A69: 60 | B69: CONCOR | C69: 677.65 | D69: 682.27 | E69: 666.93 | F69: 656.22 | G69: 640.88 | H69: 692.98 | I69: 708.32 | J69: 719.03 | K69: 697.6 | L69: 671.55 | M69: 21.3283
A70: 61 | B70: COROMANDEL | C70: 884.55 | D70: 880.37 | E70: 862.23 | F70: 839.92 | G70: 821.78 | H70: 902.68 | I70: 920.82 | J70: 943.13 | K70: 898.5 | L70: 858.05 | M70: 12.98917
A71: 62 | B71: CROMPTON | C71: 422.25 | D71: 423.53 | E71: 417.92 | F71: 413.58 | G71: 407.97 | H71: 427.87 | I71: 433.48 | J71: 437.82 | K71: 429.15 | L71: 419.2 | M71: 7.60982
A72: 63 | B72: CUMMINSIND | C72: 839.4 | D72: 839.93 | E72: 830.97 | F72: 822.53 | G72: 813.57 | H72: 848.37 | I72: 857.33 | J72: 865.77 | K72: 848.9 | L72: 831.5 | M72: 10.99474
A73: 64 | B73: DLF | C73: 296.9 | D73: 299.32 | E73: 292.33 | F73: 287.77 | G73: 280.78 | H73: 303.88 | I73: 310.87 | J73: 315.43 | K73: 306.3 | L73: 294.75 | M73: 69.06253
A74: 65 | B74: DABUR | C74: 573.2 | D74: 574.80 | E74: 568.60 | F74: 564.00 | G74: 557.80 | H74: 579.40 | I74: 585.60 | J74: 590.20 | K74: 581 | L74: 570.2 | M74: 15.1292
A75: 66 | B75: DALBHARAT | C75: 1805.1 | D75: 1818.35 | E75: 1786.75 | F75: 1768.40 | G75: 1736.80 | H75: 1836.70 | I75: 1868.30 | J75: 1886.65 | K75: 1849.95 | L75: 1800 | M75: 1.00506
A76: 67 | B76: DHANI | C76: 195.3 | D76: 197.50 | E76: 192.00 | F76: 188.70 | G76: 183.20 | H76: 200.80 | I76: 206.30 | J76: 209.60 | K76: 203 | L76: 194.2 | M76: 5.93698
A77: 68 | B77: DIVISLAB | C77: 4302.35 | D77: 4299.27 | E77: 4274.08 | F77: 4245.82 | G77: 4220.63 | H77: 4327.53 | I77: 4352.72 | J77: 4380.98 | K77: 4324.45 | L77: 4271 | M77: 2.05565
A78: 69 | B78: LALPATHLAB | C78: 3150.15 | D78: 3141.60 | E78: 3113.20 | F78: 3076.25 | G78: 3047.85 | H78: 3178.55 | I78: 3206.95 | J78: 3243.90 | K78: 3170 | L78: 3104.65 | M78: 1.67201
A79: 70 | B79: DRREDDY | C79: 5286.5 | D79: 5316.35 | E79: 5218.70 | F79: 5150.90 | G79: 5053.25 | H79: 5384.15 | I79: 5481.80 | J79: 5549.60 | K79: 5414 | L79: 5248.55 | M79: 7.07232
A80: 71 | B80: EDELWEISS | C80: 71.85 | D80: 72.35 | E80: 70.20 | F80: 68.55 | G80: 66.40 | H80: 74.00 | I80: 76.15 | J80: 77.80 | K80: 74.5 | L80: 70.7 | M80: 32.51568
A81: 72 | B81: EICHERMOT | C81: 2673.75 | D81: 2703.78 | E81: 2634.67 | F81: 2595.58 | G81: 2526.47 | H81: 2742.87 | I81: 2811.98 | J81: 2851.07 | K81: 2772.9 | L81: 2664.7 | M81: 7.0197
A82: 73 | B82: EMAMILTD | C82: 545.9 | D82: 548.22 | E82: 540.98 | F82: 536.07 | G82: 528.83 | H82: 553.13 | I82: 560.37 | J82: 565.28 | K82: 555.45 | L82: 543.3 | M82: 7.98986
A83: 74 | B83: ENDURANCE | C83: 1574.35 | D83: 1574.68 | E83: 1544.67 | F83: 1514.98 | G83: 1484.97 | H83: 1604.37 | I83: 1634.38 | J83: 1664.07 | K83: 1604.7 | L83: 1545 | M83: 1.29657
A84: 75 | B84: ESCORTS | C84: 1165.45 | D84: 1170.48 | E84: 1154.97 | F84: 1144.48 | G84: 1128.97 | H84: 1180.97 | I84: 1196.48 | J84: 1206.97 | K84: 1186 | L84: 1160 | M84: 13.66129
A85: 76 | B85: EXIDEIND | C85: 187.75 | D85: 188.57 | E85: 186.18 | F85: 184.62 | G85: 182.23 | H85: 190.13 | I85: 192.52 | J85: 194.08 | K85: 190.95 | L85: 187 | M85: 16.79671
A86: 77 | B86: FEDERALBNK | C86: 85.35 | D86: 85.35 | E86: 84.25 | F86: 83.15 | G86: 82.05 | H86: 86.45 | I86: 87.55 | J86: 88.65 | K86: 86.45 | L86: 84.25 | M86: 211.8994
A87: 78 | B87: FORTIS | C87: 233.95 | D87: 236.03 | E87: 230.07 | F87: 226.18 | G87: 220.22 | H87: 239.92 | I87: 245.88 | J87: 249.77 | K87: 242 | L87: 232.15 | M87: 26.50207
A88: 79 | B88: FRETAIL | C88: 65.6 | D88: 65.60 | E88: 65.60 | F88: 65.60 | G88: 65.60 | H88: 65.60 | I88: 65.60 | J88: 65.60 | K88: 65.6 | L88: 65.6 | M88: 5.29448
A89: 80 | B89: GAIL | C89: 160.5 | D89: 160.95 | E89: 158.25 | F89: 156.00 | G89: 153.30 | H89: 163.20 | I89: 165.90 | J89: 168.15 | K89: 163.65 | L89: 158.7 | M89: 101.1332
A90: 81 | B90: GMRINFRA | C90: 28.75 | D90: 29.10 | E90: 28.15 | F90: 27.55 | G90: 26.60 | H90: 29.70 | I90: 30.65 | J90: 31.25 | K90: 30.05 | L90: 28.5 | M90: 411.10436
A91: 82 | B91: GICRE | C91: 203.45 | D91: 204.48 | E91: 200.07 | F91: 196.68 | G91: 192.27 | H91: 207.87 | I91: 212.28 | J91: 215.67 | K91: 208.9 | L91: 201.1 | M91: 40.38045
A92: 83 | B92: GLENMARK | C92: 639.5 | D92: 641.00 | E92: 628.50 | F92: 617.50 | G92: 605.00 | H92: 652.00 | I92: 664.50 | J92: 675.50 | K92: 653.5 | L92: 630 | M92: 27.09838
A93: 84 | B93: GODREJAGRO | C93: 557.65 | D93: 558.12 | E93: 551.73 | F93: 545.82 | G93: 539.43 | H93: 564.03 | I93: 570.42 | J93: 576.33 | K93: 564.5 | L93: 552.2 | M93: 1.84121
A94: 85 | B94: GODREJCP | C94: 908 | D94: 908.62 | E94: 900.23 | F94: 892.47 | G94: 884.08 | H94: 916.38 | I94: 924.77 | J94: 932.53 | K94: 917 | L94: 900.85 | M94: 9.53217
A95: 86 | B95: GODREJIND | C95: 533.75 | D95: 535.08 | E95: 529.67 | F95: 525.58 | G95: 520.17 | H95: 539.17 | I95: 544.58 | J95: 548.67 | K95: 540.5 | L95: 531 | M95: 0.68273
A96: 87 | B96: GODREJPROP | C96: 1392.05 | D96: 1400.02 | E96: 1373.03 | F96: 1354.02 | G96: 1327.03 | H96: 1419.03 | I96: 1446.02 | J96: 1465.03 | K96: 1427 | L96: 1381 | M96: 4.97764
A97: 88 | B97: GRASIM | C97: 1458.2 | D97: 1466.47 | E97: 1442.28 | F97: 1426.37 | G97: 1402.18 | H97: 1482.38 | I97: 1506.57 | J97: 1522.48 | K97: 1490.65 | L97: 1450.55 | M97: 7.95435
A98: 89 | B98: GUJGASLTD | C98: 659.65 | D98: 653.55 | E98: 632.10 | F98: 604.55 | G98: 583.10 | H98: 681.10 | I98: 702.55 | J98: 730.10 | K98: 675 | L98: 626 | M98: 69.0811
A99: 90 | B99: GSPL | C99: 320.9 | D99: 317.97 | E99: 309.93 | F99: 298.97 | G99: 290.93 | H99: 328.93 | I99: 336.97 | J99: 347.93 | K99: 326 | L99: 307 | M99: 28.03071
A100: 91 | B100: HCLTECH | C100: 986.4 | D100: 984.63 | E100: 980.32 | F100: 974.23 | G100: 969.92 | H100: 990.72 | I100: 995.03 | J100: 1001.12 | K100: 988.95 | L100: 978.55 | M100: 36.09989
A101: 92 | B101: HDFCAMC | C101: 3012.3 | D101: 3008.75 | E101: 2987.55 | F101: 2962.80 | G101: 2941.60 | H101: 3033.50 | I101: 3054.70 | J101: 3079.45 | K101: 3029.95 | L101: 2984 | M101: 1.81349
A102: 93 | B102: HDFCBANK | C102: 1466.1 | D102: 1468.28 | E102: 1457.82 | F102: 1449.53 | G102: 1439.07 | H102: 1476.57 | I102: 1487.03 | J102: 1495.32 | K102: 1478.75 | L102: 1460 | M102: 46.41901
A103: 94 | B103: HDFCLIFE | C103: 700.3 | D103: 695.48 | E103: 687.12 | F103: 673.93 | G103: 665.57 | H103: 708.67 | I103: 717.03 | J103: 730.22 | K103: 703.85 | L103: 682.3 | M103: 37.96926
A104: 95 | B104: HAVELLS | C104: 997.75 | D104: 999.18 | E104: 989.57 | F104: 981.38 | G104: 971.77 | H104: 1007.37 | I104: 1016.98 | J104: 1025.17 | K104: 1008.8 | L104: 991 | M104: 13.34851
A105: 96 | B105: HEROMOTOCO | C105: 2914.1 | D105: 2925.02 | E105: 2891.08 | F105: 2868.07 | G105: 2834.13 | H105: 2948.03 | I105: 2981.97 | J105: 3004.98 | K105: 2958.95 | L105: 2902 | M105: 7.82315
A106: 97 | B106: HINDALCO | C106: 369.25 | D106: 371.53 | E106: 362.77 | F106: 356.28 | G106: 347.52 | H106: 378.02 | I106: 386.78 | J106: 393.27 | K106: 380.3 | L106: 365.05 | M106: 143.21673
A107: 98 | B107: HINDPETRO | C107: 309 | D107: 308.00 | E107: 304.00 | F107: 299.00 | G107: 295.00 | H107: 313.00 | I107: 317.00 | J107: 322.00 | K107: 312 | L107: 303 | M107: 86.51884
A108: 99 | B108: HINDUNILVR | C108: 2417.7 | D108: 2410.00 | E108: 2394.10 | F108: 2370.50 | G108: 2354.60 | H108: 2433.60 | I108: 2449.50 | J108: 2473.10 | K108: 2425.9 | L108: 2386.4 | M108: 15.55777
A109: 100 | B109: HINDZINC | C109: 334.15 | D109: 331.55 | E109: 327.50 | F109: 320.85 | G109: 316.80 | H109: 338.20 | I109: 342.25 | J109: 348.90 | K109: 335.6 | L109: 324.9 | M109: 22.34016
A110: 101 | B110: HUDCO | C110: 51.45 | D110: 51.57 | E110: 50.53 | F110: 49.62 | G110: 48.58 | H110: 52.48 | I110: 53.52 | J110: 54.43 | K110: 52.6 | L110: 50.65 | M110: 30.99424
A111: 102 | B111: HDFC | C111: 2487.3 | D111: 2492.15 | E111: 2477.35 | F111: 2467.40 | G111: 2452.60 | H111: 2502.10 | I111: 2516.90 | J111: 2526.85 | K111: 2506.95 | L111: 2482.2 | M111: 26.5785
A112: 103 | B112: ICICIBANK | C112: 633 | D112: 632.42 | E112: 627.28 | F112: 621.57 | G112: 616.43 | H112: 638.13 | I112: 643.27 | J112: 648.98 | K112: 637.55 | L112: 626.7 | M112: 97.2006
A113: 104 | B113: ICICIGI | C113: 1508.1 | D113: 1509.37 | E113: 1488.73 | F113: 1469.37 | G113: 1448.73 | H113: 1528.73 | I113: 1549.37 | J113: 1568.73 | K113: 1530 | L113: 1490 | M113: 5.67744
A114: 105 | B114: ICICIPRULI | C114: 589.95 | D114: 584.25 | E114: 575.50 | F114: 561.05 | G114: 552.30 | H114: 598.70 | I114: 607.45 | J114: 621.90 | K114: 593 | L114: 569.8 | M114: 18.04775
A115: 106 | B115: ISEC | C115: 635.8 | D115: 639.43 | E115: 624.47 | F115: 613.13 | G115: 598.17 | H115: 650.77 | I115: 665.73 | J115: 677.07 | K115: 654.4 | L115: 628.1 | M115: 7.29349
A116: 107 | B116: IDFCFIRSTB | C116: 57.8 | D116: 58.25 | E116: 57.05 | F116: 56.30 | G116: 55.10 | H116: 59.00 | I116: 60.20 | J116: 60.95 | K116: 59.45 | L116: 57.5 | M116: 310.56039
A117: 108 | B117: ITC | C117: 205.65 | D117: 206.22 | E117: 204.43 | F117: 203.22 | G117: 201.43 | H117: 207.43 | I117: 209.22 | J117: 210.43 | K117: 208 | L117: 205 | M117: 214.76893
A118: 109 | B118: IBULHSGFIN | C118: 283.7 | D118: 288.80 | E118: 276.10 | F118: 268.50 | G118: 255.80 | H118: 296.40 | I118: 309.10 | J118: 316.70 | K118: 301.5 | L118: 281.2 | M118: 310.84828
A119: 110 | B119: INDHOTEL | C119: 129.8 | D119: 131.50 | E119: 127.50 | F119: 125.20 | G119: 121.20 | H119: 133.80 | I119: 137.80 | J119: 140.10 | K119: 135.5 | L119: 129.2 | M119: 30.20804
A120: 111 | B120: IOC | C120: 114.6 | D120: 114.98 | E120: 113.67 | F120: 112.73 | G120: 111.42 | H120: 115.92 | I120: 117.23 | J120: 118.17 | K120: 116.3 | L120: 114.05 | M120: 95.55157
A121: 112 | B121: IRCTC | C121: 2050.4 | D121: 2058.58 | E121: 2028.22 | F121: 2006.03 | G121: 1975.67 | H121: 2080.77 | I121: 2111.13 | J121: 2133.32 | K121: 2088.95 | L121: 2036.4 | M121: 7.54284
A122: 113 | B122: IGL | C122: 535.95 | D122: 535.18 | E122: 528.77 | F122: 521.58 | G122: 515.17 | H122: 542.37 | I122: 548.78 | J122: 555.97 | K122: 541.6 | L122: 528 | M122: 21.44196
A123: 114 | B123: INDUSTOWER | C123: 247.4 | D123: 249.85 | E123: 243.80 | F123: 240.20 | G123: 234.15 | H123: 253.45 | I123: 259.50 | J123: 263.10 | K123: 255.9 | L123: 246.25 | M123: 20.92488
A124: 115 | B124: INDUSINDBK | C124: 984.05 | D124: 991.28 | E124: 960.77 | F124: 937.48 | G124: 906.97 | H124: 1014.57 | I124: 1045.08 | J124: 1068.37 | K124: 1021.8 | L124: 968 | M124: 61.26591
A125: 116 | B125: NAUKRI | C125: 4948.05 | D125: 4911.02 | E125: 4862.03 | F125: 4776.02 | G125: 4727.03 | H125: 4997.03 | I125: 5046.02 | J125: 5132.03 | K125: 4960 | L125: 4825 | M125: 5.35237
A126: 117 | B126: INFY | C126: 1495.3 | D126: 1491.02 | E126: 1479.38 | F126: 1463.47 | G126: 1451.83 | H126: 1506.93 | I126: 1518.57 | J126: 1534.48 | K126: 1502.65 | L126: 1475.1 | M126: 76.77951
A127: 118 | B127: INDIGO | C127: 1707.5 | D127: 1713.83 | E127: 1689.37 | F127: 1671.23 | G127: 1646.77 | H127: 1731.97 | I127: 1756.43 | J127: 1774.57 | K127: 1738.3 | L127: 1695.7 | M127: 8.35755
A128: 119 | B128: IPCALAB | C128: 2028.65 | D128: 2037.48 | E128: 2009.92 | F128: 1991.18 | G128: 1963.62 | H128: 2056.22 | I128: 2083.78 | J128: 2102.52 | K128: 2065.05 | L128: 2018.75 | M128: 2.11149
A129: 120 | B129: JSWENERGY | C129: 161.05 | D129: 161.62 | E129: 157.23 | F129: 153.42 | G129: 149.03 | H129: 165.43 | I129: 169.82 | J129: 173.63 | K129: 166 | L129: 157.8 | M129: 61.63325
A130: 121 | B130: JSWSTEEL | C130: 696.35 | D130: 700.27 | E130: 689.53 | F130: 682.72 | G130: 671.98 | H130: 707.08 | I130: 717.82 | J130: 724.63 | K130: 711 | L130: 693.45 | M130: 56.39158
A131: 122 | B131: JINDALSTEL | C131: 395.5 | D131: 399.85 | E131: 388.00 | F131: 380.50 | G131: 368.65 | H131: 407.35 | I131: 419.20 | J131: 426.70 | K131: 411.7 | L131: 392.35 | M131: 103.54231
A132: 123 | B132: JUBLFOOD | C132: 3253.6 | D132: 3245.45 | E132: 3201.40 | F132: 3149.20 | G132: 3105.15 | H132: 3297.65 | I132: 3341.70 | J132: 3393.90 | K132: 3289.5 | L132: 3193.25 | M132: 10.95758
A133: 124 | B133: KOTAKBANK | C133: 1766.05 | D133: 1757.95 | E133: 1744.10 | F133: 1722.15 | G133: 1708.30 | H133: 1779.90 | I133: 1793.75 | J133: 1815.70 | K133: 1771.8 | L133: 1736 | M133: 25.78242
A134: 125 | B134: L&TFH | C134: 93.95 | D134: 94.45 | E134: 92.55 | F134: 91.15 | G134: 89.25 | H134: 95.85 | I134: 97.75 | J134: 99.15 | K134: 96.35 | L134: 93.05 | M134: 156.77255
A135: 126 | B135: LTTS | C135: 2808.2 | D135: 2805.87 | E135: 2756.18 | F135: 2704.17 | G135: 2654.48 | H135: 2857.88 | I135: 2907.57 | J135: 2959.58 | K135: 2855.55 | L135: 2753.85 | M135: 1.36929
A136: 127 | B136: LICHSGFIN | C136: 482.1 | D136: 486.17 | E136: 474.33 | F136: 466.57 | G136: 454.73 | H136: 493.93 | I136: 505.77 | J136: 513.53 | K136: 498 | L136: 478.4 | M136: 98.89063
A137: 128 | B137: LTI | C137: 4170.2 | D137: 4173.53 | E137: 4131.07 | F137: 4091.93 | G137: 4049.47 | H137: 4212.67 | I137: 4255.13 | J137: 4294.27 | K137: 4216 | L137: 4134.4 | M137: 2.97058
A138: 129 | B138: LT | C138: 1487.55 | D138: 1489.22 | E138: 1478.58 | F138: 1469.62 | G138: 1458.98 | H138: 1498.18 | I138: 1508.82 | J138: 1517.78 | K138: 1499.85 | L138: 1480.25 | M138: 16.75778
A139: 130 | B139: LUPIN | C139: 1162.75 | D139: 1165.77 | E139: 1149.98 | F139: 1137.22 | G139: 1121.43 | H139: 1178.53 | I139: 1194.32 | J139: 1207.08 | K139: 1181.55 | L139: 1153 | M139: 12.8718
A140: 131 | B140: MRF | C140: 82676.4 | D140: 82599.43 | E140: 81903.02 | F140: 81129.63 | G140: 80433.22 | H140: 83372.82 | I140: 84069.23 | J140: 84842.62 | K140: 83295.85 | L140: 81826.05 | M140: 0.1477
A141: 132 | B141: MGL | C141: 1244.75 | D141: 1253.48 | E141: 1222.57 | F141: 1200.38 | G141: 1169.47 | H141: 1275.67 | I141: 1306.58 | J141: 1328.77 | K141: 1284.4 | L141: 1231.3 | M141: 10.85735
A142: 133 | B142: M&MFIN | C142: 162.75 | D142: 164.55 | E142: 160.20 | F142: 157.65 | G142: 153.30 | H142: 167.10 | I142: 171.45 | J142: 174.00 | K142: 168.9 | L142: 162 | M142: 141.81946
A143: 134 | B143: M&M | C143: 805.7 | D143: 802.72 | E143: 795.53 | F143: 785.37 | G143: 778.18 | H143: 812.88 | I143: 820.07 | J143: 830.23 | K143: 809.9 | L143: 792.55 | M143: 19.88175
A144: 135 | B144: MANAPPURAM | C144: 163.4 | D144: 164.35 | E144: 161.45 | F144: 159.50 | G144: 156.60 | H144: 166.30 | I144: 169.20 | J144: 171.15 | K144: 167.25 | L144: 162.4 | M144: 56.05277
A145: 136 | B145: MARICO | C145: 518.3 | D145: 515.43 | E145: 508.87 | F145: 499.43 | G145: 492.87 | H145: 524.87 | I145: 531.43 | J145: 540.87 | K145: 522 | L145: 506 | M145: 56.78797
A146: 137 | B146: MARUTI | C146: 6969.35 | D146: 6999.85 | E146: 6900.60 | F146: 6831.85 | G146: 6732.60 | H146: 7068.60 | I146: 7167.85 | J146: 7236.60 | K146: 7099.1 | L146: 6931.1 | M146: 5.95255
A147: 138 | B147: MFSL | C147: 1005 | D147: 1010.35 | E147: 981.30 | F147: 957.60 | G147: 928.55 | H147: 1034.05 | I147: 1063.10 | J147: 1086.80 | K147: 1039.4 | L147: 986.65 | M147: 99.39255
A148: 139 | B148: MINDTREE | C148: 2477.45 | D148: 2478.48 | E148: 2448.97 | F148: 2420.48 | G148: 2390.97 | H148: 2506.97 | I148: 2536.48 | J148: 2564.97 | K148: 2508 | L148: 2450 | M148: 5.11391
A149: 140 | B149: MOTHERSUMI | C149: 239.6 | D149: 240.50 | E149: 236.15 | F149: 232.70 | G149: 228.35 | H149: 243.95 | I149: 248.30 | J149: 251.75 | K149: 244.85 | L149: 237.05 | M149: 116.23569
A150: 141 | B150: MPHASIS | C150: 2039.55 | D150: 2064.20 | E150: 1994.85 | F150: 1950.15 | G150: 1880.80 | H150: 2108.90 | I150: 2178.25 | J150: 2222.95 | K150: 2133.55 | L150: 2019.5 | M150: 8.5184
A151: 142 | B151: MUTHOOTFIN | C151: 1482.7 | D151: 1490.22 | E151: 1469.13 | F151: 1455.57 | G151: 1434.48 | H151: 1503.78 | I151: 1524.87 | J151: 1538.43 | K151: 1511.3 | L151: 1476.65 | M151: 11.54828
A152: 143 | B152: NATCOPHARM | C152: 1082.3 | D152: 1095.80 | E152: 1061.60 | F152: 1040.90 | G152: 1006.70 | H152: 1116.50 | I152: 1150.70 | J152: 1171.40 | K152: 1130 | L152: 1075.1 | M152: 7.78754
A153: 144 | B153: NMDC | C153: 179.8 | D153: 178.83 | E153: 177.17 | F153: 174.53 | G153: 172.87 | H153: 181.47 | I153: 183.13 | J153: 185.77 | K153: 180.5 | L153: 176.2 | M153: 117.4645
A154: 145 | B154: NTPC | C154: 117.4 | D154: 118.32 | E154: 116.03 | F154: 114.67 | G154: 112.38 | H154: 119.68 | I154: 121.97 | J154: 123.33 | K154: 120.6 | L154: 116.95 | M154: 144.66025
A155: 146 | B155: NATIONALUM | C155: 68.65 | D155: 68.85 | E155: 66.80 | F155: 64.95 | G155: 62.90 | H155: 70.70 | I155: 72.75 | J155: 74.60 | K155: 70.9 | L155: 67 | M155: 227.9605
A156: 147 | B156: NAVINFLUOR | C156: 3376.25 | D156: 3368.60 | E156: 3312.30 | F156: 3248.35 | G156: 3192.05 | H156: 3432.55 | I156: 3488.85 | J156: 3552.80 | K156: 3424.9 | L156: 3304.65 | M156: 2.73913
A157: 148 | B157: NESTLEIND | C157: 18059.05 | D157: 18049.45 | E157: 17909.60 | F157: 17760.15 | G157: 17620.30 | H157: 18198.90 | I157: 18338.75 | J157: 18488.20 | K157: 18189.3 | L157: 17900 | M157: 0.75787
A158: 149 | B158: NAM-INDIA | C158: 360.6 | D158: 361.83 | E158: 357.17 | F158: 353.73 | G158: 349.07 | H158: 365.27 | I158: 369.93 | J158: 373.37 | K158: 366.5 | L158: 358.4 | M158: 9.3335
A159: 150 | B159: OBEROIRLTY | C159: 633.15 | D159: 635.42 | E159: 621.83 | F159: 610.52 | G159: 596.93 | H159: 646.73 | I159: 660.32 | J159: 671.63 | K159: 649 | L159: 624.1 | M159: 3.14519
A160: 151 | B160: ONGC | C160: 125.1 | D160: 125.20 | E160: 123.40 | F160: 121.70 | G160: 119.90 | H160: 126.90 | I160: 128.70 | J160: 130.40 | K160: 127 | L160: 123.5 | M160: 181.24616
A161: 152 | B161: OIL | C161: 146.1 | D161: 146.40 | E161: 144.30 | F161: 142.50 | G161: 140.40 | H161: 148.20 | I161: 150.30 | J161: 152.10 | K161: 148.5 | L161: 144.6 | M161: 8.90029
A162: 153 | B162: OFSS | C162: 3581.75 | D162: 3610.53 | E162: 3526.07 | F162: 3470.38 | G162: 3385.92 | H162: 3666.22 | I162: 3750.68 | J162: 3806.37 | K162: 3695 | L162: 3554.85 | M162: 1.59299
A163: 154 | B163: PIIND | C163: 2859.8 | D163: 2844.32 | E163: 2774.43 | F163: 2689.07 | G163: 2619.18 | H163: 2929.68 | I163: 2999.57 | J163: 3084.93 | K163: 2914.2 | L163: 2758.95 | M163: 1.47198
A164: 155 | B164: PAGEIND | C164: 29886.05 | D164: 29912.13 | E164: 29724.27 | F164: 29562.48 | G164: 29374.62 | H164: 30073.92 | I164: 30261.78 | J164: 30423.57 | K164: 30100 | L164: 29750.35 | M164: 0.1179
A165: 156 | B165: PETRONET | C165: 228.4 | D165: 229.08 | E165: 227.12 | F165: 225.83 | G165: 223.87 | H165: 230.37 | I165: 232.33 | J165: 233.62 | K165: 231.05 | L165: 227.8 | M165: 31.28028
A166: 157 | B166: PFIZER | C166: 5404.95 | D166: 5430.27 | E166: 5342.73 | F166: 5280.52 | G166: 5192.98 | H166: 5492.48 | I166: 5580.02 | J166: 5642.23 | K166: 5517.8 | L166: 5368.05 | M166: 0.58731
A167: 158 | B167: PIDILITIND | C167: 2127.35 | D167: 2135.98 | E167: 2111.97 | F167: 2096.58 | G167: 2072.57 | H167: 2151.37 | I167: 2175.38 | J167: 2190.77 | K167: 2160 | L167: 2120.6 | M167: 4.69223
A168: 159 | B168: PEL | C168: 2163.1 | D168: 2175.77 | E168: 2129.33 | F168: 2095.57 | G168: 2049.13 | H168: 2209.53 | I168: 2255.97 | J168: 2289.73 | K168: 2222.2 | L168: 2142 | M168: 8.65679
A169: 160 | B169: POLYCAB | C169: 1940.35 | D169: 1927.20 | E169: 1904.40 | F169: 1868.45 | G169: 1845.65 | H169: 1963.15 | I169: 1985.95 | J169: 2021.90 | K169: 1950 | L169: 1891.25 | M169: 4.67101
A170: 161 | B170: PFC | C170: 127 | D170: 127.37 | E170: 126.03 | F170: 125.07 | G170: 123.73 | H170: 128.33 | I170: 129.67 | J170: 130.63 | K170: 128.7 | L170: 126.4 | M170: 81.53963
A171: 162 | B171: POWERGRID | C171: 239.85 | D171: 240.22 | E171: 236.38 | F171: 232.92 | G171: 229.08 | H171: 243.68 | I171: 247.52 | J171: 250.98 | K171: 244.05 | L171: 236.75 | M171: 125.2191
A172: 163 | B172: PRESTIGE | C172: 281.1 | D172: 282.70 | E172: 278.50 | F172: 275.90 | G172: 271.70 | H172: 285.30 | I172: 289.50 | J172: 292.10 | K172: 286.9 | L172: 280.1 | M172: 2.6806
A173: 164 | B173: PGHH | C173: 13351.1 | D173: 13320.00 | E173: 13132.15 | F173: 12913.20 | G173: 12725.35 | H173: 13538.95 | I173: 13726.80 | J173: 13945.75 | K173: 13507.85 | L173: 13101.05 | M173: 0.06127
A174: 165 | B174: PNB | C174: 41.1 | D174: 41.35 | E174: 40.60 | F174: 40.10 | G174: 39.35 | H174: 41.85 | I174: 42.60 | J174: 43.10 | K174: 42.1 | L174: 40.85 | M174: 791.83021
A175: 166 | B175: RBLBANK | C175: 209.7 | D175: 211.57 | E175: 207.13 | F175: 204.57 | G175: 200.13 | H175: 214.13 | I175: 218.57 | J175: 221.13 | K175: 216 | L175: 209 | M175: 76.94684
A176: 167 | B176: RECLTD | C176: 150.3 | D176: 151.63 | E176: 147.92 | F176: 145.53 | G176: 141.82 | H176: 154.02 | I176: 157.73 | J176: 160.12 | K176: 155.35 | L176: 149.25 | M176: 45.10432
A177: 168 | B177: RAJESHEXPO | C177: 585.5 | D177: 584.60 | E177: 574.90 | F177: 564.30 | G177: 554.60 | H177: 595.20 | I177: 604.90 | J177: 615.50 | K177: 594.3 | L177: 574 | M177: 2.52594
A178: 169 | B178: RELIANCE | C178: 2215.65 | D178: 2210.18 | E178: 2185.37 | F178: 2155.08 | G178: 2130.27 | H178: 2240.47 | I178: 2265.28 | J178: 2295.57 | K178: 2235 | L178: 2179.9 | M178: 72.66765
A179: 170 | B179: SBICARD | C179: 1051.7 | D179: 1057.88 | E179: 1040.87 | F179: 1030.03 | G179: 1013.02 | H179: 1068.72 | I179: 1085.73 | J179: 1096.57 | K179: 1074.9 | L179: 1047.05 | M179: 6.44817
A180: 171 | B180: SBILIFE | C180: 983.3 | D180: 984.33 | E180: 975.97 | F180: 968.63 | G180: 960.27 | H180: 991.67 | I180: 1000.03 | J180: 1007.37 | K180: 992.7 | L180: 977 | M180: 8.69613
A181: 172 | B181: SRF | C181: 7134.85 | D181: 7135.93 | E181: 7071.87 | F181: 7008.88 | G181: 6944.82 | H181: 7198.92 | I181: 7262.98 | J181: 7325.97 | K181: 7200 | L181: 7072.95 | M181: 1.24514
A182: 173 | B182: SANOFI | C182: 7755.35 | D182: 7768.10 | E182: 7737.25 | F182: 7719.15 | G182: 7688.30 | H182: 7786.20 | I182: 7817.05 | J182: 7835.15 | K182: 7798.95 | L182: 7750 | M182: 0.0899
A183: 174 | B183: SHREECEM | C183: 28368.1 | D183: 28394.38 | E183: 27988.77 | F183: 27609.43 | G183: 27203.82 | H183: 28773.72 | I183: 29179.33 | J183: 29558.67 | K183: 28800 | L183: 28015.05 | M183: 0.39467
A184: 175 | B184: SRTRANSFIN | C184: 1411.4 | D184: 1413.80 | E184: 1390.60 | F184: 1369.80 | G184: 1346.60 | H184: 1434.60 | I184: 1457.80 | J184: 1478.60 | K184: 1437 | L184: 1393 | M184: 24.71242
A185: 176 | B185: SIEMENS | C185: 2010.3 | D185: 2017.65 | E185: 1995.60 | F185: 1980.90 | G185: 1958.85 | H185: 2032.35 | I185: 2054.40 | J185: 2069.10 | K185: 2039.7 | L185: 2002.95 | M185: 1.82666
A186: 177 | B186: SBIN | C186: 420.25 | D186: 420.93 | E186: 415.92 | F186: 411.58 | G186: 406.57 | H186: 425.27 | I186: 430.28 | J186: 434.62 | K186: 425.95 | L186: 416.6 | M186: 230.48331
A187: 178 | B187: SAIL | C187: 128.3 | D187: 129.68 | E187: 125.97 | F187: 123.63 | G187: 119.92 | H187: 132.02 | I187: 135.73 | J187: 138.07 | K187: 133.4 | L187: 127.35 | M187: 624.23773
A188: 179 | B188: SUNPHARMA | C188: 665.05 | D188: 666.75 | E188: 659.95 | F188: 654.85 | G188: 648.05 | H188: 671.85 | I188: 678.65 | J188: 683.75 | K188: 673.55 | L188: 661.65 | M188: 27.76147
A189: 180 | B189: SUNTV | C189: 532.3 | D189: 531.47 | E189: 522.93 | F189: 513.57 | G189: 505.03 | H189: 540.83 | I189: 549.37 | J189: 558.73 | K189: 540 | L189: 522.1 | M189: 66.3792
A190: 181 | B190: SYNGENE | C190: 577.6 | D190: 580.28 | E190: 572.42 | F190: 567.23 | G190: 559.37 | H190: 585.47 | I190: 593.33 | J190: 598.52 | K190: 588.15 | L190: 575.1 | M190: 1.58514
A191: 182 | B191: TVSMOTOR | C191: 610.7 | D191: 612.83 | E191: 603.32 | F191: 595.93 | G191: 586.42 | H191: 620.22 | I191: 629.73 | J191: 637.12 | K191: 622.35 | L191: 605.45 | M191: 11.20821
A192: 183 | B192: TATACHEM | C192: 725.6 | D192: 728.73 | E192: 715.12 | F192: 704.63 | G192: 691.02 | H192: 739.22 | I192: 752.83 | J192: 763.32 | K192: 742.35 | L192: 718.25 | M192: 17.75728
A193: 184 | B193: TCS | C193: 3317.75 | D193: 3304.60 | E193: 3273.15 | F193: 3228.55 | G193: 3197.10 | H193: 3349.20 | I193: 3380.65 | J193: 3425.25 | K193: 3336.05 | L193: 3260 | M193: 22.73413
A194: 185 | B194: TATACONSUM | C194: 745 | D194: 739.05 | E194: 730.80 | F194: 716.60 | G194: 708.35 | H194: 753.25 | I194: 761.50 | J194: 775.70 | K194: 747.3 | L194: 724.85 | M194: 41.67585
A195: 186 | B195: TATAMOTORS | C195: 345.65 | D195: 346.93 | E195: 340.97 | F195: 336.28 | G195: 330.32 | H195: 351.62 | I195: 357.58 | J195: 362.27 | K195: 352.9 | L195: 342.25 | M195: 292.36974
A196: 187 | B196: TATAPOWER | C196: 123.95 | D196: 124.38 | E196: 121.87 | F196: 119.78 | G196: 117.27 | H196: 126.47 | I196: 128.98 | J196: 131.07 | K196: 126.9 | L196: 122.3 | M196: 738.0192
A197: 188 | B197: TATASTEEL | C197: 1103.75 | D197: 1111.07 | E197: 1088.33 | F197: 1072.92 | G197: 1050.18 | H197: 1126.48 | I197: 1149.22 | J197: 1164.63 | K197: 1133.8 | L197: 1095.65 | M197: 162.07687
A198: 189 | B198: TECHM | C198: 1080.25 | D198: 1074.00 | E198: 1063.30 | F198: 1046.35 | G198: 1035.65 | H198: 1090.95 | I198: 1101.65 | J198: 1118.60 | K198: 1084.7 | L198: 1057.05 | M198: 31.61931
A199: 190 | B199: RAMCOCEM | C199: 1034.35 | D199: 1029.02 | E199: 1013.03 | F199: 991.72 | G199: 975.73 | H199: 1050.33 | I199: 1066.32 | J199: 1087.63 | K199: 1045 | L199: 1007.7 | M199: 6.08632
A200: 191 | B200: TITAN | C200: 1711.4 | D200: 1711.60 | E200: 1701.20 | F200: 1691.00 | G200: 1680.60 | H200: 1721.80 | I200: 1732.20 | J200: 1742.40 | K200: 1722 | L200: 1701.4 | M200: 5.46515
A201: 192 | B201: TORNTPHARM | C201: 2953.9 | D201: 2922.92 | E201: 2885.08 | F201: 2816.27 | G201: 2778.43 | H201: 2991.73 | I201: 3029.57 | J201: 3098.38 | K201: 2960.75 | L201: 2854.1 | M201: 5.95837
A202: 193 | B202: TORNTPOWER | C202: 457.4 | D202: 459.58 | E202: 450.07 | F202: 442.73 | G202: 433.22 | H202: 466.92 | I202: 476.43 | J202: 483.77 | K202: 469.1 | L202: 452.25 | M202: 14.03849
A203: 194 | B203: TRENT | C203: 855.6 | D203: 859.85 | E203: 824.70 | F203: 793.80 | G203: 758.65 | H203: 890.75 | I203: 925.90 | J203: 956.80 | K203: 895 | L203: 828.95 | M203: 18.2095
A204: 195 | B204: UPL | C204: 835.05 | D204: 837.23 | E204: 826.47 | F204: 817.88 | G204: 807.12 | H204: 845.82 | I204: 856.58 | J204: 865.17 | K204: 848 | L204: 828.65 | M204: 36.84099
A205: 196 | B205: ULTRACEMCO | C205: 6704.85 | D205: 6668.30 | E205: 6586.60 | F205: 6468.35 | G205: 6386.65 | H205: 6786.55 | I205: 6868.25 | J205: 6986.50 | K205: 6750 | L205: 6550.05 | M205: 6.37296
... 29 more rows

Sheet MidCap Intra
L5: Back To Main Page
A6: FOR INTRA DAY TRADING | K6: =Main!B10 -> 2021-06-18
A9: Sr.no | B9: Scrip | C9: CLOSE RATE | D9: Pivot Point | E9: Supports | H9: Resistances
C10: Point | E10: S1 | F10: S2 | G10: S3 | H10: R1 | I10: R2 | J10: R3 | K10: HIGH | L10: LOW | M10: Total Trade Quanity in Lakhs
A11: 1 | B11: 3MINDIA | C11: 25260.9 | D11: 25327.67 | E11: 25108.28 | F11: 24955.67 | G11: 24736.28 | H11: 25480.28 | I11: 25699.67 | J11: 25852.28 | K11: 25547.05 | L11: 25175.05 | M11: 0.02137
A12: 2 | B12: ABB | C12: 1716.5 | D12: 1728.50 | E12: 1680.30 | F12: 1644.10 | G12: 1595.90 | H12: 1764.70 | I12: 1812.90 | J12: 1849.10 | K12: 1776.7 | L12: 1692.3 | M12: 4.16009
A13: 3 | B13: POWERINDIA | C13: 1797.65 | D13: 1803.78 | E13: 1772.57 | F13: 1747.48 | G13: 1716.27 | H13: 1828.87 | I13: 1860.08 | J13: 1885.17 | K13: 1835 | L13: 1778.7 | M13: 0.13776
A14: 4 | B14: ACC | C14: 2042.2 | D14: 2036.72 | E14: 2010.48 | F14: 1978.77 | G14: 1952.53 | H14: 2068.43 | I14: 2094.67 | J14: 2126.38 | K14: 2062.95 | L14: 2005 | M14: 4.12228
A15: 5 | B15: AIAENG | C15: 1980.85 | D15: 1993.62 | E15: 1957.23 | F15: 1933.62 | G15: 1897.23 | H15: 2017.23 | I15: 2053.62 | J15: 2077.23 | K15: 2030 | L15: 1970 | M15: 0.50281
A16: 6 | B16: APLAPOLLO | C16: 1564.4 | D16: 1548.35 | E16: 1497.70 | F16: 1431.00 | G16: 1380.35 | H16: 1615.05 | I16: 1665.70 | J16: 1732.40 | K16: 1599 | L16: 1481.65 | M16: 8.19467
A17: 7 | B17: AUBANK | C17: 1026.3 | D17: 1030.00 | E17: 1003.65 | F17: 981.00 | G17: 954.65 | H17: 1052.65 | I17: 1079.00 | J17: 1101.65 | K17: 1056.35 | L17: 1007.35 | M17: 12.25606
A18: 8 | B18: AARTIDRUGS | C18: 727.15 | D18: 731.18 | E18: 720.97 | F18: 714.78 | G18: 704.57 | H18: 737.37 | I18: 747.58 | J18: 753.77 | K18: 741.4 | L18: 725 | M18: 2.5165
A19: 9 | B19: AARTIIND | C19: 1811.8 | D19: 1813.45 | E19: 1787.00 | F19: 1762.20 | G19: 1735.75 | H19: 1838.25 | I19: 1864.70 | J19: 1889.50 | K19: 1839.9 | L19: 1788.65 | M19: 4.79666
A20: 10 | B20: AAVAS | C20: 2515.55 | D20: 2509.17 | E20: 2476.38 | F20: 2437.22 | G20: 2404.43 | H20: 2548.33 | I20: 2581.12 | J20: 2620.28 | K20: 2541.95 | L20: 2470 | M20: 0.5638
A21: 11 | B21: ABBOTINDIA | C21: 16526.45 | D21: 16485.98 | E21: 16371.97 | F21: 16217.48 | G21: 16103.47 | H21: 16640.47 | I21: 16754.48 | J21: 16908.97 | K21: 16600 | L21: 16331.5 | M21: 0.09974
A22: 12 | B22: ADANIENT | C22: 1367.7 | D22: 1369.07 | E22: 1302.13 | F22: 1236.57 | G22: 1169.63 | H22: 1434.63 | I22: 1501.57 | J22: 1567.13 | K22: 1436 | L22: 1303.5 | M22: 279.2607
A23: 13 | B23: ADANIGREEN | C23: 1123.65 | D23: 1132.43 | E23: 1114.87 | F23: 1106.08 | G23: 1088.52 | H23: 1141.22 | I23: 1158.78 | J23: 1167.57 | K23: 1150 | L23: 1123.65 | M23: 17.09482
A24: 14 | B24: ADANIPORTS | C24: 646.9 | D24: 663.30 | E24: 621.95 | F24: 597.00 | G24: 555.65 | H24: 688.25 | I24: 729.60 | J24: 754.55 | K24: 704.65 | L24: 638.35 | M24: 708.12142
A25: 15 | B25: ATGL | C25: 1324.65 | D25: 1324.65 | E25: 1324.65 | F25: 1324.65 | G25: 1324.65 | H25: 1324.65 | I25: 1324.65 | J25: 1324.65 | K25: 1324.65 | L25: 1324.65 | M25: 0.2877
A26: 16 | B26: ADANITRANS | C26: 1305.4 | D26: 1305.40 | E26: 1305.40 | F26: 1305.40 | G26: 1305.40 | H26: 1305.40 | I26: 1305.40 | J26: 1305.40 | K26: 1305.4 | L26: 1305.4 | M26: 0.34906
A27: 17 | B27: ABCAPITAL | C27: 122.05 | D27: 122.90 | E27: 120.40 | F27: 118.75 | G27: 116.25 | H27: 124.55 | I27: 127.05 | J27: 128.70 | K27: 125.4 | L27: 121.25 | M27: 21.39479
A28: 18 | B28: ABFRL | C28: 201.5 | D28: 202.75 | E28: 198.75 | F28: 196.00 | G28: 192.00 | H28: 205.50 | I28: 209.50 | J28: 212.25 | K28: 206.75 | L28: 200 | M28: 16.6012
A29: 19 | B29: ADVENZYMES | C29: 431.95 | D29: 423.33 | E29: 398.67 | F29: 365.38 | G29: 340.72 | H29: 456.62 | I29: 481.28 | J29: 514.57 | K29: 448 | L29: 390.05 | M29: 45.72415
A30: 20 | B30: AEGISCHEM | C30: 358.5 | D30: 363.28 | E30: 352.27 | F30: 346.03 | G30: 335.02 | H30: 369.52 | I30: 380.53 | J30: 386.77 | K30: 374.3 | L30: 357.05 | M30: 7.60167
A31: 21 | B31: AFFLE | C31: 4979.4 | D31: 5020.88 | E31: 4917.52 | F31: 4855.63 | G31: 4752.27 | H31: 5082.77 | I31: 5186.13 | J31: 5248.02 | K31: 5124.25 | L31: 4959 | M31: 0.59206
A32: 22 | B32: AJANTPHARM | C32: 1963.9 | D32: 1974.48 | E32: 1933.97 | F32: 1904.03 | G32: 1863.52 | H32: 2004.42 | I32: 2044.93 | J32: 2074.87 | K32: 2015 | L32: 1944.55 | M32: 0.8316
A33: 23 | B33: AKZOINDIA | C33: 2267.9 | D33: 2278.97 | E33: 2247.93 | F33: 2227.97 | G33: 2196.93 | H33: 2298.93 | I33: 2329.97 | J33: 2349.93 | K33: 2310 | L33: 2259 | M33: 0.12614
A34: 24 | B34: ALEMBICLTD | C34: 134.25 | D34: 134.73 | E34: 129.97 | F34: 125.68 | G34: 120.92 | H34: 139.02 | I34: 143.78 | J34: 148.07 | K34: 139.5 | L34: 130.45 | M34: 38.45226
A35: 25 | B35: APLLTD | C35: 990.1 | D35: 983.25 | E35: 971.50 | F35: 952.90 | G35: 941.15 | H35: 1001.85 | I35: 1013.60 | J35: 1032.20 | K35: 995 | L35: 964.65 | M35: 4.09733
A36: 26 | B36: ALKEM | C36: 3167.3 | D36: 3161.93 | E36: 3139.07 | F36: 3110.83 | G36: 3087.97 | H36: 3190.17 | I36: 3213.03 | J36: 3241.27 | K36: 3184.8 | L36: 3133.7 | M36: 1.2387
A37: 27 | B37: ALKYLAMINE | C37: 3590.45 | D37: 3579.90 | E37: 3550.80 | F37: 3511.15 | G37: 3482.05 | H37: 3619.55 | I37: 3648.65 | J37: 3688.30 | K37: 3609 | L37: 3540.25 | M37: 0.46212
A38: 28 | B38: ALOKINDS | C38: 28.65 | D38: 28.82 | E38: 27.93 | F38: 27.22 | G38: 26.33 | H38: 29.53 | I38: 30.42 | J38: 31.13 | K38: 29.7 | L38: 28.1 | M38: 215.30491
A39: 29 | B39: AMARAJABAT | C39: 763.4 | D39: 766.68 | E39: 754.72 | F39: 746.03 | G39: 734.07 | H39: 775.37 | I39: 787.33 | J39: 796.02 | K39: 778.65 | L39: 758 | M39: 14.77262
A40: 30 | B40: AMBER | C40: 2764.5 | D40: 2770.23 | E40: 2744.57 | F40: 2724.63 | G40: 2698.97 | H40: 2790.17 | I40: 2815.83 | J40: 2835.77 | K40: 2795.9 | L40: 2750.3 | M40: 0.55959
A41: 31 | B41: AMBUJACEM | C41: 346.25 | D41: 343.72 | E41: 338.53 | F41: 330.82 | G41: 325.63 | H41: 351.43 | I41: 356.62 | J41: 364.33 | K41: 348.9 | L41: 336 | M41: 72.3911
A42: 32 | B42: APOLLOHOSP | C42: 3240.6 | D42: 3249.58 | E42: 3216.22 | F42: 3191.83 | G42: 3158.47 | H42: 3273.97 | I42: 3307.33 | J42: 3331.72 | K42: 3282.95 | L42: 3225.2 | M42: 3.56502
A43: 33 | B43: APOLLOTYRE | C43: 229.9 | D43: 231.03 | E43: 227.47 | F43: 225.03 | G43: 221.47 | H43: 233.47 | I43: 237.03 | J43: 239.47 | K43: 234.6 | L43: 228.6 | M43: 38.84976
A44: 34 | B44: ASHOKLEY | C44: 121.2 | D44: 121.98 | E44: 118.82 | F44: 116.43 | G44: 113.27 | H44: 124.37 | I44: 127.53 | J44: 129.92 | K44: 125.15 | L44: 119.6 | M44: 241.44227
A45: 35 | B45: ASHOKA | C45: 100.05 | D45: 100.82 | E45: 98.28 | F45: 96.52 | G45: 93.98 | H45: 102.58 | I45: 105.12 | J45: 106.88 | K45: 103.35 | L45: 99.05 | M45: 32.77843
A46: 36 | B46: ASIANPAINT | C46: 3060.3 | D46: 3044.92 | E46: 3015.88 | F46: 2971.47 | G46: 2942.43 | H46: 3089.33 | I46: 3118.37 | J46: 3162.78 | K46: 3073.95 | L46: 3000.5 | M46: 15.33864
A47: 37 | B47: ASTERDM | C47: 153.7 | D47: 154.87 | E47: 151.83 | F47: 149.97 | G47: 146.93 | H47: 156.73 | I47: 159.77 | J47: 161.63 | K47: 157.9 | L47: 153 | M47: 4.18493
A48: 38 | B48: ASTRAZEN | C48: 3735.6 | D48: 3745.53 | E48: 3710.07 | F48: 3684.53 | G48: 3649.07 | H48: 3771.07 | I48: 3806.53 | J48: 3832.07 | K48: 3781 | L48: 3720 | M48: 0.30869
A49: 39 | B49: ASTRAL | C49: 1974 | D49: 1970.32 | E49: 1950.83 | F49: 1927.67 | G49: 1908.18 | H49: 1993.48 | I49: 2012.97 | J49: 2036.13 | K49: 1989.8 | L49: 1947.15 | M49: 2.98409
A50: 40 | B50: ATUL | C50: 8955 | D50: 8944.08 | E50: 8890.92 | F50: 8826.83 | G50: 8773.67 | H50: 9008.17 | I50: 9061.33 | J50: 9125.42 | K50: 8997.25 | L50: 8880 | M50: 0.11677
A51: 41 | B51: AUROPHARMA | C51: 961.7 | D51: 965.92 | E51: 942.68 | F51: 923.67 | G51: 900.43 | H51: 984.93 | I51: 1008.17 | J51: 1027.18 | K51: 989.15 | L51: 946.9 | M51: 27.63925
A52: 42 | B52: AVANTIFEED | C52: 587.8 | D52: 586.83 | E52: 579.97 | F52: 572.13 | G52: 565.27 | H52: 594.67 | I52: 601.53 | J52: 609.37 | K52: 593.7 | L52: 579 | M52: 2.08493
A53: 43 | B53: DMART | C53: 3285.55 | D53: 3284.05 | E53: 3261.50 | F53: 3237.45 | G53: 3214.90 | H53: 3308.10 | I53: 3330.65 | J53: 3354.70 | K53: 3306.6 | L53: 3260 | M53: 2.90181
A54: 44 | B54: AXISBANK | C54: 738.6 | D54: 740.00 | E54: 734.60 | F54: 730.60 | G54: 725.20 | H54: 744.00 | I54: 749.40 | J54: 753.40 | K54: 745.4 | L54: 736 | M54: 66.74329
A55: 45 | B55: BASF | C55: 2693.65 | D55: 2715.20 | E55: 2650.95 | F55: 2608.25 | G55: 2544.00 | H55: 2757.90 | I55: 2822.15 | J55: 2864.85 | K55: 2779.45 | L55: 2672.5 | M55: 1.05388
A56: 46 | B56: BEML | C56: 1381.35 | D56: 1373.12 | E56: 1321.23 | F56: 1261.12 | G56: 1209.23 | H56: 1433.23 | I56: 1485.12 | J56: 1545.23 | K56: 1425 | L56: 1313 | M56: 31.04943
A57: 47 | B57: BSE | C57: 907.85 | D57: 914.37 | E57: 897.73 | F57: 887.62 | G57: 870.98 | H57: 924.48 | I57: 941.12 | J57: 951.23 | K57: 931 | L57: 904.25 | M57: 5.47529
A58: 48 | B58: BAJAJ-AUTO | C58: 4053.9 | D58: 4071.98 | E58: 4023.97 | F58: 3994.03 | G58: 3946.02 | H58: 4101.92 | I58: 4149.93 | J58: 4179.87 | K58: 4120 | L58: 4042.05 | M58: 3.57704
A59: 49 | B59: BAJAJCON | C59: 295.75 | D59: 296.43 | E59: 291.87 | F59: 287.98 | G59: 283.42 | H59: 300.32 | I59: 304.88 | J59: 308.77 | K59: 301 | L59: 292.55 | M59: 10.58449
A60: 50 | B60: BAJAJELEC | C60: 1014.75 | D60: 1025.22 | E60: 995.53 | F60: 976.32 | G60: 946.63 | H60: 1044.43 | I60: 1074.12 | J60: 1093.33 | K60: 1054.9 | L60: 1006 | M60: 0.9768
A61: 51 | B61: BAJFINANCE | C61: 6050.25 | D61: 6028.42 | E61: 5941.83 | F61: 5833.42 | G61: 5746.83 | H61: 6136.83 | I61: 6223.42 | J61: 6331.83 | K61: 6115 | L61: 5920 | M61: 18.71857
A62: 52 | B62: BAJAJFINSV | C62: 11818.55 | D62: 11831.90 | E62: 11726.60 | F62: 11634.65 | G62: 11529.35 | H62: 11923.85 | I62: 12029.15 | J62: 12121.10 | K62: 11937.2 | L62: 11739.95 | M62: 2.2017
A63: 53 | B63: BAJAJHLDNG | C63: 3523.45 | D63: 3526.63 | E63: 3497.82 | F63: 3472.18 | G63: 3443.37 | H63: 3552.27 | I63: 3581.08 | J63: 3606.72 | K63: 3555.45 | L63: 3501 | M63: 0.19861
A64: 54 | B64: BALKRISIND | C64: 2304.1 | D64: 2282.48 | E64: 2242.02 | F64: 2179.93 | G64: 2139.47 | H64: 2344.57 | I64: 2385.03 | J64: 2447.12 | K64: 2322.95 | L64: 2220.4 | M64: 6.09177
A65: 55 | B65: BALMLAWRIE | C65: 141.2 | D65: 142.08 | E65: 137.67 | F65: 134.13 | G65: 129.72 | H65: 145.62 | I65: 150.03 | J65: 153.57 | K65: 146.5 | L65: 138.55 | M65: 17.44678
A66: 56 | B66: BALRAMCHIN | C66: 335.1 | D66: 334.83 | E66: 328.82 | F66: 322.53 | G66: 316.52 | H66: 341.12 | I66: 347.13 | J66: 353.42 | K66: 340.85 | L66: 328.55 | M66: 11.84102
A67: 57 | B67: BANDHANBNK | C67: 318.9 | D67: 317.80 | E67: 313.85 | F67: 308.80 | G67: 304.85 | H67: 322.85 | I67: 326.80 | J67: 331.85 | K67: 321.75 | L67: 312.75 | M67: 61.04981
A68: 58 | B68: BANKBARODA | C68: 81.9 | D68: 82.60 | E68: 80.60 | F68: 79.30 | G68: 77.30 | H68: 83.90 | I68: 85.90 | J68: 87.20 | K68: 84.6 | L68: 81.3 | M68: 509.72723
A69: 59 | B69: BANKINDIA | C69: 77.1 | D69: 77.60 | E69: 76.30 | F69: 75.50 | G69: 74.20 | H69: 78.40 | I69: 79.70 | J69: 80.50 | K69: 78.9 | L69: 76.8 | M69: 35.70633
A70: 60 | B70: MAHABANK | C70: 25.45 | D70: 25.55 | E70: 24.90 | F70: 24.35 | G70: 23.70 | H70: 26.10 | I70: 26.75 | J70: 27.30 | K70: 26.2 | L70: 25 | M70: 58.02685
A71: 61 | B71: BATAINDIA | C71: 1671.3 | D71: 1659.77 | E71: 1639.53 | F71: 1607.77 | G71: 1587.53 | H71: 1691.53 | I71: 1711.77 | J71: 1743.53 | K71: 1680 | L71: 1628 | M71: 6.64478
A72: 62 | B72: BAYERCROP | C72: 5668.1 | D72: 5664.78 | E72: 5609.02 | F72: 5549.93 | G72: 5494.17 | H72: 5723.87 | I72: 5779.63 | J72: 5838.72 | K72: 5720.55 | L72: 5605.7 | M72: 0.1655
A73: 63 | B73: BERGEPAINT | C73: 820.3 | D73: 819.10 | E73: 808.25 | F73: 796.20 | G73: 785.35 | H73: 831.15 | I73: 842.00 | J73: 854.05 | K73: 829.95 | L73: 807.05 | M73: 6.43624
A74: 64 | B74: BDL | C74: 363 | D74: 364.42 | E74: 358.33 | F74: 353.67 | G74: 347.58 | H74: 369.08 | I74: 375.17 | J74: 379.83 | K74: 370.5 | L74: 359.75 | M74: 5.01593
A75: 65 | B75: BEL | C75: 146.15 | D75: 146.85 | E75: 143.95 | F75: 141.75 | G75: 138.85 | H75: 149.05 | I75: 151.95 | J75: 154.15 | K75: 149.75 | L75: 144.65 | M75: 74.7318
A76: 66 | B76: BHARATFORG | C76: 725.05 | D76: 729.35 | E76: 718.90 | F76: 712.75 | G76: 702.30 | H76: 735.50 | I76: 745.95 | J76: 752.10 | K76: 739.8 | L76: 723.2 | M76: 21.10137
A77: 67 | B77: BHEL | C77: 65.5 | D77: 66.22 | E77: 64.43 | F77: 63.37 | G77: 61.58 | H77: 67.28 | I77: 69.07 | J77: 70.13 | K77: 68 | L77: 65.15 | M77: 575.32702
A78: 68 | B78: BPCL | C78: 476.9 | D78: 478.70 | E78: 474.50 | F78: 472.10 | G78: 467.90 | H78: 481.10 | I78: 485.30 | J78: 487.70 | K78: 482.9 | L78: 476.3 | M78: 33.25538
A79: 69 | B79: BHARATRAS | C79: 12627.7 | D79: 12733.28 | E79: 12395.52 | F79: 12163.33 | G79: 11825.57 | H79: 12965.47 | I79: 13303.23 | J79: 13535.42 | K79: 13071.05 | L79: 12501.1 | M79: 0.03871
A80: 70 | B80: BHARTIARTL | C80: 528.65 | D80: 532.32 | E80: 523.38 | F80: 518.12 | G80: 509.18 | H80: 537.58 | I80: 546.52 | J80: 551.78 | K80: 541.25 | L80: 527.05 | M80: 100.26485
A81: 71 | B81: BIOCON | C81: 398.65 | D81: 400.48 | E81: 394.22 | F81: 389.78 | G81: 383.52 | H81: 404.92 | I81: 411.18 | J81: 415.62 | K81: 406.75 | L81: 396.05 | M81: 13.90138
A82: 72 | B82: BIRLACORPN | C82: 1215.6 | D82: 1223.87 | E82: 1203.73 | F82: 1191.87 | G82: 1171.73 | H82: 1235.73 | I82: 1255.87 | J82: 1267.73 | K82: 1244 | L82: 1212 | M82: 1.02505
A83: 73 | B83: BSOFT | C83: 400.1 | D83: 400.58 | E83: 394.82 | F83: 389.53 | G83: 383.77 | H83: 405.87 | I83: 411.63 | J83: 416.92 | K83: 406.35 | L83: 395.3 | M83: 26.43244
A84: 74 | B84: BLISSGVS | C84: 110.7 | D84: 111.62 | E84: 109.33 | F84: 107.97 | G84: 105.68 | H84: 112.98 | I84: 115.27 | J84: 116.63 | K84: 113.9 | L84: 110.25 | M84: 4.06487
A85: 75 | B85: BLUEDART | C85: 5762.1 | D85: 5810.75 | E85: 5701.35 | F85: 5640.60 | G85: 5531.20 | H85: 5871.50 | I85: 5980.90 | J85: 6041.65 | K85: 5920.15 | L85: 5750 | M85: 0.20667
A86: 76 | B86: BLUESTARCO | C86: 813.1 | D86: 811.30 | E86: 804.80 | F86: 796.50 | G86: 790.00 | H86: 819.60 | I86: 826.10 | J86: 834.40 | K86: 817.8 | L86: 803 | M86: 1.12548
A87: 77 | B87: BBTC | C87: 1340.85 | D87: 1346.03 | E87: 1315.77 | F87: 1290.68 | G87: 1260.42 | H87: 1371.12 | I87: 1401.38 | J87: 1426.47 | K87: 1376.3 | L87: 1320.95 | M87: 2.2958
A88: 78 | B88: BOMDYEING | C88: 94.7 | D88: 95.20 | E88: 90.60 | F88: 86.50 | G88: 81.90 | H88: 99.30 | I88: 103.90 | J88: 108.00 | K88: 99.8 | L88: 91.1 | M88: 285.72375
A89: 79 | B89: BOSCHLTD | C89: 15399.85 | D89: 15514.00 | E89: 15260.85 | F89: 15121.85 | G89: 14868.70 | H89: 15653.00 | I89: 15906.15 | J89: 16045.15 | K89: 15767.15 | L89: 15375 | M89: 0.41012
A90: 80 | B90: BRIGADE | C90: 279.65 | D90: 280.32 | E90: 277.13 | F90: 274.62 | G90: 271.43 | H90: 282.83 | I90: 286.02 | J90: 288.53 | K90: 283.5 | L90: 277.8 | M90: 1.56625
A91: 81 | B91: BRITANNIA | C91: 3658.15 | D91: 3643.55 | E91: 3624.10 | F91: 3590.05 | G91: 3570.60 | H91: 3677.60 | I91: 3697.05 | J91: 3731.10 | K91: 3663 | L91: 3609.5 | M91: 3.00185
A92: 82 | B92: CARERATING | C92: 712.7 | D92: 720.57 | E92: 691.13 | F92: 669.57 | G92: 640.13 | H92: 742.13 | I92: 771.57 | J92: 793.13 | K92: 750 | L92: 699 | M92: 19.80997
A93: 83 | B93: CCL | C93: 345.5 | D93: 346.60 | E93: 338.90 | F93: 332.30 | G93: 324.60 | H93: 353.20 | I93: 360.90 | J93: 367.50 | K93: 354.3 | L93: 340 | M93: 2.78357
A94: 84 | B94: CESC | C94: 780.4 | D94: 791.40 | E94: 762.80 | F94: 745.20 | G94: 716.60 | H94: 809.00 | I94: 837.60 | J94: 855.20 | K94: 820 | L94: 773.8 | M94: 47.55377
A95: 85 | B95: CRISIL | C95: 2457.65 | D95: 2454.27 | E95: 2423.23 | F95: 2388.82 | G95: 2357.78 | H95: 2488.68 | I95: 2519.72 | J95: 2554.13 | K95: 2485.3 | L95: 2419.85 | M95: 0.53718
A96: 86 | B96: CSBBANK | C96: 315.45 | D96: 319.22 | E96: 309.43 | F96: 303.42 | G96: 293.63 | H96: 325.23 | I96: 335.02 | J96: 341.03 | K96: 329 | L96: 313.2 | M96: 1.51805
A97: 87 | B97: CADILAHC | C97: 620.25 | D97: 623.65 | E97: 613.70 | F97: 607.15 | G97: 597.20 | H97: 630.20 | I97: 640.15 | J97: 646.70 | K97: 633.6 | L97: 617.1 | M97: 65.31958
A98: 88 | B98: CANFINHOME | C98: 514.55 | D98: 516.98 | E98: 509.02 | F98: 503.48 | G98: 495.52 | H98: 522.52 | I98: 530.48 | J98: 536.02 | K98: 524.95 | L98: 511.45 | M98: 3.44276
A99: 89 | B99: CANBK | C99: 151.35 | D99: 151.75 | E99: 149.10 | F99: 146.85 | G99: 144.20 | H99: 154.00 | I99: 156.65 | J99: 158.90 | K99: 154.4 | L99: 149.5 | M99: 126.9905
A100: 90 | B100: CAPLIPOINT | C100: 668.75 | D100: 673.23 | E100: 660.52 | F100: 652.28 | G100: 639.57 | H100: 681.47 | I100: 694.18 | J100: 702.42 | K100: 685.95 | L100: 665 | M100: 2.36564
A101: 91 | B101: CGCL | C101: 528.75 | D101: 529.95 | E101: 523.90 | F101: 519.05 | G101: 513.00 | H101: 534.80 | I101: 540.85 | J101: 545.70 | K101: 536 | L101: 525.1 | M101: 1.48004
A102: 92 | B102: CARBORUNIV | C102: 586.3 | D102: 580.77 | E102: 572.53 | F102: 558.77 | G102: 550.53 | H102: 594.53 | I102: 602.77 | J102: 616.53 | K102: 589 | L102: 567 | M102: 1.72095
A103: 93 | B103: CASTROLIND | C103: 147.8 | D103: 148.55 | E103: 145.40 | F103: 143.00 | G103: 139.85 | H103: 150.95 | I103: 154.10 | J103: 156.50 | K103: 151.7 | L103: 146.15 | M103: 14.80415
A104: 94 | B104: CEATLTD | C104: 1379.85 | D104: 1380.45 | E104: 1364.90 | F104: 1349.95 | G104: 1334.40 | H104: 1395.40 | I104: 1410.95 | J104: 1425.90 | K104: 1396 | L104: 1365.5 | M104: 3.35471
A105: 95 | B105: CENTRALBK | C105: 20.55 | D105: 20.77 | E105: 20.08 | F105: 19.62 | G105: 18.93 | H105: 21.23 | I105: 21.92 | J105: 22.38 | K105: 21.45 | L105: 20.3 | M105: 79.17968
A106: 96 | B106: CDSL | C106: 990.5 | D106: 994.93 | E106: 982.87 | F106: 975.23 | G106: 963.17 | H106: 1002.57 | I106: 1014.63 | J106: 1022.27 | K106: 1007 | L106: 987.3 | M106: 4.6308
A107: 97 | B107: CENTURYPLY | C107: 411.75 | D107: 413.43 | E107: 406.92 | F107: 402.08 | G107: 395.57 | H107: 418.27 | I107: 424.78 | J107: 429.62 | K107: 419.95 | L107: 408.6 | M107: 1.31971
A108: 98 | B108: CENTURYTEX | C108: 567.95 | D108: 577.22 | E108: 555.73 | F108: 543.52 | G108: 522.03 | H108: 589.43 | I108: 610.92 | J108: 623.13 | K108: 598.7 | L108: 565 | M108: 11.68699
A109: 99 | B109: CERA | C109: 4365.2 | D109: 4389.68 | E109: 4268.37 | F109: 4171.53 | G109: 4050.22 | H109: 4486.52 | I109: 4607.83 | J109: 4704.67 | K109: 4511 | L109: 4292.85 | M109: 0.15169
A110: 100 | B110: CHALET | C110: 180.9 | D110: 181.22 | E110: 178.68 | F110: 176.47 | G110: 173.93 | H110: 183.43 | I110: 185.97 | J110: 188.18 | K110: 183.75 | L110: 179 | M110: 1.38469
A111: 101 | B111: CHAMBLFERT | C111: 302.5 | D111: 306.90 | E111: 292.80 | F111: 283.10 | G111: 269.00 | H111: 316.60 | I111: 330.70 | J111: 340.40 | K111: 321 | L111: 297.2 | M111: 62.698
A112: 102 | B112: CHENNPETRO | C112: 131.5 | D112: 132.58 | E112: 129.47 | F112: 127.43 | G112: 124.32 | H112: 134.62 | I112: 137.73 | J112: 139.77 | K112: 135.7 | L112: 130.55 | M112: 6.46547
A113: 103 | B113: CHOLAHLDNG | C113: 635.65 | D113: 641.67 | E113: 625.33 | F113: 615.02 | G113: 598.68 | H113: 651.98 | I113: 668.32 | J113: 678.63 | K113: 658 | L113: 631.35 | M113: 0.73597
A114: 104 | B114: CHOLAFIN | C114: 549.8 | D114: 553.43 | E114: 541.42 | F114: 533.03 | G114: 521.02 | H114: 561.82 | I114: 573.83 | J114: 582.22 | K114: 565.45 | L114: 545.05 | M114: 17.99072
A115: 105 | B115: CIPLA | C115: 950.95 | D115: 951.40 | E115: 943.05 | F115: 935.15 | G115: 926.80 | H115: 959.30 | I115: 967.65 | J115: 975.55 | K115: 959.75 | L115: 943.5 | M115: 24.29291
A116: 106 | B116: CUB | C116: 165.75 | D116: 165.43 | E116: 163.87 | F116: 161.98 | G116: 160.42 | H116: 167.32 | I116: 168.88 | J116: 170.77 | K116: 167 | L116: 163.55 | M116: 20.62415
A117: 107 | B117: COALINDIA | C117: 152.15 | D117: 152.98 | E117: 150.57 | F117: 148.98 | G117: 146.57 | H117: 154.57 | I117: 156.98 | J117: 158.57 | K117: 155.4 | L117: 151.4 | M117: 157.84276
A118: 108 | B118: COCHINSHIP | C118: 411.6 | D118: 412.98 | E118: 406.97 | F118: 402.33 | G118: 396.32 | H118: 417.62 | I118: 423.63 | J118: 428.27 | K118: 419 | L118: 408.35 | M118: 4.98673
A119: 109 | B119: COFORGE | C119: 3978.6 | D119: 3978.43 | E119: 3941.32 | F119: 3904.03 | G119: 3866.92 | H119: 4015.72 | I119: 4052.83 | J119: 4090.12 | K119: 4015.55 | L119: 3941.15 | M119: 2.29866
A120: 110 | B120: COLPAL | C120: 1714.95 | D120: 1718.03 | E120: 1704.07 | F120: 1693.18 | G120: 1679.22 | H120: 1728.92 | I120: 1742.88 | J120: 1753.77 | K120: 1732 | L120: 1707.15 | M120: 5.88937
A121: 111 | B121: CONCOR | C121: 677.65 | D121: 682.27 | E121: 666.93 | F121: 656.22 | G121: 640.88 | H121: 692.98 | I121: 708.32 | J121: 719.03 | K121: 697.6 | L121: 671.55 | M121: 21.3283
A122: 112 | B122: COROMANDEL | C122: 884.55 | D122: 880.37 | E122: 862.23 | F122: 839.92 | G122: 821.78 | H122: 902.68 | I122: 920.82 | J122: 943.13 | K122: 898.5 | L122: 858.05 | M122: 12.98917
A123: 113 | B123: CREDITACC | C123: 759.25 | D123: 757.17 | E123: 741.88 | F123: 724.52 | G123: 709.23 | H123: 774.53 | I123: 789.82 | J123: 807.18 | K123: 772.45 | L123: 739.8 | M123: 3.07949
A124: 114 | B124: CROMPTON | C124: 422.25 | D124: 423.53 | E124: 417.92 | F124: 413.58 | G124: 407.97 | H124: 427.87 | I124: 433.48 | J124: 437.82 | K124: 429.15 | L124: 419.2 | M124: 7.60982
A125: 115 | B125: CUMMINSIND | C125: 839.4 | D125: 839.93 | E125: 830.97 | F125: 822.53 | G125: 813.57 | H125: 848.37 | I125: 857.33 | J125: 865.77 | K125: 848.9 | L125: 831.5 | M125: 10.99474
A126: 116 | B126: CYIENT | C126: 855.6 | D126: 854.43 | E126: 837.97 | F126: 820.33 | G126: 803.87 | H126: 872.07 | I126: 888.53 | J126: 906.17 | K126: 870.9 | L126: 836.8 | M126: 2.73902
A127: 117 | B127: DBCORP | C127: 113.2 | D127: 114.78 | E127: 110.17 | F127: 107.13 | G127: 102.52 | H127: 117.82 | I127: 122.43 | J127: 125.47 | K127: 119.4 | L127: 111.75 | M127: 43.66517
A128: 118 | B128: DCBBANK | C128: 110.7 | D128: 111.53 | E128: 108.62 | F128: 106.53 | G128: 103.62 | H128: 113.62 | I128: 116.53 | J128: 118.62 | K128: 114.45 | L128: 109.45 | M128: 42.90045
A129: 119 | B129: DCMSHRIRAM | C129: 735.9 | D129: 734.38 | E129: 714.77 | F129: 693.63 | G129: 674.02 | H129: 755.52 | I129: 775.13 | J129: 796.27 | K129: 754 | L129: 713.25 | M129: 1.51684
A130: 120 | B130: DLF | C130: 296.9 | D130: 299.32 | E130: 292.33 | F130: 287.77 | G130: 280.78 | H130: 303.88 | I130: 310.87 | J130: 315.43 | K130: 306.3 | L130: 294.75 | M130: 69.06253
A131: 121 | B131: DABUR | C131: 573.2 | D131: 574.80 | E131: 568.60 | F131: 564.00 | G131: 557.80 | H131: 579.40 | I131: 585.60 | J131: 590.20 | K131: 581 | L131: 570.2 | M131: 15.1292
A132: 122 | B132: DALBHARAT | C132: 1805.1 | D132: 1818.35 | E132: 1786.75 | F132: 1768.40 | G132: 1736.80 | H132: 1836.70 | I132: 1868.30 | J132: 1886.65 | K132: 1849.95 | L132: 1800 | M132: 1.00506
A133: 123 | B133: DEEPAKNTR | C133: 1772.85 | D133: 1770.45 | E133: 1751.45 | F133: 1730.05 | G133: 1711.05 | H133: 1791.85 | I133: 1810.85 | J133: 1832.25 | K133: 1789.45 | L133: 1749.05 | M133: 9.1187
A134: 124 | B134: DELTACORP | C134: 178.2 | D134: 180.40 | E134: 174.90 | F134: 171.60 | G134: 166.10 | H134: 183.70 | I134: 189.20 | J134: 192.50 | K134: 185.9 | L134: 177.1 | M134: 20.85751
A135: 125 | B135: DHANI | C135: 195.3 | D135: 197.50 | E135: 192.00 | F135: 188.70 | G135: 183.20 | H135: 200.80 | I135: 206.30 | J135: 209.60 | K135: 203 | L135: 194.2 | M135: 5.93698
A136: 126 | B136: DHANUKA | C136: 969.95 | D136: 972.48 | E136: 959.02 | F136: 948.08 | G136: 934.62 | H136: 983.42 | I136: 996.88 | J136: 1007.82 | K136: 985.95 | L136: 961.55 | M136: 1.91796
A137: 127 | B137: DBL | C137: 556.9 | D137: 553.03 | E137: 545.87 | F137: 534.83 | G137: 527.67 | H137: 564.07 | I137: 571.23 | J137: 582.27 | K137: 560.2 | L137: 542 | M137: 2.67419
A138: 128 | B138: DISHTV | C138: 15 | D138: 15.13 | E138: 14.67 | F138: 14.33 | G138: 13.87 | H138: 15.47 | I138: 15.93 | J138: 16.27 | K138: 15.6 | L138: 14.8 | M138: 98.31905
A139: 129 | B139: DCAL | C139: 202.25 | D139: 204.32 | E139: 197.13 | F139: 192.02 | G139: 184.83 | H139: 209.43 | I139: 216.62 | J139: 221.73 | K139: 211.5 | L139: 199.2 | M139: 5.39327
A140: 130 | B140: DIVISLAB | C140: 4302.35 | D140: 4299.27 | E140: 4274.08 | F140: 4245.82 | G140: 4220.63 | H140: 4327.53 | I140: 4352.72 | J140: 4380.98 | K140: 4324.45 | L140: 4271 | M140: 2.05565
A141: 131 | B141: DIXON | C141: 4299.15 | D141: 4253.05 | E141: 4171.10 | F141: 4043.05 | G141: 3961.10 | H141: 4381.10 | I141: 4463.05 | J141: 4591.10 | K141: 4335 | L141: 4125 | M141: 3.45021
A142: 132 | B142: LALPATHLAB | C142: 3150.15 | D142: 3141.60 | E142: 3113.20 | F142: 3076.25 | G142: 3047.85 | H142: 3178.55 | I142: 3206.95 | J142: 3243.90 | K142: 3170 | L142: 3104.65 | M142: 1.67201
A143: 133 | B143: DRREDDY | C143: 5286.5 | D143: 5316.35 | E143: 5218.70 | F143: 5150.90 | G143: 5053.25 | H143: 5384.15 | I143: 5481.80 | J143: 5549.60 | K143: 5414 | L143: 5248.55 | M143: 7.07232
A144: 134 | B144: EIDPARRY | C144: 428.5 | D144: 420.83 | E144: 409.67 | F144: 390.83 | G144: 379.67 | H144: 439.67 | I144: 450.83 | J144: 469.67 | K144: 432 | L144: 402 | M144: 3.80445
A145: 135 | B145: EIHOTEL | C145: 113.6 | D145: 114.53 | E145: 112.17 | F145: 110.73 | G145: 108.37 | H145: 115.97 | I145: 118.33 | J145: 119.77 | K145: 116.9 | L145: 113.1 | M145: 3.22293
A146: 136 | B146: EPL | C146: 265.2 | D146: 263.53 | E146: 260.07 | F146: 254.93 | G146: 251.47 | H146: 268.67 | I146: 272.13 | J146: 277.27 | K146: 267 | L146: 258.4 | M146: 4.78335
A147: 137 | B147: ESABINDIA | C147: 1829.75 | D147: 1845.25 | E147: 1799.50 | F147: 1769.25 | G147: 1723.50 | H147: 1875.50 | I147: 1921.25 | J147: 1951.50 | K147: 1891 | L147: 1815 | M147: 0.08951
A148: 138 | B148: EDELWEISS | C148: 71.85 | D148: 72.35 | E148: 70.20 | F148: 68.55 | G148: 66.40 | H148: 74.00 | I148: 76.15 | J148: 77.80 | K148: 74.5 | L148: 70.7 | M148: 32.51568
A149: 139 | B149: EICHERMOT | C149: 2673.75 | D149: 2703.78 | E149: 2634.67 | F149: 2595.58 | G149: 2526.47 | H149: 2742.87 | I149: 2811.98 | J149: 2851.07 | K149: 2772.9 | L149: 2664.7 | M149: 7.0197
A150: 140 | B150: ELGIEQUIP | C150: 210.45 | D150: 210.50 | E150: 206.65 | F150: 202.85 | G150: 199.00 | H150: 214.30 | I150: 218.15 | J150: 221.95 | K150: 214.35 | L150: 206.7 | M150: 0.62597
A151: 141 | B151: EMAMILTD | C151: 545.9 | D151: 548.22 | E151: 540.98 | F151: 536.07 | G151: 528.83 | H151: 553.13 | I151: 560.37 | J151: 565.28 | K151: 555.45 | L151: 543.3 | M151: 7.98986
A152: 142 | B152: ENDURANCE | C152: 1574.35 | D152: 1574.68 | E152: 1544.67 | F152: 1514.98 | G152: 1484.97 | H152: 1604.37 | I152: 1634.38 | J152: 1664.07 | K152: 1604.7 | L152: 1545 | M152: 1.29657
A153: 143 | B153: ENGINERSIN | C153: 82.5 | D153: 83.05 | E153: 81.70 | F153: 80.90 | G153: 79.55 | H153: 83.85 | I153: 85.20 | J153: 86.00 | K153: 84.4 | L153: 82.25 | M153: 37.65853
A154: 144 | B154: EQUITAS | C154: 94 | D154: 94.52 | E154: 92.98 | F154: 91.97 | G154: 90.43 | H154: 95.53 | I154: 97.07 | J154: 98.08 | K154: 96.05 | L154: 93.5 | M154: 11.02138
A155: 145 | B155: ERIS | C155: 706.4 | D155: 706.53 | E155: 700.12 | F155: 693.83 | G155: 687.42 | H155: 712.82 | I155: 719.23 | J155: 725.52 | K155: 712.95 | L155: 700.25 | M155: 0.59821
A156: 146 | B156: ESCORTS | C156: 1165.45 | D156: 1170.48 | E156: 1154.97 | F156: 1144.48 | G156: 1128.97 | H156: 1180.97 | I156: 1196.48 | J156: 1206.97 | K156: 1186 | L156: 1160 | M156: 13.66129
A157: 147 | B157: EXIDEIND | C157: 187.75 | D157: 188.57 | E157: 186.18 | F157: 184.62 | G157: 182.23 | H157: 190.13 | I157: 192.52 | J157: 194.08 | K157: 190.95 | L157: 187 | M157: 16.79671
A158: 148 | B158: FDC | C158: 353.4 | D158: 354.30 | E158: 348.60 | F158: 343.80 | G158: 338.10 | H158: 359.10 | I158: 364.80 | J158: 369.60 | K158: 360 | L158: 349.5 | M158: 6.35402
A159: 149 | B159: FEDERALBNK | C159: 85.35 | D159: 85.35 | E159: 84.25 | F159: 83.15 | G159: 82.05 | H159: 86.45 | I159: 87.55 | J159: 88.65 | K159: 86.45 | L159: 84.25 | M159: 211.8994
A160: 150 | B160: FINEORG | C160: 2859.6 | D160: 2846.53 | E160: 2813.07 | F160: 2766.53 | G160: 2733.07 | H160: 2893.07 | I160: 2926.53 | J160: 2973.07 | K160: 2880 | L160: 2800 | M160: 0.47442
A161: 151 | B161: FINCABLES | C161: 485.6 | D161: 485.32 | E161: 480.63 | F161: 475.67 | G161: 470.98 | H161: 490.28 | I161: 494.97 | J161: 499.93 | K161: 490 | L161: 480.35 | M161: 2.21577
A162: 152 | B162: FINPIPE | C162: 169.2 | D162: 169.33 | E162: 166.67 | F162: 164.13 | G162: 161.47 | H162: 171.87 | I162: 174.53 | J162: 177.07 | K162: 172 | L162: 166.8 | M162: 4.74593
A163: 153 | B163: FSL | C163: 164.4 | D163: 164.68 | E163: 161.97 | F163: 159.53 | G163: 156.82 | H163: 167.12 | I163: 169.83 | J163: 172.27 | K163: 167.4 | L163: 162.25 | M163: 21.72853
A164: 154 | B164: FORTIS | C164: 233.95 | D164: 236.03 | E164: 230.07 | F164: 226.18 | G164: 220.22 | H164: 239.92 | I164: 245.88 | J164: 249.77 | K164: 242 | L164: 232.15 | M164: 26.50207
A165: 155 | B165: FCONSUMER | C165: 9.5 | D165: 9.60 | E165: 9.25 | F165: 9.00 | G165: 8.65 | H165: 9.85 | I165: 10.20 | J165: 10.45 | K165: 9.95 | L165: 9.35 | M165: 250.89542
A166: 156 | B166: FRETAIL | C166: 65.6 | D166: 65.60 | E166: 65.60 | F166: 65.60 | G166: 65.60 | H166: 65.60 | I166: 65.60 | J166: 65.60 | K166: 65.6 | L166: 65.6 | M166: 5.29448
A167: 157 | B167: GAIL | C167: 160.5 | D167: 160.95 | E167: 158.25 | F167: 156.00 | G167: 153.30 | H167: 163.20 | I167: 165.90 | J167: 168.15 | K167: 163.65 | L167: 158.7 | M167: 101.1332
A168: 158 | B168: GEPIL | C168: 342.55 | D168: 339.70 | E168: 331.40 | F168: 320.25 | G168: 311.95 | H168: 350.85 | I168: 359.15 | J168: 370.30 | K168: 348 | L168: 328.55 | M168: 12.30648
A169: 159 | B169: GHCL | C169: 286.25 | D169: 288.10 | E169: 279.65 | F169: 273.05 | G169: 264.60 | H169: 294.70 | I169: 303.15 | J169: 309.75 | K169: 296.55 | L169: 281.5 | M169: 3.46484
A170: 160 | B170: GMMPFAUDLR | C170: 4615 | D170: 4628.18 | E170: 4577.82 | F170: 4540.63 | G170: 4490.27 | H170: 4665.37 | I170: 4715.73 | J170: 4752.92 | K170: 4678.55 | L170: 4591 | M170: 0.2802
A171: 161 | B171: GMRINFRA | C171: 28.75 | D171: 29.10 | E171: 28.15 | F171: 27.55 | G171: 26.60 | H171: 29.70 | I171: 30.65 | J171: 31.25 | K171: 30.05 | L171: 28.5 | M171: 411.10436
A172: 162 | B172: GALAXYSURF | C172: 3023.1 | D172: 3034.37 | E172: 2968.73 | F172: 2914.37 | G172: 2848.73 | H172: 3088.73 | I172: 3154.37 | J172: 3208.73 | K172: 3100 | L172: 2980 | M172: 0.33388
A173: 163 | B173: GRSE | C173: 197.7 | D173: 199.57 | E173: 195.23 | F173: 192.77 | G173: 188.43 | H173: 202.03 | I173: 206.37 | J173: 208.83 | K173: 203.9 | L173: 197.1 | M173: 3.16376
A174: 164 | B174: GARFIBRES | C174: 3063 | D174: 3046.97 | E174: 3014.03 | F174: 2965.07 | G174: 2932.13 | H174: 3095.93 | I174: 3128.87 | J174: 3177.83 | K174: 3079.9 | L174: 2998 | M174: 0.10338
A175: 165 | B175: GICRE | C175: 203.45 | D175: 204.48 | E175: 200.07 | F175: 196.68 | G175: 192.27 | H175: 207.87 | I175: 212.28 | J175: 215.67 | K175: 208.9 | L175: 201.1 | M175: 40.38045
A176: 166 | B176: GILLETTE | C176: 5656.2 | D176: 5689.35 | E176: 5608.75 | F176: 5561.30 | G176: 5480.70 | H176: 5736.80 | I176: 5817.40 | J176: 5864.85 | K176: 5769.95 | L176: 5641.9 | M176: 0.06512
A177: 167 | B177: GLAXO | C177: 1542.85 | D177: 1545.55 | E177: 1527.30 | F177: 1511.75 | G177: 1493.50 | H177: 1561.10 | I177: 1579.35 | J177: 1594.90 | K177: 1563.8 | L177: 1530 | M177: 0.41986
A178: 168 | B178: GLENMARK | C178: 639.5 | D178: 641.00 | E178: 628.50 | F178: 617.50 | G178: 605.00 | H178: 652.00 | I178: 664.50 | J178: 675.50 | K178: 653.5 | L178: 630 | M178: 27.09838
A179: 169 | B179: GODFRYPHLP | C179: 923.35 | D179: 926.82 | E179: 917.63 | F179: 911.92 | G179: 902.73 | H179: 932.53 | I179: 941.72 | J179: 947.43 | K179: 936 | L179: 921.1 | M179: 0.32478
A180: 170 | B180: GODREJAGRO | C180: 557.65 | D180: 558.12 | E180: 551.73 | F180: 545.82 | G180: 539.43 | H180: 564.03 | I180: 570.42 | J180: 576.33 | K180: 564.5 | L180: 552.2 | M180: 1.84121
A181: 171 | B181: GODREJCP | C181: 908 | D181: 908.62 | E181: 900.23 | F181: 892.47 | G181: 884.08 | H181: 916.38 | I181: 924.77 | J181: 932.53 | K181: 917 | L181: 900.85 | M181: 9.53217
A182: 172 | B182: GODREJIND | C182: 533.75 | D182: 535.08 | E182: 529.67 | F182: 525.58 | G182: 520.17 | H182: 539.17 | I182: 544.58 | J182: 548.67 | K182: 540.5 | L182: 531 | M182: 0.68273
A183: 173 | B183: GODREJPROP | C183: 1392.05 | D183: 1400.02 | E183: 1373.03 | F183: 1354.02 | G183: 1327.03 | H183: 1419.03 | I183: 1446.02 | J183: 1465.03 | K183: 1427 | L183: 1381 | M183: 4.97764
A184: 174 | B184: GRANULES | C184: 317.2 | D184: 318.28 | E184: 314.92 | F184: 312.63 | G184: 309.27 | H184: 320.57 | I184: 323.93 | J184: 326.22 | K184: 321.65 | L184: 316 | M184: 26.11803
A185: 175 | B185: GRAPHITE | C185: 668.45 | D185: 679.30 | E185: 640.60 | F185: 612.75 | G185: 574.05 | H185: 707.15 | I185: 745.85 | J185: 773.70 | K185: 718 | L185: 651.45 | M185: 13.26052
A186: 176 | B186: GRASIM | C186: 1458.2 | D186: 1466.47 | E186: 1442.28 | F186: 1426.37 | G186: 1402.18 | H186: 1482.38 | I186: 1506.57 | J186: 1522.48 | K186: 1490.65 | L186: 1450.55 | M186: 7.95435
A187: 177 | B187: GESHIP | C187: 404.6 | D187: 407.28 | E187: 398.37 | F187: 392.13 | G187: 383.22 | H187: 413.52 | I187: 422.43 | J187: 428.67 | K187: 416.2 | L187: 401.05 | M187: 4.26598
A188: 178 | B188: GREAVESCOT | C188: 163.8 | D188: 160.32 | E188: 151.28 | F188: 138.77 | G188: 129.73 | H188: 172.83 | I188: 181.87 | J188: 194.38 | K188: 169.35 | L188: 147.8 | M188: 187.0836
A189: 179 | B189: GRINDWELL | C189: 1159.75 | D189: 1160.45 | E189: 1141.90 | F189: 1124.05 | G189: 1105.50 | H189: 1178.30 | I189: 1196.85 | J189: 1214.70 | K189: 1179 | L189: 1142.6 | M189: 0.95155
A190: 180 | B190: GUJALKALI | C190: 408.9 | D190: 410.88 | E190: 404.22 | F190: 399.53 | G190: 392.87 | H190: 415.57 | I190: 422.23 | J190: 426.92 | K190: 417.55 | L190: 406.2 | M190: 3.20367
A191: 181 | B191: GAEL | C191: 167.7 | D191: 167.50 | E191: 164.90 | F191: 162.10 | G191: 159.50 | H191: 170.30 | I191: 172.90 | J191: 175.70 | K191: 170.1 | L191: 164.7 | M191: 3.49669
A192: 182 | B192: FLUOROCHEM | C192: 1151.25 | D192: 1159.43 | E192: 1130.02 | F192: 1108.78 | G192: 1079.37 | H192: 1180.67 | I192: 1210.08 | J192: 1231.32 | K192: 1188.85 | L192: 1138.2 | M192: 1.13495
A193: 183 | B193: GUJGASLTD | C193: 659.65 | D193: 653.55 | E193: 632.10 | F193: 604.55 | G193: 583.10 | H193: 681.10 | I193: 702.55 | J193: 730.10 | K193: 675 | L193: 626 | M193: 69.0811
A194: 184 | B194: GMDCLTD | C194: 75.85 | D194: 76.62 | E194: 74.48 | F194: 73.12 | G194: 70.98 | H194: 77.98 | I194: 80.12 | J194: 81.48 | K194: 78.75 | L194: 75.25 | M194: 20.21729
A195: 185 | B195: GNFC | C195: 364.55 | D195: 367.60 | E195: 359.55 | F195: 354.55 | G195: 346.50 | H195: 372.60 | I195: 380.65 | J195: 385.65 | K195: 375.65 | L195: 362.6 | M195: 5.84415
A196: 186 | B196: GPPL | C196: 111.5 | D196: 112.43 | E196: 109.17 | F196: 106.83 | G196: 103.57 | H196: 114.77 | I196: 118.03 | J196: 120.37 | K196: 115.7 | L196: 110.1 | M196: 26.86512
A197: 187 | B197: GSFC | C197: 118.8 | D197: 119.55 | E197: 116.60 | F197: 114.40 | G197: 111.45 | H197: 121.75 | I197: 124.70 | J197: 126.90 | K197: 122.5 | L197: 117.35 | M197: 42.164
A198: 188 | B198: GSPL | C198: 320.9 | D198: 317.97 | E198: 309.93 | F198: 298.97 | G198: 290.93 | H198: 328.93 | I198: 336.97 | J198: 347.93 | K198: 326 | L198: 307 | M198: 28.03071
A199: 189 | B199: GULFOILLUB | C199: 694.3 | D199: 696.40 | E199: 687.90 | F199: 681.50 | G199: 673.00 | H199: 702.80 | I199: 711.30 | J199: 717.70 | K199: 704.9 | L199: 690 | M199: 0.65234
A200: 190 | B200: HEG | C200: 2164.55 | D200: 2186.90 | E200: 2119.85 | F200: 2075.15 | G200: 2008.10 | H200: 2231.60 | I200: 2298.65 | J200: 2343.35 | K200: 2253.95 | L200: 2142.2 | M200: 2.33758
A201: 191 | B201: HCLTECH | C201: 986.4 | D201: 984.63 | E201: 980.32 | F201: 974.23 | G201: 969.92 | H201: 990.72 | I201: 995.03 | J201: 1001.12 | K201: 988.95 | L201: 978.55 | M201: 36.09989
A202: 192 | B202: HDFCAMC | C202: 3012.3 | D202: 3008.75 | E202: 2987.55 | F202: 2962.80 | G202: 2941.60 | H202: 3033.50 | I202: 3054.70 | J202: 3079.45 | K202: 3029.95 | L202: 2984 | M202: 1.81349
A203: 193 | B203: HDFCBANK | C203: 1466.1 | D203: 1468.28 | E203: 1457.82 | F203: 1449.53 | G203: 1439.07 | H203: 1476.57 | I203: 1487.03 | J203: 1495.32 | K203: 1478.75 | L203: 1460 | M203: 46.41901
A204: 194 | B204: HDFCLIFE | C204: 700.3 | D204: 695.48 | E204: 687.12 | F204: 673.93 | G204: 665.57 | H204: 708.67 | I204: 717.03 | J204: 730.22 | K204: 703.85 | L204: 682.3 | M204: 37.96926
A205: 195 | B205: HFCL | C205: 53.2 | D205: 53.38 | E205: 52.02 | F205: 50.83 | G205: 49.47 | H205: 54.57 | I205: 55.93 | J205: 57.12 | K205: 54.75 | L205: 52.2 | M205: 570.18015
A206: 196 | B206: HATHWAY | C206: 26.85 | D206: 26.97 | E206: 26.38 | F206: 25.92 | G206: 25.33 | H206: 27.43 | I206: 28.02 | J206: 28.48 | K206: 27.55 | L206: 26.5 | M206: 122.08634
... 321 more rows

Sheet Bulk Deals
E6: Back To Main Page
A7: Subject : | B7: BULK DEAL | D7: =Main!B10 -> 2021-06-18
A9: Date | B9: Scrip code | C9: Scrip Name | D9: Client Name | E9: Buy / Sell | F9: Quantity Traded | G9: Trade Price / Wt.Avg.trade price | H9: Exchange
A10: 2021-06-17 | B10: 539570 | C10: ACEWIN | D10: ROSY ANTOO | E10: SELL | F10: 67,200 | G10: 8.68 | H10: BSE
A11: 2021-06-17 | B11: 540025 | C11: ADVENZYMES | D11: ADVANCED VITAL ENZYMES PRIVATE LIMITED | E11: SELL | F11: 1,700,000 | G11: 400.43 | H11: BSE
A12: 2021-06-17 | B12: 511463 | C12: ALEXANDER | D12: ANUP PODDAR | E12: SELL | F12: 44,670 | G12: 19.14 | H12: BSE
A13: 2021-06-17 | B13: 533095 | C13: BENGALASM | D13: HARI SHANKAR SINGHANIA HOLDINGS PRIVATE LIMITED | E13: SELL | F13: 72,600 | G13: 1655.01 | H13: BSE
A14: 2021-06-17 | B14: 531752 | C14: BIOGEN | D14: ALPHA LEON ENTERPRISES LLP | E14: BUY | F14: 4 | G14: 0.34 | H14: BSE
A15: 2021-06-17 | B15: 531752 | C15: BIOGEN | D15: ALPHA LEON ENTERPRISES LLP | E15: SELL | F15: 11,726,846 | G15: 0.34 | H15: BSE
A16: 2021-06-17 | B16: 522001 | C16: CRANEX | D16: ANIL KUMAR JAIN | E16: SELL | F16: 28,825 | G16: 11.02 | H16: BSE
A17: 2021-06-17 | B17: 539197 | C17: DEVHARI | D17: PRASANBEN VERSHIBHAI SHAH | E17: SELL | F17: 1,110,000 | G17: 0.84 | H17: BSE
A18: 2021-06-17 | B18: 542155 | C18: DGL | D18: MAANOR INVESTMENTS PRIVATE LIMITED . | E18: SELL | F18: 134,000 | G18: 2.95 | H18: BSE
A19: 2021-06-17 | B19: 531739 | C19: GENNEX | D19: PRAGYA MERCANTILE PVT LTD | E19: SELL | F19: 1,000,000 | G19: 6.66 | H19: BSE
A20: 2021-06-17 | B20: 542918 | C20: GIANLIFE | D20: MEHUL DINESH VASA | E20: SELL | F20: 24,000 | G20: 27 | H20: BSE
A21: 2021-06-17 | B21: 542918 | C21: GIANLIFE | D21: MAULIK CONSULTANCY | E21: BUY | F21: 24,000 | G21: 27 | H21: BSE
A22: 2021-06-17 | B22: 538979 | C22: GRNLAMIND | D22: GREENPLY LEASING & FINANCE PRIVATE LIMITED | E22: BUY | F22: 130,000 | G22: 1165 | H22: BSE
A23: 2021-06-17 | B23: 538979 | C23: GRNLAMIND | D23: SAURABH MITTAL | E23: SELL | F23: 130,000 | G23: 1165 | H23: BSE
A24: 2021-06-17 | B24: 500184 | C24: HSCL | D24: HRTI PRIVATE LIMITED | E24: BUY | F24: 2,589,580 | G24: 59.22 | H24: BSE
A25: 2021-06-17 | B25: 500184 | C25: HSCL | D25: HRTI PRIVATE LIMITED | E25: SELL | F25: 1,928,784 | G25: 59.43 | H25: BSE
A26: 2021-06-17 | B26: 531337 | C26: JUMPNET | D26: KULWANTSINGH | E26: BUY | F26: 737,680 | G26: 12.2 | H26: BSE
A27: 2021-06-17 | B27: 513693 | C27: KAJARIR | D27: IVORY CONSULTANTS PVT LTD | E27: SELL | F27: 250,000 | G27: 49.6 | H27: BSE
A28: 2021-06-17 | B28: 506079 | C28: LAKPRE | D28: ARUN KUMAR JAIN | E28: SELL | F28: 66,359 | G28: 5.02 | H28: BSE
A29: 2021-06-17 | B29: 539519 | C29: MAYUKH | D29: AKASH DASHRATHBHAI PATEL | E29: BUY | F29: 35,000 | G29: 30.09 | H29: BSE
A30: 2021-06-17 | B30: 519003 | C30: MODINATUR | D30: PENTAGON BUILDERS PVT LTD | E30: BUY | F30: 270,000 | G30: 124 | H30: BSE
A31: 2021-06-17 | B31: 519003 | C31: MODINATUR | D31: CHARANDEEP SINGH | E31: SELL | F31: 270,000 | G31: 124 | H31: BSE
A32: 2021-06-17 | B32: 531254 | C32: OPTIFIN | D32: VEAM CAPITALS PRIVATE LIMITED | E32: SELL | F32: 50,000 | G32: 26.35 | H32: BSE
A33: 2021-06-17 | B33: 531254 | C33: OPTIFIN | D33: NOPEA CAPITAL SERVICES PRIVATE LIMITED | E33: BUY | F33: 50,000 | G33: 26.35 | H33: BSE
A34: 2021-06-17 | B34: 539291 | C34: OZONEWORLD | D34: DARSHANGI MANISH PATEL | E34: BUY | F34: 40,396 | G34: 20.1 | H34: BSE
A35: 2021-06-17 | B35: 539291 | C35: OZONEWORLD | D35: DARSHANGI MANISH PATEL | E35: SELL | F35: 40,396 | G35: 20.1 | H35: BSE
A36: 2021-06-17 | B36: 539291 | C36: OZONEWORLD | D36: DEEPALI RAJU SHAH | E36: SELL | F36: 37,500 | G36: 20.1 | H36: BSE
A37: 2021-06-17 | B37: 532911 | C37: PARLEIND | D37: PIL ENTERPRISE PRIVATE LIMITED | E37: SELL | F37: 300,000 | G37: 9.83 | H37: BSE
A38: 2021-06-17 | B38: 532092 | C38: SAGARPROD | D38: ANTIQUE SECURITIES PVT LTD. | E38: SELL | F38: 335,000 | G38: 2.62 | H38: BSE
A39: 2021-06-17 | B39: 530525 | C39: SHEETAL | D39: KAMLESH BIHARILAL MEHTA | E39: SELL | F39: 30,000 | G39: 3.14 | H39: BSE
A40: 2021-06-17 | B40: 530525 | C40: SHEETAL | D40: SANKARAN G | E40: BUY | F40: 26,850 | G40: 3.26 | H40: BSE
A41: 2021-06-17 | B41: 543244 | C41: SHINEFASH | D41: SHRENI SHARES PRIVATE LIMITED | E41: SELL | F41: 9,000 | G41: 135 | H41: BSE
A42: 2021-06-17 | B42: 507998 | C42: SIMMOND | D42: HEENA R SHAH | E42: BUY | F42: 66,000 | G42: 49.35 | H42: BSE
A43: 2021-06-17 | B43: 507998 | C43: SIMMOND | D43: HEENA R SHAH | E43: SELL | F43: 1,000 | G43: 50.75 | H43: BSE
A44: 2021-06-17 | B44: 538920 | C44: SPACEAGE | D44: PSS INFRASTRUCTURES INDIA PRIVATE LIMITED | E44: SELL | F44: 38,866 | G44: 66.37 | H44: BSE
A45: 2021-06-17 | B45: 539026 | C45: SSPNFIN | D45: ESPS FINSERVE PRIVATE LIMITED | E45: BUY | F45: 36,000 | G45: 11.74 | H45: BSE
A46: 2021-06-17 | B46: 539026 | C46: SSPNFIN | D46: ESPS FINSERVE PRIVATE LIMITED | E46: SELL | F46: 4,000 | G46: 11.6 | H46: BSE
A47: 2021-06-17 | B47: 539026 | C47: SSPNFIN | D47: SUBASH RAMASHISH MISHRA | E47: SELL | F47: 24,000 | G47: 11.73 | H47: BSE
A48: 2021-06-17 | B48: 530419 | C48: SUMEDHA | D48: CRONY VYAPAR PVT LTD | E48: BUY | F48: 93,913 | G48: 34.13 | H48: BSE
A49: 2021-06-17 | B49: 530419 | C49: SUMEDHA | D49: CRONY VYAPAR PVT LTD | E49: SELL | F49: 93,913 | G49: 34.22 | H49: BSE
A50: 2021-06-17 | B50: 530419 | C50: SUMEDHA | D50: MUNISH FINANCIAL | E50: BUY | F50: 90,000 | G50: 34.2 | H50: BSE
A51: 2021-06-17 | B51: 531762 | C51: UNJHAFOR | D51: SUSHILA DEVI AGARWAL | E51: SELL | F51: 27,612 | G51: 9.65 | H51: BSE
A52: 2021-06-17 | B52: 531762 | C52: UNJHAFOR | D52: BHAVESH BHARAT JAIN (HUF) | E52: BUY | F52: 25,618 | G52: 9.65 | H52: BSE
A53: 2021-06-17 | B53: 531762 | C53: UNJHAFOR | D53: BHAVESH BHARAT JAIN (HUF) | E53: SELL | F53: 2,000 | G53: 10.23 | H53: BSE
A54: 2021-06-17 | B54: ACCELYA | C54: Accelya Soln India Ltd | D54: SHAH GEETA CHETAN | E54: BUY | F54: 78,249 | G54: 1203.64 | H54: BSE
A55: 2021-06-17 | B55: ADVENZYMES | C55: Advanced Enzyme Tech Ltd | D55: PLUTUS WEALTH MANAGEMENT LLP | E55: BUY | F55: 1,100,000 | G55: 400.06 | H55: NSE
A56: 2021-06-17 | B56: BFUTILITIE | C56: BF Utilities Limited | D56: XTX MARKETS LLP | E56: BUY | F56: 196,379 | G56: 463.22 | H56: NSE
A57: 2021-06-17 | B57: BFUTILITIE | C57: BF Utilities Limited | D57: GRAVITON RESEARCH CAPITAL LLP | E57: BUY | F57: 328,680 | G57: 464.8 | H57: NSE
A58: 2021-06-17 | B58: BOMDYEING | C58: Bombay Dyeing & Mfg Co. | D58: GRAVITON RESEARCH CAPITAL LLP | E58: BUY | F58: 2,693,498 | G58: 96.54 | H58: NSE
A59: 2021-06-17 | B59: BOMDYEING | C59: Bombay Dyeing & Mfg Co. | D59: QE SECURITIES | E59: BUY | F59: 1,255,125 | G59: 96.14 | H59: NSE
A60: 2021-06-17 | B60: CAREERP | C60: Career Point Limited | D60: B.W.TRADERS | E60: BUY | F60: 97,965 | G60: 149.42 | H60: NSE
A61: 2021-06-17 | B61: CARERATING | C61: CARE Ratings Ltd | D61: XTX MARKETS LLP | E61: BUY | F61: 169,384 | G61: 724.84 | H61: NSE
A62: 2021-06-17 | B62: CENTEXT | C62: Century Extrusions Limite | D62: B M TRADERS | E62: BUY | F62: 839,384 | G62: 11.02 | H62: NSE
A63: 2021-06-17 | B63: CENTEXT | C63: Century Extrusions Limite | D63: GRAVITON RESEARCH CAPITAL LLP | E63: BUY | F63: 523,894 | G63: 10.97 | H63: NSE
A64: 2021-06-17 | B64: CINELINE | C64: Cineline India Limited | D64: G M INTERNATIONAL | E64: BUY | F64: 150,000 | G64: 51.37 | H64: NSE
A65: 2021-06-17 | B65: DLINKINDIA | C65: D-Link India Ltd | D65: GRAVITON RESEARCH CAPITAL LLP | E65: BUY | F65: 231,085 | G65: 132.22 | H65: NSE
A66: 2021-06-17 | B66: FELIX | C66: Felix Industries Ltd. | D66: ANKURBHAI BHIKHABHAI BALAR | E66: BUY | F66: 44,000 | G66: 44.22 | H66: NSE
A67: 2021-06-17 | B67: GLOBUSSPR | C67: Globus Spirits Limited | D67: MANSI SHARES & STOCK ADVISORS PVT LTD | E67: BUY | F67: 280,736 | G67: 529.88 | H67: NSE
A68: 2021-06-17 | B68: GLOBUSSPR | C68: Globus Spirits Limited | D68: QE SECURITIES | E68: BUY | F68: 138,146 | G68: 502.73 | H68: NSE
A69: 2021-06-17 | B69: GLOBUSSPR | C69: Globus Spirits Limited | D69: OLD BRIDGE CAPITAL MANAGEMENT PRIVATE LIMITED | E69: BUY | F69: 725,701 | G69: 495.02 | H69: NSE
A70: 2021-06-17 | B70: GLOBUSSPR | C70: Globus Spirits Limited | D70: GRAVITON RESEARCH CAPITAL LLP | E70: BUY | F70: 161,950 | G70: 479.17 | H70: NSE
A71: 2021-06-17 | B71: GREAVESCOT | C71: Greaves Limited | D71: GRAVITON RESEARCH CAPITAL LLP | E71: BUY | F71: 1,553,715 | G71: 163.16 | H71: NSE
A72: 2021-06-17 | B72: HISARMETAL | C72: Hisar Metal Ind. Limited | D72: GRAVITON RESEARCH CAPITAL LLP | E72: BUY | F72: 42,188 | G72: 137.33 | H72: NSE
A73: 2021-06-17 | B73: HSCL | C73: Himadri Speciality Chem L | D73: GRAVITON RESEARCH CAPITAL LLP | E73: BUY | F73: 8,180,703 | G73: 59.3 | H73: NSE
A74: 2021-06-17 | B74: HSCL | C74: Himadri Speciality Chem L | D74: QE SECURITIES | E74: BUY | F74: 3,539,607 | G74: 59.22 | H74: NSE
A75: 2021-06-17 | B75: HSCL | C75: Himadri Speciality Chem L | D75: HRTI PRIVATE LIMITED | E75: BUY | F75: 3,469,122 | G75: 59.42 | H75: NSE
A76: 2021-06-17 | B76: HSCL | C76: Himadri Speciality Chem L | D76: XTX MARKETS LLP | E76: BUY | F76: 4,997,190 | G76: 59.21 | H76: NSE
A77: 2021-06-17 | B77: HSCL | C77: Himadri Speciality Chem L | D77: PRABHULAL LALLUBHAI PAREKH | E77: BUY | F77: 2,671,925 | G77: 59.55 | H77: NSE
A78: 2021-06-17 | B78: JAICORPLTD | C78: Jai Corp Limited | D78: XTX MARKETS LLP | E78: BUY | F78: 1,337,403 | G78: 157.61 | H78: NSE
A79: 2021-06-17 | B79: JAKHARIA | C79: JAKHARIA FABRIC LIMITED | D79: NOPEA CAPITAL SERVICES PRIVATE LIMITED | E79: BUY | F79: 61,600 | G79: 180 | H79: NSE
A80: 2021-06-17 | B80: JAYSREETEA | C80: Jayashree Tea Ltd. | D80: ORION STOCKS LTD | E80: BUY | F80: 159,064 | G80: 108.35 | H80: NSE
A81: 2021-06-17 | B81: JUMPNET | C81: Jump Networks Limited | D81: ADROIT FINANCIAL SERVICES PVT LTD | E81: BUY | F81: 573,623 | G81: 11.97 | H81: NSE
A82: 2021-06-17 | B82: JUSTDIAL | C82: Justdial Ltd. | D82: XTX MARKETS LLP | E82: BUY | F82: 676,907 | G82: 1068.07 | H82: NSE
A83: 2021-06-17 | B83: JUSTDIAL | C83: Justdial Ltd. | D83: GRAVITON RESEARCH CAPITAL LLP | E83: BUY | F83: 762,879 | G83: 1067.22 | H83: NSE
A84: 2021-06-17 | B84: LIBAS | C84: Libas Consu Products Ltd | D84: PARESH THAKKER | E84: BUY | F84: 84,990 | G84: 62.31 | H84: NSE
A85: 2021-06-17 | B85: MFSL | C85: Max Fin Serv Ltd | D85: GOVERNMENT OF SINGAPORE | E85: BUY | F85: 6,013,487 | G85: 1000 | H85: NSE
A86: 2021-06-17 | B86: NDRAUTO | C86: NDR Auto Components Ltd | D86: GAURAV DOSHI | E86: BUY | F86: 39,158 | G86: 262.03 | H86: NSE
A87: 2021-06-17 | B87: ORTINLAB | C87: Ortin Laboratories Ltd | D87: NK SECURITIES RESEARCH PRIVATE LIMITED | E87: BUY | F87: 114,208 | G87: 41.29 | H87: NSE
A88: 2021-06-17 | B88: ORTINLAB | C88: Ortin Laboratories Ltd | D88: JAYARAMA PRASAD MUNNANGI | E88: BUY | F88: 50,000 | G88: 40.29 | H88: NSE
A89: 2021-06-17 | B89: ORTINLAB | C89: Ortin Laboratories Ltd | D89: AFPL TRADELINK LLP | E89: BUY | F89: 30,332 | G89: 42.01 | H89: NSE
A90: 2021-06-17 | B90: ORTINLAB | C90: Ortin Laboratories Ltd | D90: MUKUL MAHESHWARI | E90: BUY | F90: 50,000 | G90: 43.55 | H90: NSE
A91: 2021-06-17 | B91: ORTINLAB | C91: Ortin Laboratories Ltd | D91: DIGVIJAY COMMERCE & TRADING PVT. LTD. | E91: BUY | F91: 50,000 | G91: 41.2 | H91: NSE
A92: 2021-06-17 | B92: ORTINLAB | C92: Ortin Laboratories Ltd | D92: CHANDARANA INTERMEDIARIES BROKERS PRIVATE LIMITED | E92: BUY | F92: 26,744 | G92: 42.54 | H92: NSE
A93: 2021-06-17 | B93: ORTINLAB | C93: Ortin Laboratories Ltd | D93: STOCK VERTEX VENTURES | E93: BUY | F93: 50,000 | G93: 43.55 | H93: NSE
A94: 2021-06-17 | B94: ORTINLAB | C94: Ortin Laboratories Ltd | D94: URMILA DOSHI | E94: BUY | F94: 101,000 | G94: 43.54 | H94: NSE
A95: 2021-06-17 | B95: ORTINLAB | C95: Ortin Laboratories Ltd | D95: DAULATRAM INNANI | E95: BUY | F95: 3,398 | G95: 42.98 | H95: NSE
A96: 2021-06-17 | B96: RAJRAYON | C96: Raj Rayon Industries Ltd | D96: VIBRANT SECURITIES PVT. LTD | E96: BUY | F96: 453,544 | G96: 0.55 | H96: NSE
A97: 2021-06-17 | B97: RIIL | C97: Reliance Indl Infra Ltd | D97: VAIBHAV STOCK AND DERIVATIVES BROKING PRIVATE LIMITED | E97: BUY | F97: 77,425 | G97: 793.04 | H97: NSE
A98: 2021-06-17 | B98: RIIL | C98: Reliance Indl Infra Ltd | D98: GAURAV DOSHI | E98: BUY | F98: 49,690 | G98: 754.78 | H98: NSE
A99: 2021-06-17 | B99: RIIL | C99: Reliance Indl Infra Ltd | D99: NK SECURITIES RESEARCH PRIVATE LIMITED | E99: BUY | F99: 113,821 | G99: 777.3 | H99: NSE
A100: 2021-06-17 | B100: RIIL | C100: Reliance Indl Infra Ltd | D100: GOLDMINE STOCKS PRIVATE LIMITED | E100: BUY | F100: 102,705 | G100: 796.03 | H100: NSE
A101: 2021-06-17 | B101: ROSSELLIND | C101: Rossell India Limited | D101: B.W.TRADERS | E101: BUY | F101: 77,976 | G101: 164.05 | H101: NSE
A102: 2021-06-17 | B102: ROSSELLIND | C102: Rossell India Limited | D102: GRAVITON RESEARCH CAPITAL LLP | E102: BUY | F102: 230,171 | G102: 163.37 | H102: NSE
A103: 2021-06-17 | B103: SEPOWER | C103: S.E. Power Limited | D103: STREAM VALUE FUND | E103: BUY | F103: 2,026,404 | G103: 7.22 | H103: NSE
A104: 2021-06-17 | B104: SMARTLINK | C104: Smartlink Holdings Ltd | D104: GRAVITON RESEARCH CAPITAL LLP | E104: BUY | F104: 77,259 | G104: 115.97 | H104: NSE
A105: 2021-06-17 | B105: SREINFRA | C105: SREI Infrastructure Finan | D105: ADROIT FINANCIAL SERVICES PVT LTD | E105: BUY | F105: 2,526,366 | G105: 12.6 | H105: NSE
A106: 2021-06-17 | B106: SUPERHOUSE | C106: Superhouse Limited | D106: MANMOHAN CHAUHAN | E106: BUY | F106: 63,600 | G106: 169.79 | H106: NSE
A107: 2021-06-17 | B107: SUPERHOUSE | C107: Superhouse Limited | D107: GRAVITON RESEARCH CAPITAL LLP | E107: BUY | F107: 70,719 | G107: 172.25 | H107: NSE
A108: 2021-06-17 | B108: SUPERHOUSE | C108: Superhouse Limited | D108: NK SECURITIES RESEARCH PRIVATE LIMITED | E108: BUY | F108: 58,888 | G108: 173.65 | H108: NSE
A109: 2021-06-17 | B109: TFCILTD | C109: Tourism Finance Corp | D109: BRIGHT METAL REFINERS | E109: BUY | F109: 416,151 | G109: 79.58 | H109: NSE
A110: 2021-06-17 | B110: VERTOZ | C110: Vertoz Advertising Ltd | D110: SHREE SHIVSHAKTI PROJECT CONSULTANT PRIVATE LIMITE | E110: BUY | F110: 71,937 | G110: 189.42 | H110: NSE
A111: 2021-06-17 | B111: ACCELYA | C111: Accelya Soln India Ltd | D111: SHAH CHETAN RASIKLAL | E111: SELL | F111: 78,249 | G111: 1203.64 | H111: NSE
A112: 2021-06-17 | B112: ADVENZYMES | C112: Advanced Enzyme Tech Ltd | D112: ADVANCED VITAL ENZYMES PRIVATE LIMITED | E112: SELL | F112: 1,400,000 | G112: 400.17 | H112: NSE
A113: 2021-06-17 | B113: BAJAJHIND | C113: Bajaj Hindustan Sugar Ltd | D113: RAMLAL KANWARLAL JAIN | E113: SELL | F113: 6,024,548 | G113: 15.95 | H113: NSE
A114: 2021-06-17 | B114: BFUTILITIE | C114: BF Utilities Limited | D114: GRAVITON RESEARCH CAPITAL LLP | E114: SELL | F114: 328,680 | G114: 464.44 | H114: NSE
A115: 2021-06-17 | B115: BFUTILITIE | C115: BF Utilities Limited | D115: XTX MARKETS LLP | E115: SELL | F115: 201,433 | G115: 463.22 | H115: NSE
A116: 2021-06-17 | B116: BOMDYEING | C116: Bombay Dyeing & Mfg Co. | D116: QE SECURITIES | E116: SELL | F116: 1,307,429 | G116: 96.41 | H116: NSE
A117: 2021-06-17 | B117: BOMDYEING | C117: Bombay Dyeing & Mfg Co. | D117: GRAVITON RESEARCH CAPITAL LLP | E117: SELL | F117: 2,693,498 | G117: 96.58 | H117: NSE
A118: 2021-06-17 | B118: CAREERP | C118: Career Point Limited | D118: B.W.TRADERS | E118: SELL | F118: 4,065 | G118: 150.55 | H118: NSE
A119: 2021-06-17 | B119: CARERATING | C119: CARE Ratings Ltd | D119: XTX MARKETS LLP | E119: SELL | F119: 169,384 | G119: 725.09 | H119: NSE
A120: 2021-06-17 | B120: CENTEXT | C120: Century Extrusions Limite | D120: SATYANARAYAN J KABRA | E120: SELL | F120: 500,000 | G120: 11.01 | H120: NSE
A121: 2021-06-17 | B121: CENTEXT | C121: Century Extrusions Limite | D121: B M TRADERS | E121: SELL | F121: 839,384 | G121: 11.23 | H121: NSE
A122: 2021-06-17 | B122: CENTEXT | C122: Century Extrusions Limite | D122: GRAVITON RESEARCH CAPITAL LLP | E122: SELL | F122: 523,894 | G122: 10.96 | H122: NSE
A123: 2021-06-17 | B123: COX&KINGS | C123: Cox & Kings Limited | D123: MAHAVIR PARASMAL HINGAD JAIN | E123: SELL | F123: 1,277,652 | G123: 2.2 | H123: NSE
A124: 2021-06-17 | B124: DLINKINDIA | C124: D-Link India Ltd | D124: GRAVITON RESEARCH CAPITAL LLP | E124: SELL | F124: 231,085 | G124: 132.42 | H124: NSE
A125: 2021-06-17 | B125: GLOBUSSPR | C125: Globus Spirits Limited | D125: TEMPLETON STRATEGIC EMERGING MARKETS FUND IV LDC | E125: SELL | F125: 893,388 | G125: 490.16 | H125: NSE
A126: 2021-06-17 | B126: GLOBUSSPR | C126: Globus Spirits Limited | D126: MANSI SHARES & STOCK ADVISORS PVT LTD | E126: SELL | F126: 182,122 | G126: 530.6 | H126: NSE
A127: 2021-06-17 | B127: GLOBUSSPR | C127: Globus Spirits Limited | D127: GRAVITON RESEARCH CAPITAL LLP | E127: SELL | F127: 161,950 | G127: 478.86 | H127: NSE
A128: 2021-06-17 | B128: GLOBUSSPR | C128: Globus Spirits Limited | D128: QE SECURITIES | E128: SELL | F128: 144,749 | G128: 499.32 | H128: NSE
A129: 2021-06-17 | B129: GREAVESCOT | C129: Greaves Limited | D129: GRAVITON RESEARCH CAPITAL LLP | E129: SELL | F129: 1,553,715 | G129: 163.2 | H129: NSE
A130: 2021-06-17 | B130: HISARMETAL | C130: Hisar Metal Ind. Limited | D130: GRAVITON RESEARCH CAPITAL LLP | E130: SELL | F130: 42,188 | G130: 137.58 | H130: NSE
A131: 2021-06-17 | B131: HSCL | C131: Himadri Speciality Chem L | D131: QE SECURITIES | E131: SELL | F131: 3,687,021 | G131: 59.31 | H131: NSE
A132: 2021-06-17 | B132: HSCL | C132: Himadri Speciality Chem L | D132: HRTI PRIVATE LIMITED | E132: SELL | F132: 4,129,918 | G132: 59.42 | H132: NSE
A133: 2021-06-17 | B133: HSCL | C133: Himadri Speciality Chem L | D133: XTX MARKETS LLP | E133: SELL | F133: 5,018,913 | G133: 59.31 | H133: NSE
A134: 2021-06-17 | B134: HSCL | C134: Himadri Speciality Chem L | D134: PRABHULAL LALLUBHAI PAREKH | E134: SELL | F134: 2,691,609 | G134: 59.58 | H134: NSE
A135: 2021-06-17 | B135: HSCL | C135: Himadri Speciality Chem L | D135: GRAVITON RESEARCH CAPITAL LLP | E135: SELL | F135: 8,180,703 | G135: 59.24 | H135: NSE
A136: 2021-06-17 | B136: JAICORPLTD | C136: Jai Corp Limited | D136: XTX MARKETS LLP | E136: SELL | F136: 1,317,612 | G136: 157.96 | H136: NSE
A137: 2021-06-17 | B137: JAKHARIA | C137: JAKHARIA FABRIC LIMITED | D137: PAYAL YAYESH JHAVERI | E137: SELL | F137: 30,400 | G137: 180 | H137: NSE
A138: 2021-06-17 | B138: JAKHARIA | C138: JAKHARIA FABRIC LIMITED | D138: YAYESH VINOD JHAVERI HUF | E138: SELL | F138: 40,800 | G138: 180 | H138: NSE
A139: 2021-06-17 | B139: JAYSREETEA | C139: Jayashree Tea Ltd. | D139: ORION STOCKS LTD | E139: SELL | F139: 159,023 | G139: 108.48 | H139: NSE
A140: 2021-06-17 | B140: JUMPNET | C140: Jump Networks Limited | D140: ADROIT FINANCIAL SERVICES PVT LTD | E140: SELL | F140: 534,173 | G140: 11.89 | H140: NSE
A141: 2021-06-17 | B141: JUSTDIAL | C141: Justdial Ltd. | D141: GRAVITON RESEARCH CAPITAL LLP | E141: SELL | F141: 762,879 | G141: 1067.4 | H141: NSE
A142: 2021-06-17 | B142: JUSTDIAL | C142: Justdial Ltd. | D142: XTX MARKETS LLP | E142: SELL | F142: 663,006 | G142: 1069.76 | H142: NSE
A143: 2021-06-17 | B143: LIBAS | C143: Libas Consu Products Ltd | D143: PARESH THAKKER | E143: SELL | F143: 83,027 | G143: 61.12 | H143: NSE
A144: 2021-06-17 | B144: MFSL | C144: Max Fin Serv Ltd | D144: MAX VENTURES INVESTMENT HOLDINGS PRIVATE LIMITED | E144: SELL | F144: 7,828,217 | G144: 1000.08 | H144: NSE
A145: 2021-06-17 | B145: NDRAUTO | C145: NDR Auto Components Ltd | D145: GAURAV DOSHI | E145: SELL | F145: 24,150 | G145: 261.54 | H145: NSE
A146: 2021-06-17 | B146: ORTINLAB | C146: Ortin Laboratories Ltd | D146: DIGVIJAY COMMERCE & TRADING PVT. LTD. | E146: SELL | F146: 10,000 | G146: 43.2 | H146: NSE
A147: 2021-06-17 | B147: ORTINLAB | C147: Ortin Laboratories Ltd | D147: CHANDARANA INTERMEDIARIES BROKERS PRIVATE LIMITED | E147: SELL | F147: 59,908 | G147: 41.77 | H147: NSE
A148: 2021-06-17 | B148: ORTINLAB | C148: Ortin Laboratories Ltd | D148: NK SECURITIES RESEARCH PRIVATE LIMITED | E148: SELL | F148: 114,733 | G148: 41.42 | H148: NSE
A149: 2021-06-17 | B149: ORTINLAB | C149: Ortin Laboratories Ltd | D149: MUKUL MAHESHWARI | E149: SELL | F149: 50,000 | G149: 41.52 | H149: NSE
A150: 2021-06-17 | B150: ORTINLAB | C150: Ortin Laboratories Ltd | D150: AFPL TRADELINK LLP | E150: SELL | F150: 50,000 | G150: 41.2 | H150: NSE
A151: 2021-06-17 | B151: ORTINLAB | C151: Ortin Laboratories Ltd | D151: DAULATRAM INNANI | E151: SELL | F151: 63,398 | G151: 43.52 | H151: NSE
A152: 2021-06-17 | B152: ORTINLAB | C152: Ortin Laboratories Ltd | D152: URMILA DOSHI | E152: SELL | F152: 101,001 | G152: 41.9 | H152: NSE
A153: 2021-06-17 | B153: ORTINLAB | C153: Ortin Laboratories Ltd | D153: GAURAV DOSHI | E153: SELL | F153: 75,000 | G153: 40.31 | H153: NSE
A154: 2021-06-17 | B154: ORTINLAB | C154: Ortin Laboratories Ltd | D154: STOCK VERTEX VENTURES | E154: SELL | F154: 40,000 | G154: 40.63 | H154: NSE
A155: 2021-06-17 | B155: RAJRAYON | C155: Raj Rayon Industries Ltd | D155: VIBRANT SECURITIES PVT. LTD | E155: SELL | F155: 2,000,000 | G155: 0.55 | H155: NSE
A156: 2021-06-17 | B156: RIIL | C156: Reliance Indl Infra Ltd | D156: GAURAV DOSHI | E156: SELL | F156: 99,690 | G156: 781.82 | H156: NSE
A157: 2021-06-17 | B157: RIIL | C157: Reliance Indl Infra Ltd | D157: GOLDMINE STOCKS PRIVATE LIMITED | E157: SELL | F157: 102,705 | G157: 796.48 | H157: NSE
A158: 2021-06-17 | B158: RIIL | C158: Reliance Indl Infra Ltd | D158: NK SECURITIES RESEARCH PRIVATE LIMITED | E158: SELL | F158: 113,821 | G158: 777.67 | H158: NSE
A159: 2021-06-17 | B159: RIIL | C159: Reliance Indl Infra Ltd | D159: VAIBHAV STOCK AND DERIVATIVES BROKING PRIVATE LIMITED | E159: SELL | F159: 77,425 | G159: 793.37 | H159: NSE
A160: 2021-06-17 | B160: ROSSELLIND | C160: Rossell India Limited | D160: B.W.TRADERS | E160: SELL | F160: 188,087 | G160: 165.02 | H160: NSE
A161: 2021-06-17 | B161: ROSSELLIND | C161: Rossell India Limited | D161: GRAVITON RESEARCH CAPITAL LLP | E161: SELL | F161: 230,171 | G161: 163.23 | H161: NSE
A162: 2021-06-17 | B162: SEPOWER | C162: S.E. Power Limited | D162: HESHIKA GROWTH FUND | E162: SELL | F162: 2,026,404 | G162: 7.22 | H162: NSE
A163: 2021-06-17 | B163: SMARTLINK | C163: Smartlink Holdings Ltd | D163: GRAVITON RESEARCH CAPITAL LLP | E163: SELL | F163: 77,259 | G163: 116.2 | H163: NSE
A164: 2021-06-17 | B164: SREINFRA | C164: SREI Infrastructure Finan | D164: ADROIT FINANCIAL SERVICES PVT LTD | E164: SELL | F164: 2,089,703 | G164: 12.49 | H164: NSE
A165: 2021-06-17 | B165: SUMIT | C165: Sumit Woods Limited | D165: INTELLECT STOCK BROKING LIMITED | E165: SELL | F165: 367,500 | G165: 14.39 | H165: NSE
A166: 2021-06-17 | B166: SUPERHOUSE | C166: Superhouse Limited | D166: MANMOHAN CHAUHAN | E166: SELL | F166: 62,175 | G166: 171.22 | H166: NSE
A167: 2021-06-17 | B167: SUPERHOUSE | C167: Superhouse Limited | D167: NK SECURITIES RESEARCH PRIVATE LIMITED | E167: SELL | F167: 58,888 | G167: 173.81 | H167: NSE
A168: 2021-06-17 | B168: SUPERHOUSE | C168: Superhouse Limited | D168: GRAVITON RESEARCH CAPITAL LLP | E168: SELL | F168: 70,719 | G168: 172.44 | H168: NSE
A169: 2021-06-17 | B169: UTTAMSTL | C169: Uttam Galva Steels Limite | D169: SAINATH TRADING COMPANY PRIVATE LIMITED . | E169: SELL | F169: 834,353 | G169: 6.64 | H169: NSE
A170: 2021-06-17 | B170: VERTOZ | C170: Vertoz Advertising Ltd | D170: SHREE SHIVSHAKTI PROJECT CONSULTANT PRIVATE LIMITE | E170: SELL | F170: 61,199 | G170: 189.69 | H170: NSE

Sheet Call Tracker (Equity & F&O)
M5: Back To Main Page
A6: Retail Research Technical Calls & Fundamental Performance Report for the month of June-2021
M7: =Main!B10 -> 2021-06-18
B8: Positional Call
A9: Sr.no | B9: Date | D9: Company | E9: Rec | F9: Rec Price | G9: Stop Loss*** | H9: Call Closed At | I9: Target | J9: Remark | K9: Profit / Loss per Share | L9: All charges | M9: Net Gain / Loss % | N9: Status | O9: Closed Date
A10: 1 | B10: 2021-04-05 | D10: HDFCBANK | E10: Buy | F10: 1465-1475 | G10: 1370 | I10: 1600-1700 | J10: Open | R10: H
A11: 2 | B11: 2021-05-03 | D11: HDFCLIFE | E11: Buy | F11: 663 | G11: 619 | H11: 703.5 | I11: 720-740 | J11: Profit of Rs.40.5/- | K11: =H11-F11 -> 40.5 | L11: =(F11*-0.8)/100 -> -5.30 | M11: =(K11+L11)/F11 -> 5.31% | N11: Successful | O11: 2021-06-17 | R11: H
A12: 3 | B12: 2021-05-26 | D12: JKCEMENT | E12: Buy | F12: 2830-2850 | G12: 2650 | I12: 3100-3200 | J12: Open | R12: H
A13: 4 | B13: 2021-05-27 | D13: BHARTIARTL | E13: Buy | F13: 522.5 | G13: 488 | H13: 544 | I13: 590-610 | J13: Part Profit of Rs.21.5/- | K13: =H13-F13 -> 21.5 | L13: =(F13*-0.8)/100 -> -4.18 | M13: =(K13+L13)/F13 -> 3.31% | N13: Successful | O13: 2021-06-08 | R13: H
A14: 5 | B14: 2021-05-31 | D14: RELIANCE | E14: Buy | F14: 2085 | G14: 1970 | H14: 2,245.00 | I14: 2250-2300 | J14: Profit of Rs.160/- | K14: =H14-F14 -> 160 | L14: =(F14*-0.8)/100 -> -16.68 | M14: =(K14+L14)/F14 -> 6.87% | N14: Successful | O14: 2021-06-03 | R14: H
A15: 6 | B15: 2021-06-01 | D15: HEROMOTOCO | E15: Buy | F15: 2965-2985 | G15: 2790 | I15: 3300-3350 | J15: Open | R15: H
A16: 7 | B16: 2021-06-02 | D16: SFL | E16: Buy | F16: 2035 | G16: 1895 | H16: 2,195.00 | I16: 2250-2300 | J16: Profit of Rs.160/- | K16: =H16-F16 -> 160 | L16: =(F16*-0.8)/100 -> -16.28 | M16: =(K16+L16)/F16 -> 7.06% | N16: Successful | O16: 2021-06-04 | R16: H
A17: 8 | B17: 2021-06-03 | D17: HUHTAMAKI | E17: Buy<> | F17: 292 | G17: 275 | H17: 306.5 | I17: 317-327 | J17: Part Profit of Rs.14.5/- | K17: =H17-F17 -> 14.5 | L17: =(F17*-0.8)/100 -> -2.34 | M17: =(K17+L17)/F17 -> 4.17% | N17: Successful | O17: 2021-06-04 | R17: H
A18: 9 | B18: 2021-06-10 | D18: BRITANNIA | E18: Buy | F18: 3570-3600 | G18: 3345 | I18: 3900-4000 | J18: Open | R18: H
A19: 10 | B19: 2021-06-14 | D19: IRCTC | E19: Buy | F19: 2050-2065 | G19: 1930 | I19: 2250-2300 | J19: Open | R19: H
A20: 11 | B20: 2021-06-15 | D20: PRSMJOHNSN | E20: Buy | F20: 130-132 | G20: 123 | I20: 150 | J20: Open | R20: N
A21: 12 | B21: 2021-06-16 | D21: ESCORTS | E21: Buy | F21: 1190-1205 | G21: 1119 | I21: 1300-1350 | J21: Open
A22: 13 | B22: 2021-06-16 | D22: HERANBA | E22: Buy | F22: 755-765 | G22: 710 | I22: 830-860 | J22: Open
A27: CLBS = Closing Basis ***
A28: Dividend adjusted <> | F28: Reinitiated $
A29: Part book {} | F29: Revised stoploss #
B31: Momentum Call
A32: Sr.no | B32: Date | D32: Company | E32: Rec | F32: Rec Price | G32: Stop Loss | H32: Call Closed At | I32: Target | J32: Remark | K32: Profit / Loss per Share/Lot | L32: All charges | M32: Net Gain / Loss % | N32: Status | O32: Closed Date
A33: 1 | B33: 2021-05-21 | D33: BEML | E33: Buy | F33: 1314 | G33: 1275 | H33: 1352 | I33: 1380-1400 | J33: Profit of Rs.38/- | K33: =H33-F33 -> 38 | L33: =(F33*-0.7)/100 -> -9.20 | M33: =(K33+L33)/F33 -> 2.19% | N33: Successful | O33: 2021-06-03 | R33: N
A34: 2 | B34: 2021-05-25 | D34: EXIDEIND | E34: Buy | F34: 190.5 | G34: 185 | H34: 195.5 | I34: 200-205 | J34: Profit of Rs.5/- | K34: =H34-F34 -> 5 | L34: =(F34*-0.7)/100 -> -1.33 | M34: =(K34+L34)/F34 -> 1.92% | N34: Successful | O34: 2021-06-07 | R34: H
A35: 3 | B35: 2021-05-28 | D35: TVSMOTOR | E35: Buy | F35: 636.5 | G35: 615 | H35: 614 | I35: 665-675 | J35: Loss of Rs.22.5/- | K35: =H35-F35 -> -22.5 | L35: =(F35*-0.7)/100 -> -4.46 | M35: =(K35+L35)/F35 -> -4.23% | N35: Unsuccessful | O35: 2021-06-01 | R35: N
A36: 4 | B36: 2021-06-01 | D36: SBIN | E36: Buy | F36: 429-433 | G36: 418 | I36: 450-455 | J36: Open | R36: H
A37: 5 | B37: 2021-06-03 | D37: AMARAJABAT | E37: Buy | F37: 745 | G37: 725 | H37: 764 | I37: 780-790 | J37: Profit of Rs.19/- | K37: =H37-F37 -> 19 | L37: =(F37*-0.7)/100 -> -5.22 | M37: =(K37+L37)/F37 -> 1.85% | N37: Successful | O37: 2021-06-07 | R37: H
A38: 6 | B38: 2021-06-03 | D38: ESCORTS | E38: Buy | F38: 1195 | G38: 1160 | H38: 1217.5 | I38: 1240-1250 | J38: Profit of Rs.22.5/- | K38: =H38-F38 -> 22.5 | L38: =(F38*-0.07)/100 -> -0.84 | M38: =(K38+L38)/F38 -> 1.81% | N38: Successful | O38: 2021-06-03 | R38: H
A39: 7 | B39: 2021-06-07 | D39: IBULHSGFIN | E39: Buy | F39: 253 | G39: 245 | H39: 261 | I39: 265-270 | J39: Profit of Rs.8/- | K39: 8 | L39: =(F39*-0.7)/100 -> -1.77 | M39: 2.46% | N39: Successful | O39: 2021-06-09 | R39: H
A40: 8 | B40: 2021-06-08 | D40: IEX | E40: Buy | F40: 361 | G40: 349 | H40: 368 | I40: 375-380 | J40: Profit of Rs.7/- | K40: =H40-F40 -> 7 | L40: =(F40*-0.07)/100 -> -0.25 | M40: =(K40+L40)/F40 -> 1.87% | N40: Successful | O40: 2021-06-08 | R40: H
A41: 9 | B41: 2021-06-09 | D41: IRCTC | E41: Buy | F41: 2119 | G41: 2045 | H41: 2045 | I41: 2200-2250 | J41: Loss of Rs.74/- | K41: -74 | L41: =(F41*-0.7)/100 -> -14.83 | M41: -4.19% | N41: Unsuccessful | O41: 2021-06-14 | R41: H
A42: 10 | B42: 2021-06-10 | D42: AMBER | E42: Buy | F42: 2840 | G42: 2760 | H42: 2760 | I42: 2980-3020 | J42: Loss of Rs.80/- | K42: -80 | L42: =(F42*-0.7)/100 -> -19.88 | M42: -3.52% | N42: Unsuccessful | O42: 2021-06-14 | R42: H
A43: 11 | B43: 2021-06-14 | D43: RECLTD | E43: Buy | F43: 158.25 | G43: 153.5 | H43: 153 | I43: 165-170 | J43: Loss of Rs.5.25/- | K43: =H43-F43 -> -5.25 | L43: =(F43*-0.7)/100 -> -1.11 | M43: =(K43+L43)/F43 -> -4.02% | N43: Unsuccessful | O43: 2021-06-17 | R43: H
A44: 12 | B44: 2021-06-15 | D44: CARBORUNIV | E44: Buy | F44: 579-581 | G44: 562 | I44: 610-620 | J44: Open | R44: H
A45: 13 | B45: 2021-06-16 | D45: MIDHANI | E45: Buy | F45: 210-211 | G45: 205 | I45: 220-224 | J45: Open
A57: CLBS = Closing Basis *** | H57: *
A58: Dividend adjusted <> | F58: Reinitiated $
F59: Revised stoploss #
A61: Master Trade High Risk
A62: Sr.no | B62: Date | D62: Company | E62: Rec | F62: Rec Price | G62: Stop Loss | H62: Call Closed At | I62: Target | J62: Remark | K62: Profit / Loss per share | L62: All charges | M62: Gain / Loss per Lot | N62: Lot | O62: Status | P62: Closed Date
A63: 1 | B63: 2021-05-27 | D63: HINDUNILVR JUNE FUT | E63: Buy | F63: 2330 | G63: 2285 | H63: 2361 | I63: 2390-2410 | J63: Profit of Rs.31/- | K63: =H63-F63 -> 31 | L63: =(H63*N63)*0.07% -> 495.81 | M63: =(K63*N63)-L63 -> 8804.2 | N63: 300 | O63: Successful | P63: 2021-06-02 | R63: H
A64: 2 | B64: 2021-06-02 | D64: HDFCLIFE JUNE FUT | E64: Buy | F64: 678.5 | G64: 668 | H64: 685.5 | I64: 695-700 | J64: Profit of Rs.7/- | K64: 7 | L64: 527.84 | M64: 7172.2 | N64: 1100 | O64: Successful | P64: 2021-06-03 | R64: H
A65: 3 | B65: 2021-06-02 | D65: PEL JUNE FUT | E65: Buy | F65: 1840 | G65: 1794 | H65: 1868.5 | I65: 1910-1930 | J65: Profit of Rs.28.5/- | K65: =H65-F65 -> 28.5 | L65: =(H65*N65)*0.07% -> 359.69 | M65: =(K65*N65)-L65 -> 7477.8 | N65: 275 | O65: Successful | P65: 2021-06-03 | R65: H
A66: 4 | B66: 2021-06-02 | D66: NAUKRI JUNE FUT | E66: Buy | F66: 4530 | G66: 4440 | H66: 4630 | I66: 4700-4750 | J66: Profit of Rs.100/- | K66: =H66-F66 -> 100 | L66: =(H66*N66)*0.07% -> 405.13 | M66: =(K66*N66)-L66 -> 12094.9 | N66: 125 | O66: Successful | P66: 2021-06-03 | R66: H
A67: 5 | B67: 2021-06-04 | D67: HINDUNILVR JUNE FUT | E67: Buy | F67: 2334 | G67: 2289 | H67: 2362 | I67: 2380-2400 | J67: Profit of Rs.28/- | K67: 28 | L67: 496.02 | M67: 7904.0 | N67: 300 | O67: Successful | P67: 2021-06-09 | R67: H
A68: 6 | B68: 2021-06-07 | D68: ESCORTS JUNE FUT | E68: Buy | F68: 1221 | G68: 1197 | H68: 1200 | I68: 1250-1260 | J68: Loss of Rs.21/- | K68: -21 | L68: 462.00 | M68: -12012.0 | N68: 550 | O68: Unsuccessful | P68: 2021-06-09 | R68: H
A69: 7 | B69: 2021-06-08 | D69: NAUKRI JUNE FUT | E69: Buy | F69: 4650 | G69: 4540 | H69: 4580 | I69: 4800-4850 | J69: Loss of Rs.70/- | K69: =H69-F69 -> -70 | L69: =(H69*N69)*0.07% -> 400.75 | M69: =(K69*N69)-L69 -> -9150.8 | N69: 125 | O69: Unsuccessful | P69: 2021-06-09 | R69: H
A70: 8 | B70: 2021-06-08 | D70: HCLTECH JUNE FUT | E70: Buy | F70: 968 | G70: 949 | H70: 980 | I70: 990-1000 | J70: Profit of Rs.12/- | K70: =H70-F70 -> 12 | L70: =(H70*N70)*0.07% -> 480.20 | M70: =(K70*N70)-L70 -> 7919.8 | N70: 700 | O70: Successful | P70: 2021-06-09 | R70: H
A71: 9 | B71: 2021-06-11 | C71: HEROMOTOCO APRIL FUT | D71: RELIANCE JUNE FUT | E71: Buy | F71: 2214-2218 | G71: 2145 | I71: 2300 | J71: Open | R71: H
C72: HEROMOTOCO APR 3050 CE | D72: RELIANCE 2260 CE | E72: Sell | F72: 36-38 | R72: H
A73: 10 | B73: 2021-06-14 | C73: HEROMOTOCO APRIL FUT | D73: DRREDDY JUNE FUT | E73: Buy | F73: 5440 | G73: 5295 | H73: 5295 | I73: 5700 | J73: Loss of Rs.89/- | K73: =H73-F73 -> -145.00 | L73: =(H73*N73)*0.07% -> 463.31 | M73: =(-89*N73)-563.31 -> -11688.31 | N73: 125 | O73: Unsuccessful | P73: 2021-06-17 | R73: H
C74: HEROMOTOCO APR 3050 CE | D74: DRREDDY 5600 CE | E74: Sell | F74: 74 | G74: 18 | K74: =F74-G74 -> 56.00 | L74: 100.00 | R74: H
A75: 11 | B75: 2021-06-15 | D75: TECHM JUN FUT | E75: Buy | F75: 1071 | G75: 1050 | H75: 1084 | I75: 1100-1110 | J75: Profit of Rs.13/- | K75: =H75-F75 -> 13 | L75: =(H75*N75)*0.07% -> 455.28 | M75: =(K75*N75)-L75 -> 7344.7 | N75: 600 | O75: Successful | P75: 2021-06-17 | R75: H
A82: Master Trade Medium Risk
A83: Sr.no | B83: Date | D83: Company | E83: Rec | F83: Rec Price | G83: Stop Loss | H83: Call Closed At | I83: Target | J83: Remark | K83: Profit/ Loss per lot | L83: All charges | M83: Gain / Loss per Lot | N83: Lot | O83: Status | P83: Closed Date
A84: 1 | B84: 2021-05-28 | D84: M&MFIN 185 CE JUNE | E84: Sell | F84: 2.55 | G84: 3.8 | H84: 1.4 | I84: 0.1 | J84: Profit of Rs.1.15/- | K84: =F84-H84 -> 1.15 | L84: 100 | M84: =(K84*N84)-L84 -> 4500.0 | N84: 4000 | O84: Successful | P84: 2021-06-14 | R84: N
A85: 2 | B85: 2021-05-31 | D85: NIFTY 15600 CE 3 JUNE | E85: Buy | F85: 64 | G85: 17 | H85: 76 | I85: 100-120 | J85: Profit of Rs.12/- | K85: =H85-F85 -> 12 | L85: 100 | M85: 800.0 | N85: 75 | O85: Successful | P85: 2021-06-01 | R85: H
A86: 3 | B86: 2021-06-02 | D86: NIFTY 15500 CE 3 JUNE | E86: Buy | F86: 57.5 | G86: 17 | H86: 71.5 | I86: 100-110 | J86: Profit of Rs.14/- | K86: 14 | L86: 100 | M86: 950.0 | N86: 75 | O86: Successful | P86: 2021-06-02 | R86: H
A87: 4 | B87: 2021-06-07 | D87: IRCTC 2200 CE JUNE | E87: Buy | F87: 40.5 | G87: 27 | H87: 52.5 | I87: 55-60 | J87: Profit of Rs.12/- | K87: 12 | L87: 100 | M87: 3800.0 | N87: 325 | O87: Successful | P87: 2021-06-07 | R87: H
A88: 5 | B88: 2021-06-09 | D88: TECHM 1080 CE JUNE | E88: Buy | F88: 18 | G88: 9 | H88: 22 | I88: 28-32 | J88: Profit of Rs.4/- | K88: 4 | L88: 100 | M88: 2300.0 | N88: 600 | O88: Successful | P88: 2021-06-10 | R88: H
A89: 6 | B89: 2021-06-10 | D89: NIFTY 15550 PE 17 JUNE | E89: Buy | F89: 63.5 | G89: 17 | H89: 17 | I89: 110-120 | J89: Loss of Rs.46.5/- | K89: -46.5 | L89: 100 | M89: -3587.5 | N89: 75 | O89: Unsuccessful | P89: 2021-06-14 | R89: H
A90: 7 | B90: 2021-06-11 | D90: GRANULES 350 CE JUNE | E90: Buy | F90: 8.25 | G90: 4.5 | H90: 4.5 | I90: 14-16 | J90: Loss of Rs.3.75/- | K90: -3.75 | L90: 100 | M90: =(K90*N90)-L90 -> -5912.5 | N90: 1550 | O90: Unsuccessful | P90: 2021-06-16 | R90: H
A91: 8 | B91: 2021-06-15 | D91: M&MFIN 190 CE JUNE | E91: Sell | F91: 2.1 | G91: 3.6 | H91: 0.95 | I91: 0.1 | J91: Profit of Rs.1.15/- | K91: =F91-H91 -> 1.15 | L91: 100 | M91: =(K91*N91)-L91 -> 4500.0 | N91: 4000 | O91: Successful | P91: 2021-06-16 | R91: N
A92: 9 | B92: 2021-06-15 | D92: BANKNIFTY 35000 PE 17 JUNE | E92: Buy | F92: 145 | G92: 40 | H92: 210 | I92: 300-350 | J92: Profit of Rs.65/- | K92: =H92-F92 -> 65 | L92: 100 | M92: =(K92*N92)-L92 -> 1525.0 | N92: 25 | O92: Successful | P92: 2021-06-16 | R92: N
A93: 10 | B93: 2021-06-15 | D93: PETRONET 245 CE JUNE | E93: Sell | F93: 2.45 | G93: 4 | H93: 1.45 | I93: 0.1 | J93: Profit of Rs.1/- | K93: =F93-H93 -> 1 | L93: 100 | M93: 2900.0 | N93: 3000 | O93: Successful | P93: 2021-06-16 | R93: H
A94: 11 | B94: 2021-06-16 | D94: HDFCBANK 1500 CE JUNE | E94: Buy | F94: 21.5 | G94: 11 | H94: 12 | I94: 40 | J94: Loss of Rs.9.5/- | K94: =H94-F94 -> -9.5 | L94: 100 | M94: -5325.0 | N94: 550 | O94: Unsuccessful | P94: 2021-06-17
A95: 12 | B95: 2021-06-17 | D95: BANKNIFTY 35000 CE 24 JUNE | E95: Buy | F95: 330-350 | G95: 190 | I95: 550-600 | J95: Open
A96: 13 | B96: 2021-06-17 | D96: RELIANCE 2220 CE JUNE | E96: Buy | F96: 39 | G96: 18 | H96: 45.5 | I96: 75-85 | J96: Profit of Rs.6.5/- | K96: =H96-F96 -> 6.5 | L96: 100 | M96: =(K96*N96)-L96 -> 1525.0 | N96: 250 | O96: Successful | P96: 2021-06-17
A97: 14 | B97: 2021-06-17 | D97: NIFTY 15650 CE 17-JUNE | E97: Buy | F97: 13.5 | H97: 26 | I97: 40 | J97: Profit of Rs.12.5/- | K97: =H97-F97 -> 12.5 | L97: 100 | M97: =(K97*N97)-L97 -> 837.5 | N97: 75 | O97: Successful | P97: 2021-06-17
A106: Techno -Funda (positional)
A107: Sr.no | B107: Date | D107: Company | E107: Rec | F107: Rec Price | G107: Stop Loss*** | H107: Call Closed At | I107: Target | J107: Remark | K107: Profit / Loss per Share/Lot | L107: All charges | M107: Net Gain / Loss % | N107: Status | O107: Closed Date
A108: 1 | B108: 2021-05-11 | D108: RITES | E108: Buy | F108: 239 | G108: 218 | H108: 264.00 | I108: 280-290 | J108: Profit of Rs.25/- | K108: =H108-F108 -> 25 | L108: =(F108*-0.8)/100 -> -1.91 | M108: =(K108+L108)/F108 -> 9.66% | N108: Successful | O108: 2021-06-07 | R108: H
A109: 2 | B109: 2021-06-16 | D109: WHIRLPOOL | E109: Buy | F109: 2260-2300 | G109: 2070 | I109: 2600-2700 | J109: Open
A112: CLBS = Closing Basis *** | F112: Reinitiated $
A113: Dividend adjusted <> | F113: Revised stoploss #
B115: Intrday Call
A116: Sr.no | B116: Date | D116: Company | E116: Rec | F116: Rec Price | G116: Stop Loss | H116: Call Closed At | I116: Target | J116: Remark | K116: Profit / Loss per Share/Lot | L116: Gain / Loss per Lot | M116: Lot | N116: All charges | O116: Net Gain / Loss % | P116: Status | Q116: Closed Date
B129: Investment Idea
A130: Sr.no | B130: Date | D130: Company | E130: Rec | F130: Rec Price | G130: Point of Review | H130: Close Rate | I130: Target | J130: Remark | K130: Profit / Loss per Share | L130: Gain / Loss % | M130: Status | N130: Closed Date
A131: 1 | B131: 2013-11-01 | D131: L&T Finance Holding | E131: Accu | F131: 82.00 | G131: - | H131: 100 | I131: 100.00 | J131: Target Achieved | K131: =H131-F131 -> 18.00 | L131: =K131/F131 -> 21.95% | M131: Successful | N131: 2016-10-14
A132: 2 | B132: 2014-06-04 | D132: Finolex Inds | E132: Buy | F132: 257.00 | G132: - | H132: 300 | I132: 300.00 | J132: Target Achieved | K132: 43.00 | L132: 16.73% | M132: Successful | N132: 2014-07-02
A133: 3 | B133: 2014-07-08 | D133: JK Cement | E133: Buy | F133: 393.00 | G133: - | H133: 468 | I133: 468.00 | J133: Target Achieved | K133: 75.00 | L133: 19.08% | M133: Successful | N133: 2014-08-12
A134: 4 | B134: 2014-08-06 | D134: Finolex Cables | E134: Buy | F134: 205.00 | G134: - | H134: 275 | I134: 250.00 | J134: Target Achieved | K134: 70.00 | L134: 34.15% | M134: Successful | N134: 2014-11-19
A135: 5 | B135: 2014-09-04 | D135: Exide Inds | E135: Buy | F135: 162.00 | G135: - | H135: 190 | I135: 190.00 | J135: Target Achieved | K135: 28.00 | L135: 17.28% | M135: Successful | N135: 2015-01-02
A136: 6 | B136: 2014-09-04 | D136: Deepak Nitrite | E136: Buy | F136: 75.00 | G136: - | H136: 91.5 | I136: 95-100 | J136: Profit of Rs.16.50/- | K136: 16.50 | L136: 22.00% | M136: Successful | N136: 2014-11-11
A137: 7 | B137: 2014-10-01 | D137: Mercks | E137: Buy | F137: 850.00 | G137: - | H137: 982.5 | I137: 1050.00 | J137: Profit of Rs.132.50/- | K137: 132.50 | L137: 15.59% | M137: Successful | N137: 2015-02-04
A138: 8 | B138: 2014-10-01 | D138: Grindwell Norton | E138: Buy | F138: 475.00 | G138: - | H138: 515 | I138: 600.00 | J138: Profit of Rs.40/- | K138: 40.00 | L138: 8.42% | M138: Successful | N138: 2014-10-27
A139: 9 | B139: 2014-10-01 | D139: Snowman Logistics | E139: Buy | F139: 86.00 | G139: - | H139: 99 | I139: 140.00 | J139: Profit of Rs.13.00/- | K139: 13.00 | L139: 15.12% | M139: Successful | N139: 2014-10-27
A140: 10 | B140: 2014-10-14 | D140: Birla Corp | E140: Buy | F140: 496.60 | G140: - | H140: 621 | I140: 580.00 | J140: Target Achieved | K140: 124.40 | L140: 25.05% | M140: Successful | N140: 2016-08-23
A141: 11 | B141: 2014-10-14 | D141: Ultratech Cem | E141: Buy | F141: 2481.90 | G141: - | H141: 2840 | I141: 2870.00 | J141: Profit of Rs.358.10/- | K141: 358.10 | L141: 14.43% | M141: Successful | N141: 2015-01-13
A142: 12 | B142: 2014-10-16 | D142: Sintex Inds | E142: Buy | F142: 84.50 | G142: - | H142: 93 | I142: 110.00 | J142: Profit of Rs.8.50/- | K142: 8.50 | L142: 10.06% | M142: Successful | N142: 2014-10-27
A143: 13 | B143: 2014-10-16 | D143: HSIL | E143: Buy | F143: 401.00 | G143: - | H143: 428 | I143: 450.00 | J143: Profit of Rs.27.00/- | K143: 27.00 | L143: 6.73% | M143: Successful | N143: 2015-01-16
A144: 14 | B144: 2014-10-16 | D144: Eveready Inds | E144: Buy | F144: 101.00 | G144: - | H144: 112 | I144: 120.00 | J144: Profit of Rs.11.00/- | K144: 11.00 | L144: 10.89% | M144: Successful | N144: 2014-10-27
A145: 15 | B145: 2014-11-11 | D145: Pennar Inds | E145: Buy | F145: 59.00 | G145: - | H145: 76 | I145: 76.00 | J145: Target Achieved | K145: 17.00 | L145: 28.81% | M145: Successful | N145: 2017-10-24
A146: 16 | B146: 2014-11-11 | D146: Snowman Logistics | E146: Buy | F146: 99.00 | G146: - | H146: 120 | I146: 120.00 | J146: Profit of Rs.21/- | K146: 21.00 | L146: 21.21% | M146: Successful | N146: 2014-11-17
A147: 17 | B147: 2014-11-13 | D147: Dharamsi Morarji Chem | E147: Buy | F147: 22.00 | G147: - | H147: 33.55 | I147: 32.00 | J147: Profit of Rs 11.55/- | K147: 11.55 | L147: 52.50% | M147: Successful | N147: 2015-07-03
A148: 18 | B148: 2014-12-03 | D148: Tatachem | E148: Buy | F148: 440.00 | G148: - | H148: 520 | I148: 520.00 | J148: Profit of Rs 80.00/- | K148: 80.00 | L148: 18.18% | M148: Successful | N148: 2015-07-23
A149: 19 | B149: 2014-12-03 | D149: Advanta | E149: Buy | F149: 360.00 | G149: - | H149: 427 | I149: 425.00 | J149: Profit of Rs.67.00/- | K149: 67.00 | L149: 18.61% | M149: Successful | N149: 2015-02-23
A150: 20 | B150: 2015-01-08 | D150: GDL | E150: Buy | F150: 360.00 | G150: - | H150: 455 | I150: 420.00 | J150: Profit of Rs.95.00/- | K150: 95.00 | L150: 26.39% | M150: Successful | N150: 2015-01-20
A151: 21 | B151: 2015-01-08 | D151: NRB Bearing | E151: Buy | F151: 130.00 | H151: 175.5 | I151: 165.00 | J151: Profit of Rs 45.50/- | K151: 45.50 | L151: 35.00% | M151: Successful | N151: 2017-12-19
A152: 22 | B152: 2015-02-05 | D152: GSFC | E152: Accu | F152: 98.00 | H152: 120 | I152: 120.00 | J152: Target Achieved | K152: 22.00 | L152: 22.45% | M152: Successful | N152: 2017-01-18
A153: 23 | B153: 2015-02-05 | D153: Sundrmfast | E153: Accu | F153: 196.00 | H153: 262 | I153: 255.00 | J153: Target Achieved | K153: 66.00 | L153: 33.67% | M153: Successful | N153: 2016-08-17
A154: 24 | B154: 2015-03-04 | D154: GPPL | E154: Accu | F154: 235 | H154: 77.00 | I154: 280-285 | J154: Loss of Rs.158/- | K154: -158.00 | L154: -67.23% | M154: Unsuccessful | N154: 2019-02-26
A155: 25 | B155: 2015-03-04 | D155: ORIENTCEM | E155: Accu | F155: 185.00 | H155: 224 | I155: 220-225 | J155: Target Achieved | K155: 39.00 | L155: 21.08% | M155: Successful | N155: 2016-10-04
A156: 26 | B156: 2015-03-27 | D156: PFS | E156: Accu | F156: 49.5 | H156: 15.85 | I156: 67.00 | J156: Loss of Rs.33.65/- | K156: -33.65 | L156: -68% | M156: Unsuccessful | N156: 2019-06-11
A157: 27 | B157: 2015-03-30 | D157: Walchandnagar Ind Ltd | E157: Accu | F157: 183.50 | H157: 219 | I157: 218.00 | J157: Profit of Rs.35.50/- | K157: 35.50 | L157: 19.35% | M157: Successful | N157: 2015-04-09
A158: 28 | B158: 2015-04-20 | D158: Kalpataru Power Transmission Ltd | E158: Accu | F158: =(227+237)/2 -> 232.00 | H158: 298 | I158: 298.00 | J158: Target Achieved | K158: 66.00 | L158: 28.45% | M158: Successful | N158: 2017-03-29
A159: 29 | B159: 2015-05-04 | D159: Mastek Ltd | E159: Buy | F159: 385.00 | H159: =212.5+331 -> 543.5 | I159: 510.00 | J159: Profit of Rs 158.50/- | K159: 158.50 | L159: 41.17% | M159: Successful | N159: 2015-08-19
A160: 30 | B160: 2015-05-04 | D160: Suprajit Eng | E160: Buy | F160: 115.50 | H160: 146 | I160: 142.00 | J160: Profit of Rs 30.50/- | K160: 30.50 | L160: 26.41% | M160: Successful | N160: 2015-07-17
A161: 31 | B161: 2015-05-27 | D161: TCI | E161: Buy | F161: 237.50 | H161: 279.5 | I161: 278.00 | J161: Target Achieved | K161: 42.00 | L161: 17.68% | M161: Successful | N161: 2015-08-06
A162: 32 | B162: 2015-06-19 | D162: HSIL | E162: Accu | F162: 340.00 | H162: 448 | I162: 448.00 | J162: Target Achieved | K162: 108.00 | L162: 31.76% | M162: Successful | N162: 2017-10-10
A163: 33 | B163: 2015-07-06 | D163: Capital First | E163: Accu | F163: 390.00 | H163: 460 | I163: 460.00 | J163: Target Achieved | K163: =H163-F163 -> 70.00 | L163: =K163/F163 -> 17.95% | M163: Successful | N163: 2016-04-18
A164: 34 | B164: 2015-07-10 | D164: Dolphin OffShore | E164: Accu | F164: 122.5 | H164: 61.00 | I164: 172.00 | J164: Loss of Rs.61.50/- | K164: -61.50 | L164: -50.20% | M164: Unsuccessful | N164: 2018-08-21
A165: 35 | B165: 2015-08-03 | D165: Allcargo logistics | E165: Accu | F165: 297.50 | H165: 350 | I165: 360.00 | J165: Profit of Rs 52.50/- | K165: 52.50 | L165: 17.65% | M165: Successful | N165: 2015-08-16
A166: 36 | B166: 2015-08-03 | D166: Camline Fine | E166: Accu | F166: 115.50 | H166: 149 | I166: 140.00 | J166: Profit of Rs 33.50/- | K166: 33.50 | L166: 29.00% | M166: Successful | N166: 2017-01-05
A167: 37 | B167: 2015-09-04 | D167: TCI | E167: Accu | F167: 226.00 | H167: 292 | I167: 292.00 | J167: Target Achieved | K167: 66.00 | L167: 29.20% | M167: Successful | N167: 2015-10-09
A168: 38 | B168: 2015-09-07 | D168: Kalpataru Power Transmission Ltd | E168: Accu | F168: 232.50 | H168: 312.5 | I168: 310.00 | J168: Target Achieved | K168: 80.00 | L168: 34.41% | M168: Successful | N168: 2017-03-29
A169: 39 | B169: 2015-09-21 | D169: LLOYD ELECTRIC & ENG LTD | E169: Accu | F169: 196.50 | H169: 238 | I169: 238.00 | J169: Target Achieved | K169: 41.50 | L169: 21.12% | M169: Successful | N169: 2015-10-14
A170: 40 | B170: 2015-09-24 | D170: L&T Finance Holding | E170: Accu | F170: 65.00 | H170: 82 | I170: 82.00 | J170: Target Achieved | K170: 17.00 | L170: 26.15% | M170: Successful | N170: 2016-07-27
A171: 41 | B171: 2015-10-14 | D171: KEC International ltd | E171: Accu | F171: 144.00 | H171: 182.5 | I171: 181.00 | J171: Target Achieved | K171: 38.50 | L171: 26.74% | M171: Successful | N171: 2017-03-23
A172: 42 | B172: 2015-10-14 | D172: Gruh Finance | E172: Accu | F172: 264.00 | H172: 311 | I172: 311.00 | J172: Target Achieved | K172: 47.00 | L172: 17.80% | M172: Successful | N172: 2016-08-22
A173: 43 | B173: 2015-11-10 | D173: Pidilitind | E173: Buy | F173: 549.50 | H173: 630 | I173: 630.00 | J173: Target Achieved | K173: 80.50 | L173: 14.65% | M173: Successful | N173: 2016-02-19
A174: 44 | B174: 2015-12-04 | D174: Zensar Technology | E174: Accu | F174: 1027.50 | H174: 1315 | I174: 1250.00 | J174: Target Achieved | K174: 287.50 | L174: 27.98% | M174: Successful | N174: 2018-05-24
A175: 45 | B175: 2015-12-29 | D175: Vinati Organics Ltd | E175: Accu | F175: 465.00 | H175: 540 | I175: 540.00 | J175: Target Achieved | K175: 75.00 | L175: 16.13% | M175: Successful | N175: 2016-06-09
A176: 46 | B176: 2016-01-11 | D176: GSFC | E176: Buy | F176: 81.00 | H176: 110 | I176: 110.00 | J176: Target Achieved | K176: 29.00 | L176: 35.80% | M176: Successful | N176: 2017-01-10
A177: 47 | B177: 2016-01-13 | D177: SSWL | E177: Buy | F177: 417.50 | H177: 547 | I177: 535.00 | J177: Target Achieved | K177: 129.50 | L177: 31.02% | M177: Successful | N177: 2016-07-27
A178: 48 | B178: 2016-02-08 | D178: Persistent System Ltd | E178: Accu | F178: 650.00 | H178: 800 | I178: 800.00 | J178: Target Achieved | K178: 150.00 | L178: 23.08% | M178: Successful | N178: 2018-02-23
A179: 49 | B179: 2016-03-04 | D179: UPL | E179: Accu | F179: 437.50 | H179: 504.5 | I179: 522.00 | J179: Profit of Rs.67/- | K179: 67.00 | L179: 15.31% | M179: Successful | N179: 2016-04-20
A180: 50 | B180: 2016-03-09 | D180: Ashoka Buildcon Ltd | E180: Accu | F180: 189.50 | H180: 218 | I180: 218.00 | J180: Target Achieved | K180: 28.50 | L180: 15.04% | M180: Successful | N180: 2017-10-26
A181: 51 | B181: 2016-04-11 | D181: PTC INDIA FIN SERV LTD | E181: Accu | F181: 36.5 | H181: 15.85 | I181: 60.00 | J181: Loss of Rs.20.65/- | K181: -20.65 | L181: -56.58% | M181: Unsuccessful | N181: 2019-06-11
A182: 52 | B182: 2016-04-12 | D182: CAMLINFINE $ | E182: Accu | F182: 93.00 | H182: 149 | I182: 140.00 | J182: Profit of Rs 56/- | K182: 56.00 | L182: 60.22% | M182: Successful | N182: 2017-01-05
A183: 53 | B183: 2016-04-12 | D183: Greaves Cotton Ltd. | E183: Accu | F183: 130.00 | H183: 150 | I183: 150-155 | J183: Target Achieved | K183: 20.00 | L183: 15.38% | M183: Successful | N183: 2016-07-13
A184: 54 | B184: 2016-04-13 | D184: DHFL | E184: Accu | F184: 196.00 | H184: 299 | I184: 299.00 | J184: Target Achieved | K184: 103.00 | L184: 52.55% | M184: Successful | N184: 2016-09-07
A185: 55 | B185: 2016-04-13 | D185: Magma | E185: Accu | F185: 88.00 | H185: 103 | I185: 103.00 | J185: Target Achieved | K185: 15.00 | L185: 17.05% | M185: Successful | N185: 2016-06-09
A186: 56 | B186: 2016-05-02 | D186: KEC International ltd $ | E186: Accu | F186: 127.50 | H186: 148 | I186: 148-150 | J186: Target Achieved | K186: =H186-F186 -> 20.50 | L186: =K186/F186 -> 16.08% | M186: Successful | N186: 2016-07-13
A187: 57 | B187: 2016-05-03 | D187: Mindtree | E187: Accu | F187: 675.00 | H187: 815 | I187: 790-800 | J187: Target Achieved | K187: =H187-F187 -> 140.00 | L187: =K187/F187 -> 20.74% | M187: Successful | N187: 2018-02-23
A188: 58 | B188: 2016-06-01 | D188: Atulauto | E188: Accu | F188: 500 | H188: 232.50 | I188: 565-570 | J188: Loss of Rs.267.50 /- | K188: =H188-F188 -> -267.50 | L188: =K188/F188 -> -53.50% | M188: Unsuccessful | N188: 2019-09-27
A189: 59 | B189: 2016-06-06 | D189: TRITURBINE | E189: Accu | F189: 110.00 | H189: 126.5 | I189: 125.00 | J189: Profit of Rs.16.50/- | K189: =H189-F189 -> 16.50 | L189: =K189/F189 -> 15.00% | M189: Successful | N189: 2016-07-01
A190: 60 | B190: 2016-06-17 | D190: Pennar Industries Ltd | E190: Accu | F190: 44.00 | H190: 69.5 | I190: 69.50 | J190: Profit of Rs.25.50/- | K190: =H190-F190 -> 25.50 | L190: =K190/F190 -> 57.95% | M190: Successful | N190: 2017-08-30
A191: 61 | B191: 2016-06-28 | D191: EVEREADY | E191: Accu | F191: 262.50 | H191: 340 | I191: 333.00 | J191: Profit of Rs.77.50/- | K191: 77.50 | L191: 29.52% | M191: Successful | N191: 2017-10-09
A192: 62 | B192: 2016-06-28 | D192: FIEMIND | E192: Accu | F192: 840.00 | H192: 1230 | I192: 1230.00 | J192: Target Achieved | K192: 390.00 | L192: 46.43% | M192: Successful | N192: 2016-10-06
A193: 63 | B193: 2016-07-05 | D193: Bajaj Corp Ltd | E193: Accu | F193: 395 | H193: =(468.5+342.5)/2 -> 405.50 | I193: 510.00 | J193: Profit of Rs.10.50/- | K193: =H193-F193 -> 10.50 | L193: =K193/F193 -> 3% | M193: Neutral | N193: 2019-05-21
A194: 64 | B194: 2016-08-02 | D194: GPPL $ | E194: Buy | F194: =169.5-12.8 -> 156.7 | H194: 77.00 | I194: 198-200 | J194: Loss of Rs.79.7/- | K194: -79.70 | L194: -50.86% | M194: Unsuccessful | N194: 2019-02-26
A195: 65 | B195: 2016-08-04 | D195: WONDERLA HOLIDAYS LTD | E195: Accu | F195: 400 | H195: 305.00 | I195: 475.00 | J195: Loss of Rs.95/- | K195: -95.00 | L195: -23.75% | M195: Unsuccessful | N195: 2019-05-21
A196: 66 | B196: 2016-08-11 | D196: CAMLINFINE | E196: Accu | F196: 86.50 | H196: 130 | I196: 130.00 | J196: Profit of Rs.43.50/- | K196: 43.50 | L196: 50.29% | M196: Successful | N196: 2017-12-22
A197: 67 | B197: 2016-08-18 | D197: GRANULES | E197: Accu | F197: 133.5 | H197: 126.50 | I197: 178.00 | J197: Exit | K197: -7.00 | L197: -5.24% | M197: Unsuccessful | N197: 2016-09-02
A198: 68 | B198: 2016-08-31 | D198: VA TECH WABAG | E198: Accu | F198: 560.00 | H198: 725 | I198: 725.00 | J198: Target Achieved | K198: 165.00 | L198: 29.46% | M198: Successful | N198: 2016-03-27
A199: 69 | B199: 2016-09-01 | D199: SKIPPER LIMITED | E199: Accu | F199: 160.50 | H199: 210 | I199: 210.00 | J199: Target Achieved | K199: 49.50 | L199: 30.84% | M199: Successful | N199: 2017-05-16
A200: 70 | B200: 2016-10-03 | D200: IFBIND | E200: Accu | F200: 430.00 | H200: 596 | I200: 575.00 | J200: Profit of Rs.166/- | K200: 166.00 | L200: 38.60% | M200: Successful | N200: 2017-02-03
A201: 71 | B201: 2016-10-14 | D201: ASIANTILES | E201: Accu | F201: 280.00 | H201: 345 | I201: 345.00 | J201: Target Achieved | K201: =H201-F201 -> 65.00 | L201: =K201/F201 -> 23.21% | M201: Successful | N201: 2017-03-20
A202: 72 | B202: 2016-10-14 | D202: DEEPIND | E202: Accu | F202: 245.00 | H202: 325.5 | I202: 330.00 | J202: Profit of Rs.80.5/- | K202: 80.50 | L202: =K202/F202 -> 32.86% | M202: Successful | N202: 2017-02-03
A203: 73 | B203: 2016-10-17 | D203: DCBBANK | E203: Accu | F203: 125.00 | H203: 160 | I203: 160.00 | J203: Target Achieved | K203: 35.00 | L203: 28.00% | M203: Successful | N203: 2017-03-09
A204: 74 | B204: 2016-10-17 | D204: ORIENTREF | E204: Accu | F204: 114.00 | H204: 145 | I204: 145.00 | J204: Target Achieved | K204: 31.00 | L204: =K204/F204 -> 27.19% | M204: Successful | N204: 2017-05-04
A205: 75 | B205: 2016-10-17 | D205: GANECOS | E205: Accu | F205: 212.00 | H205: 280 | I205: 276.00 | J205: Profit of Rs.68/- | K205: 68.00 | L205: =K205/F205 -> 32.08% | M205: Successful | N205: 2017-05-03
A206: 76 | B206: 2016-11-04 | D206: NBCC | E206: Accu | F206: 155.00 | H206: 210 | I206: 210.00 | J206: Profit of Rs.55/- | K206: 55.00 | L206: =K206/F206 -> 35.48% | M206: Successful | N206: 2017-07-28
A207: 77 | B207: 2016-12-06 | D207: PRECAM | E207: Accu | F207: 150.5 | H207: 72.50 | I207: 174.00 | J207: Loss of Rs.78/- | K207: -78.00 | L207: -51.83% | M207: Unsuccessful | N207: 2018-08-21
A208: 78 | B208: 2016-12-08 | D208: INFRATEL | E208: Accu | F208: 380.00 | H208: 478 | I208: 468.00 | J208: Target Achieved | K208: =H208-F208 -> 98.00 | L208: =K208/F208 -> 25.79% | M208: Successful | N208: 2017-10-17
A209: 79 | B209: 2016-12-30 | D209: GODREJPROP | E209: Accu | F209: 305.00 | H209: 375 | I209: 375.00 | J209: Target Achieved | K209: =H209-F209 -> 70.00 | L209: =K209/F209 -> 22.95% | M209: Successful | N209: 2017-02-02
A210: 80 | B210: 2017-01-04 | D210: DEEPAKNTR | E210: Accu | F210: 99.50 | H210: 158 | I210: 158.00 | J210: Target Achieved | K210: =H210-F210 -> 58.50 | L210: =K210/F210 -> 58.79% | M210: Successful | N210: 2017-06-12
A211: 81 | B211: 2017-01-04 | D211: DEEPAKNTR | E211: Accu | F211: 99.50 | H211: 158 | I211: 158.00 | J211: Target Achieved | K211: 58.50 | L211: 58.79% | M211: Successful | N211: 2017-06-12
A212: 82 | B212: 2017-02-20 | D212: RECLTD | E212: Accu | F212: 140.50 | H212: 220 | I212: 220.00 | J212: Target Achieved | K212: =H212-F212 -> 79.50 | L212: =K212/F212 -> 56.58% | M212: Successful | N212: 2017-05-09
A213: 83 | B213: 2017-02-20 | D213: SUBROS | E213: Accu | F213: 202.50 | H213: 234 | I213: 234.00 | J213: Target Achieved | K213: 31.50 | L213: 15.56% | M213: Successful | N213: 2017-04-11
A214: 84 | B214: 2017-03-24 | D214: VRLLOG | E214: Accu | F214: 300.50 | H214: 417.5 | I214: 420.00 | J214: Profit of Rs.117/- | K214: =H214-F214 -> 117.00 | L214: =K214/F214 -> 38.94% | M214: Successful | N214: 2017-12-01
A215: 85 | B215: 2017-03-24 | D215: FIEMIND | E215: Accu | F215: 850.00 | H215: 1042.5 | I215: 1023.00 | J215: Profit of Rs 192.50/- | K215: 192.50 | L215: 22.65% | M215: Successful | N215: 2017-04-05
A216: 86 | B216: 2017-04-05 | D216: RATNAMANI | E216: Accu | F216: 785.00 | H216: 930 | I216: 920.00 | J216: Profit of Rs.145/- | K216: =H216-F216 -> 145.00 | L216: =K216/F216 -> 18.47% | M216: Successful | N216: 2017-08-29
A217: 87 | B217: 2017-04-06 | D217: ZEEMEDIA | E217: Accu | F217: 40 | H217: 13.10 | I217: 60.00 | J217: Loss of Rs.26.9/- | K217: -26.90 | L217: -67.25% | M217: Unsuccessful | N217: 2018-02-07
A218: 88 | B218: 2017-04-12 | D218: DABUR | E218: Accu | F218: 289.50 | H218: 354 | I218: 360.00 | J218: Profit of Rs.64.5/- | K218: =H218-F218 -> 64.50 | L218: =K218/F218 -> 22.28% | M218: Successful | N218: 2017-11-01
A219: 89 | B219: 2017-04-20 | D219: KPRMILL | E219: Accu | F219: 700.00 | H219: 840 | I219: 840.00 | J219: Profit of Rs.140/- | K219: 140.00 | L219: 20.00% | M219: Successful | N219: 2017-06-07
A220: 90 | B220: 2017-06-01 | D220: ESSELPACK | E220: Accu | F220: 130.00 | H220: 144.25 | I220: 170.00 | J220: Profit of Rs.14.25/- | K220: 14.25 | L220: 10.96% | M220: Successful | N220: 2019-07-29
A221: 91 | B221: 2017-06-15 | D221: KEI | E221: Accu | F221: 214.50 | H221: 262 | I221: 262.00 | J221: Profit of Rs.47.5/- | K221: 47.50 | L221: 22.14% | M221: Successful | N221: 2017-08-30
A222: 92 | B222: 2017-07-17 | D222: MAYURUNIQ | E222: Accu | F222: 370.00 | H222: 447.5 | I222: 450.00 | J222: Target Achieved | K222: 77.50 | L222: 20.95% | M222: Successful | N222: 2017-10-27
A223: 93 | B223: 2017-07-27 | D223: RAMCOCEM | E223: Accu | F223: 657.50 | H223: 825 | I223: 820.00 | J223: Target Achieved | K223: 167.50 | L223: 25.48% | M223: Successful | N223: 2017-12-21
A224: 94 | B224: 2017-08-17 | D224: FINPIPE | E224: Accu | F224: 605.00 | H224: 750 | I224: 750.00 | J224: Profit of Rs.145/- | K224: 145.00 | L224: 23.97% | M224: Successful | N224: 2017-10-19
A225: 95 | B225: 2017-09-01 | D225: SHK | E225: Accu | F225: 255 | H225: 217.25 | I225: 320.00 | J225: Loss of Rs.37.75/- | K225: -37.75 | L225: -15% | M225: Unsuccessful | N225: 2019-07-15
A226: 96 | B226: 2017-09-19 | D226: SKIPPER | E226: Accu | F226: 215.00 | H226: 258 | I226: 258.00 | J226: Target Achieved | K226: 43.00 | L226: 20.00% | M226: Successful | N226: 2017-11-01
A227: 97 | B227: 2017-09-19 | D227: SKIPPER | E227: Accu | F227: 215.00 | H227: 258 | I227: 258.00 | J227: Target Achieved | K227: 43.00 | L227: 20.00% | M227: Successful | N227: 2017-11-01
A228: 98 | B228: 2017-09-20 | D228: CAMLINFINE$ | E228: Accu | F228: 75.00 | H228: 90 | I228: 90.00 | J228: Profit of Rs.15.00/- | K228: =H228-F228 -> 15.00 | L228: =K228/F228 -> 20.00% | M228: Successful | N228: 2017-10-11
A229: 99 | B229: 2017-10-03 | D229: GNA | E229: Accu | F229: 315.00 | H229: 392 | I229: 384.00 | J229: Profit of Rs.77/- | K229: 77.00 | L229: 24.44% | M229: Successful | N229: 2017-10-09
A230: 100 | B230: 2017-10-05 | D230: NOCIL | E230: Accu | F230: 145.00 | H230: 179 | I230: 180.00 | J230: Profit of Rs.34/- | K230: 34.00 | L230: 23.45% | M230: Successful | N230: 2017-10-17
A231: 101 | B231: 2017-10-06 | D231: CENTURYPLY | E231: Accu | F231: 256.00 | H231: 323 | I231: 320.00 | J231: Target Achieved | K231: 67.00 | L231: 26.17% | M231: Successful | N231: 2017-11-28
A232: 102 | B232: 2017-10-09 | D232: EIHOTEL | E232: Accu | F232: 137.50 | H232: 184 | I232: 183.00 | J232: Profit of Rs.46.5/- | K232: 46.50 | L232: 33.82% | M232: Successful | N232: 2018-01-08
A233: 103 | B233: 2017-10-10 | D233: NRBBEARING | E233: Accu | F233: 125.50 | H233: 158 | I233: 155.00 | J233: Profit of Rs.32.5/- | K233: 32.50 | L233: 25.90% | M233: Successful | N233: 2017-11-28
A234: 104 | B234: 2017-10-10 | D234: BOROSIL | E234: Accu | F234: 895.00 | H234: 1122.5 | I234: 1078.00 | J234: Profit of Rs.227.5/- | K234: 227.50 | L234: 25.42% | M234: Successful | N234: 2018-01-17
A235: 105 | B235: 2017-10-12 | D235: CYIENT | E235: Accu | F235: 525.00 | H235: 629 | I235: 629.00 | J235: Target Achieved | K235: 104.00 | L235: 19.81% | M235: Successful | N235: 2018-01-19
A236: 106 | B236: 2017-11-07 | D236: HATSUN | E236: Accu | F236: 740.00 | H236: 892.5 | I236: 900.00 | J236: Profit of Rs.152.5/- | K236: =H236-F236 -> 152.50 | L236: =K236/F236 -> 20.61% | M236: Successful | N236: 2017-11-13
A237: 107 | B237: 2017-12-04 | D237: SANGHIIND | E237: Accu | F237: 118.50 | H237: 143.5 | I237: 145.00 | J237: Profit of Rs.25/- | K237: =H237-F237 -> 25.00 | L237: =K237/F237 -> 21.10% | M237: Successful | N237: 2017-12-28
A238: 108 | B238: 2017-12-21 | D238: KAJARIACER | E238: Accu | F238: 715 | H238: 500.00 | I238: 872.00 | J238: Loss of Rs.215/- | K238: =H238-F238 -> -215.00 | L238: =K238/F238 -> -30.07% | M238: Unsuccessful | N238: 2019-07-24
A239: 109 | B239: 2017-12-29 | D239: GNA | E239: Accu | F239: 435.00 | H239: 542.5 | I239: 539.00 | J239: Target Achieved | K239: 107.50 | L239: 24.71% | M239: Successful | N239: 2018-04-16
A240: 110 | B240: 2017-12-29 | D240: ZENSARTECH | E240: Accu | F240: 885.00 | H240: 1090 | I240: 1084.00 | J240: Target Achieved | K240: 205.00 | L240: 23.16% | M240: Successful | N240: 2018-04-23
A241: 111 | B241: 2018-04-02 | D241: EVERESTIND | E241: Accu | F241: 478.50 | H241: 442 | I241: 613.00 | J241: Loss of Rs.36.50 /- | K241: =H241-F241 -> -36.50 | L241: =K241/F241 -> -7.63% | M241: Unsuccessful | N241: 2019-10-24
A242: 112 | B242: 2018-04-04 | D242: GPPL$ | E242: Accu | F242: =141.5-7.3 -> 134.2 | H242: 77.00 | I242: 180.00 | J242: Loss of Rs.57.2/- | K242: =H242-F242 -> -57.20 | L242: =K242/F242 -> -42.62% | M242: Unsuccessful | N242: 2019-02-26
A243: 113 | B243: 2018-04-19 | D243: MANPASAND | E243: Accu | F243: 430 | H243: 220.00 | I243: 537.00 | J243: Loss of Rs.210/- | K243: =H243-F243 -> -210.00 | L243: =K243/F243 -> -48.84% | M243: Unsuccessful | N243: 2018-06-01
A244: 114 | B244: 2018-04-30 | D244: HEIDELBERG | E244: Accu | F244: 153.5 | H244: 196 | I244: 196.00 | J244: Profit of Rs.42.50/- | K244: =H244-F244 -> 42.50 | L244: =K244/F244 -> 27.69% | M244: Successful | N244: 2019-05-20
A245: 115 | B245: 2018-07-25 | D245: ZEEMEDIA | E245: Accu | F245: 27.5 | H245: 13.10 | I245: 60.00 | J245: Loss of Rs.14.40/- | K245: -14.40 | L245: -52.36% | M245: Unsuccessful | N245: 2018-02-07
A246: 116 | B246: 2018-08-06 | D246: GABRIEL | E246: Accu | F246: 148.5 | H246: 102 | I246: 182.00 | J246: Loss of Rs.46.50/- | K246: =H246-F246 -> -46.50 | L246: =K246/F246 -> -31.31% | M246: Unsuccessful | N246: 2019-07-15
A247: 117 | B247: 2018-08-23 | D247: INDIANHUME | E247: Accu | F247: 285 | H247: 355 | I247: 364.00 | J247: Profit of Rs.70/- | K247: 70.00 | L247: 24.56% | M247: Successful | N247: 2018-12-21
A248: 118 | B248: 2018-08-29 | D248: GRINDWELL | E248: Accu | F248: 525 | H248: 585 | I248: 635.00 | J248: Profit of Rs.60- | K248: =H248-F248 -> 60.00 | L248: =K248/F248 -> 11.43% | M248: Successful | N248: 2019-07-16
A249: 119 | B249: 2018-10-22 | D249: FINPIPE | E249: Accu | F249: 475 | H249: 574 | I249: 570.00 | J249: Target Achieved | K249: 99.00 | L249: 20.84% | M249: Successful | N249: 2018-10-30
A250: 120 | B250: 2018-10-24 | D250: GULFOILLUB | E250: Accu | F250: 707.5 | H250: 872 | I250: 872.00 | J250: Target Achieved | K250: 164.50 | L250: 23.25% | M250: Successful | N250: 2019-01-17
... 46 more rows
